Workbook

Sheet ReadMe
C1: Training Provider and Participant Questionnaire
C2: This portion of the survey is collected in aggregate for all training providers by the EDA Grantee (System Lead Entity or Backbone Organization). Please provide a response for each training program provided by each training provider. Multiple training providers and programs can be entered.
C5: Step One: First enter information for each training provider and training program within your regional workforce training system.
C6: 1 | F6: Provide the name of each training provider and program or programs each training provider leads.
C8: Step Two: Next, complete the following sections for each training program in the system, even if led by the same training provider.
C9: 2 | F9: Provide the name, training program details, date of birth, and address of residence for each GJC participants within the past quarter.
C11: 3 | F11: Provide responses for each training program in the system regarding length of the program, environment type, program hours, additional supports provided, and costs.
C13: 4 | F13: Provide responses for each training program in the system regarding credentials and types of skills participants acquired.
C15: 5 | F15: Provide responses for each training program on the number of participants who were recruited, admitted, and enrolled within the past quarter.
C17: 6 | F17: Provide responses for each training program on the number and reason participants did not complete training.
C19: 7 | F19: Provide response for participants six months after training completion.
C21: 8 | F21: Provide responses regarding the number and type of employment of participants.
C23: 9 | F23: Provide responses for each training program for earn and learn participants.
C25: 10 | F25: Provide responses regarding the median salaries of participants placed into jobs.
C27: 11 | F27: Rank the effectiveness of career and job preparation services provided to participants during and after training completion.
C29: 12 | F29: Provide responding for each training program regarding the wraparound services provided and the number of participants who used these services.
C31: 13 | F31: Provide the cumulative number of participants who have completed training and associated program costs.

Sheet Training Provider
C1: Training Provider Questionnaire
C3: List Training Providers | D3: List each training program per training provider
C5: Training Providers | D5: Training Program 1 | E5: Training Program 2 | F5: Training Program 3 | G5: Training Program 4 | H5: Training Program 5 | I5: Training Program 6 | J5: Training Program 7 | K5: Training Program 8 | L5: Training Program 9 | M5: Training Program 10 | N5: Training Program 11 | O5: Training Program 12 | P5: Training Program 13 | Q5: Training Program 14 | R5: Training Program 15 | S5: Training Program 16 | T5: Training Program 17 | U5: Training Program 18 | V5: Training Program 19 | W5: Training Program 20
C6: Example: Training Provider Name | D6: Healthcare Program | E6: Manufacturing Program
B7: 1 | AD7: =IF(C7<>"",COUNTA(D7:W7)+1,0) -> 0
B8: 2 | AD8: =IF(C8<>"",COUNTA(D8:W8)+1,0) -> 0
B9: 3 | AD9: 0
B10: 4 | AD10: 0
B11: 5 | AD11: 0
B12: 6 | AD12: 0
B13: 7 | AD13: 0
B14: 8 | AD14: 0
B15: 9 | AD15: 0
B16: 10 | AD16: 0
B17: 11 | AD17: 0
B18: 12 | AD18: 0
B19: 13 | AD19: 0
B20: 14 | AD20: 0
B21: 15 | AD21: 0
B22: 16 | AD22: 0
B23: 17 | AD23: 0
B24: 18 | AD24: 0
B25: 19 | AD25: 0
AD26: 0

Sheet Updated_List (hidden)
A1: Training Provider | B1: Training Program
F2: 1
F3: =F2+1 -> 2
F4: =F3+1 -> 3
F5: 4
F6: 5
F7: 6
F8: 7
F9: 8
F10: 9
F11: 10
F12: 11
F13: 12
F14: 13
F15: 14
F16: 15
F17: 16
F18: 17
F19: 18
F20: 19
F21: 20
F22: 21
F23: 22
F24: 23
F25: 24
F26: 25
F27: 26
F28: 27
F29: 28
F30: 29
F31: 30
F32: 31
F33: 32
F34: 33
F35: 34
F36: 35
F37: 36
F38: 37
F39: 38
F40: 39
F41: 40
F42: 41
F43: 42
F44: 43
F45: 44
F46: 45
F47: 46
F48: 47
F49: 48
F50: 49
F51: 50
F52: 51
F53: 52
F54: 53
F55: 54
F56: 55
F57: 56
F58: 57
F59: 58
F60: 59
F61: 60
F62: 61
F63: 62
F64: 63
F65: 64
F66: 65
F67: 66
F68: =F67+1 -> 67
F69: 68
F70: 69
F71: 70
F72: 71
F73: 72
F74: 73
F75: 74
F76: 75
F77: 76
F78: 77
F79: 78
F80: 79
F81: 80
F82: 81
F83: 82
F84: 83
F85: 84
F86: 85
F87: 86
F88: 87
F89: 88
F90: 89
F91: 90
F92: 91
F93: 92
F94: 93
F95: 94
F96: 95
F97: 96
F98: 97
F99: 98
F100: 99
F101: 100
F102: 101
F103: 102
F104: 103
F105: 104
F106: 105
F107: 106
F108: 107
F109: 108
F110: 109
F111: 110
F112: 111
F113: 112
F114: 113
F115: 114
F116: 115
F117: 116
F118: 117
F119: 118
F120: 119
F121: 120
F122: 121
F123: 122
F124: 123
F125: 124
F126: 125
F127: 126
F128: 127
F129: 128
F130: 129
F131: 130
F132: =F131+1 -> 131
F133: 132
F134: 133
F135: 134
F136: 135
F137: 136
F138: 137
F139: 138
F140: 139
F141: 140
F142: 141
F143: 142
F144: 143
F145: 144
F146: 145
F147: 146
F148: 147
F149: 148
F150: 149
F151: 150
F152: 151
F153: 152
F154: 153
F155: 154
F156: 155
F157: 156
F158: 157
F159: 158
F160: 159
F161: 160
F162: 161
F163: 162
F164: 163
F165: 164
F166: 165
F167: 166
F168: 167
F169: 168
F170: 169
F171: 170
F172: 171
F173: 172
F174: 173
F175: 174
F176: 175
F177: 176
F178: 177
F179: 178
F180: 179
F181: 180
F182: 181
F183: 182
F184: 183
F185: 184
F186: 185
F187: 186
F188: 187
F189: 188
F190: 189
F191: 190
F192: 191
F193: 192
F194: 193
F195: 194
F196: =F195+1 -> 195
F197: 196
F198: 197
F199: 198
F200: 199
... 2 more rows

Sheet Provider_Database (hidden)
A1: B9 | B1: G8 | C1: G17 | D1: G19 | E1: G21 | F1: G23 | G1: G25 | H1: G27 | I1: G29 | J1: G31 | K1: G33 | L1: G35 | M1: G37 | N1: G39 | O1: G41 | P1: G43 | Q1: G45 | R1: G47 | S1: G49 | T1: G51 | U1: G53 | V1: G55 | W1: =B1 -> G8 | Y1: Criteria | AA1: Sorted Names | AD1: =COUNTA(C1:V1) -> 20
A2: Training Provider and Programs | Y2: Training Provider | AA2: Provider Name and Program
A3: Provider ID | B3: Training Provider | C3: Training Program 1 | D3: Training Program 2 | E3: Training Program 3 | F3: Training Program 4 | G3: Training Program 5 | H3: Training Program 6 | I3: Training Program 7 | J3: Training Program 8 | K3: Training Program 9 | L3: Training Program 10 | M3: Training Program 11 | N3: Training Program 12 | O3: Training Program 13 | P3: Training Program 14 | Q3: Training Program 15 | R3: Training Program 16 | S3: Training Program 17 | T3: Training Program 18 | U3: Training Program 19 | V3: Training Program 20 | W3: Provider Name and Program | Y3: <> | AB3: training provider 1 | AC3: training provider 1
AD4: =IF(B4<>"",COUNTA(C4:V4),0) -> 0 | AN4: =IF(B7<>"",B7,"") -> 
AD5: =IF(B5<>"",COUNTA(C5:V5),0) -> 0
AD6: =IF(B6<>"",COUNTA(C6:V6),0) -> 0
AD7: 0
AD8: 0
AD9: 0
AD10: 0
AD11: 0
AD12: 0
AD13: 0
AD14: 0
AD15: 0
AD16: 0
AD17: 0
AD18: 0
AD19: 0
AD20: 0
AD21: 0
AD22: 0
AD23: 0
AD24: 0
AD25: 0
AD26: 0
AD27: 0
AD28: 0
AD29: 0
AD30: 0
AD31: 0
AD32: 0
AD33: 0
AD34: 0
AD35: 0
AD36: 0
AD37: 0
AD38: 0
AD39: 0
AD40: 0
AD41: 0
AD42: 0
AD43: 0
AD44: 0
AD45: 0
AD46: 0
AD47: 0 | AN47: =IF(B50<>"",B50,"") -> 
AD48: 0
AD49: 0
AD50: 0
AD51: 0
AD52: 0
AD53: 0
AD54: 0
AD55: 0
AD56: 0
AD57: 0
AD58: 0
AD59: 0
AD60: 0
AD61: 0
AD62: 0
AD63: 0
AD64: 0
AD65: 0
AD66: 0
AD67: 0
AD68: 0
AD69: 0
AD70: =IF(B70<>"",COUNTA(C70:V70),0) -> 0
AD71: 0
AD72: 0
AD73: 0
AD74: 0
AD75: 0
AD76: 0
AD77: 0
AD78: 0
AD79: 0
AD80: 0
AD81: 0
AD82: 0
AD83: 0
AD84: 0
AD85: 0
AD86: 0
AD87: 0
AD88: 0
AD89: 0
AD90: 0
AD91: 0
AD92: 0
AD93: 0
AD94: 0
AD95: 0
AD96: 0
AD97: 0
AD98: 0
AD99: 0
AD100: 0
AD101: 0
AD102: 0
AD103: 0
AD104: 0
AD105: 0
AD106: 0
AD107: 0
AD108: 0
AD109: 0
AD110: 0
AD111: 0 | AN111: =IF(B114<>"",B114,"") -> 
AD112: 0
AD113: 0
AD114: 0
AD115: 0
AD116: 0
AD117: 0
AD118: 0
AD119: 0
AD120: 0
AD121: 0
AD122: 0
AD123: 0
AD124: 0
AD125: 0
AD126: 0
AD127: 0
AD128: 0
AD129: 0
AD130: 0
AD131: 0
AD132: 0
AD133: 0
AD134: =IF(B134<>"",COUNTA(C134:V134),0) -> 0
AD135: 0
AD136: 0
AD137: 0
AD138: 0
AD139: 0
AD140: 0
AD141: 0
AD142: 0
AD143: 0
AD144: 0
AD145: 0
AD146: 0
AD147: 0
AD148: 0
AD149: 0
AD150: 0
AD151: 0
AD152: 0
AD153: 0
AD154: 0
AD155: 0
AD156: 0
AD157: 0
AD158: 0
AD159: 0
AD160: 0
AD161: 0
AD162: 0
AD163: 0
AD164: 0
AD165: 0
AD166: 0
AD167: 0
AD168: 0
AD169: 0
AD170: 0
AD171: 0
AD172: 0
AD173: 0
AD174: 0
AD175: 0 | AN175: =IF(B178<>"",B178,"") -> 
AD176: 0
AD177: 0
AD178: 0
AD179: 0
AD180: 0
AD181: 0
AD182: 0
AD183: 0
AD184: 0
AD185: 0

Sheet Participant_Database
A3: Training Provider | B3: Training Program | C3: First Name | D3: Middle Name | E3: Last Name | F3: Training Start Date | I3: Training End Date | L3: Completed Training | M3: Job Start Date | P3: Date of Birth | S3: Address of Residence | Z3: 3
F4: Please enter in month/day/year format. | I4: Please enter in month/day/year format. | L4: Yes/No | M4: Please enter in month/day/year format. | P4: Please enter in month/day/year format. | W4: Please enter the five digit zip. | Z4: =Z3+1 -> 4
F5: Month | G5: Day | H5: Year | I5: Month | J5: Day | K5: Year | M5: Month | N5: Day | O5: Year | P5: Month | Q5: Day | R5: Year | S5: Street | T5: Street (apt, etc.) | U5: City | V5: State | W5: Zip | Z5: =Z4+1 -> 5
Z6: 6
Z7: 7
Z8: 8
Z9: 9
Z10: 10
Z11: 11
Z12: 12
Z13: 13
Z14: 14
Z15: 15
Z16: 16
Z17: 17
Z18: 18
Z19: 19
Z20: 20
Z21: 21
Z22: 22
Z23: 23
Z24: 24
Z25: 25
Z26: 26
Z27: 27
Z28: 28
Z29: 29
Z30: 30
Z31: 31
Z32: 32
Z33: 33
Z34: 34
Z35: 35
Z36: 36
Z37: 37
Z38: 38
Z39: 39
Z40: 40
Z41: 41
Z42: 42
Z43: 43
Z44: 44
Z45: 45
Z46: 46
Z47: 47
Z48: 48
Z49: 49
Z50: 50
Z51: 51
Z52: 52
Z53: 53
Z54: 54
Z55: 55
Z56: 56
Z57: 57
Z58: 58
Z59: 59
Z60: 60
Z61: 61
Z62: 62
Z63: 63
Z64: 64
Z65: 65
Z66: 66
Z67: 67
Z68: 68
Z69: =Z68+1 -> 69
Z70: 70
Z71: 71
Z72: =Z71+1 -> 72
Z73: 73
Z74: 74
Z75: 75
Z76: 76
Z77: 77
Z78: 78
Z79: 79
Z80: 80
Z81: 81
Z82: 82
Z83: 83
Z84: 84
Z85: 85
Z86: 86
Z87: 87
Z88: 88
Z89: 89
Z90: 90
Z91: 91
Z92: 92
Z93: 93
Z94: 94
Z95: 95
Z96: 96
Z97: 97
Z98: 98
Z99: 99
Z100: 100
Z101: 101
Z102: 102
Z103: 103
Z104: 104
Z105: 105
Z106: 106
Z107: 107
Z108: 108
Z109: 109
Z110: 110
Z111: 111
Z112: 112
Z113: 113
Z114: 114
Z115: 115
Z116: 116
Z117: 117
Z118: 118
Z119: 119
Z120: 120
Z121: 121
Z122: 122
Z123: 123
Z124: 124
Z125: 125
Z126: 126
Z127: 127
Z128: 128
Z129: 129
Z130: 130
Z131: 131
Z132: 132
Z133: 133
Z134: 134
Z135: 135
Z136: =Z135+1 -> 136
Z137: 137
Z138: 138
Z139: 139
Z140: 140
Z141: 141
Z142: 142
Z143: 143
Z144: 144
Z145: 145
Z146: 146
Z147: 147
Z148: 148
Z149: 149
Z150: 150
Z151: 151
Z152: 152
Z153: 153
Z154: 154
Z155: 155
Z156: 156
Z157: 157
Z158: 158
Z159: 159
Z160: 160
Z161: 161
Z162: 162
Z163: 163
Z164: 164
Z165: 165
Z166: 166
Z167: 167
Z168: 168
Z169: 169
Z170: 170
Z171: 171
Z172: 172
Z173: 173
Z174: 174
Z175: 175
Z176: 176
Z177: 177
Z178: 178
Z179: 179
Z180: 180
Z181: 181
Z182: 182
Z183: 183
Z184: 184
Z185: 185
Z186: 186
Z187: 187
Z188: 188
Z189: 189
Z190: 190
Z191: 191
Z192: 192
Z193: 193
Z194: 194
Z195: 195
Z196: 196
Z197: 197
Z198: 198
Z199: 199
Z200: =Z199+1 -> 200
Z201: 201
Z202: 202
... 802 more rows

Sheet Summary Sheet_participants (hidden)
A1: tp_name | B1: tp_program | C1: name_f | D1: name_m | E1: name_l | F1: start_date_mnt | G1: start_date_day | H1: start_date_yr | I1: end_date_mnt | J1: end_date_day | K1: end_date_yr | L1: train_complete | M1: job_start_mth | N1: job_start_day | O1: job_start_yr | P1: dob_mnth | Q1: dob_day | R1: dob_yr | S1: address_street | T1: address_street_two | U1: address_city | V1: address_state | W1: address_zip | X1: row_id | Y1: no_part
A2: =IF($C2<>"",OFFSET(Participant_Database!$A$3,Participant_Database!$Z3,0),"") ->  | B2: =IF($C2<>"",OFFSET(Participant_Database!$B$3,Participant_Database!$Z3,0),"") ->  | C2: =IF(OFFSET(Participant_Database!$C$3,Participant_Database!$Z3,0)<>"",OFFSET(Participant_Database!$C$3,Participant_Database!$Z3,0),"") ->  | D2: =IF($C2<>"",OFFSET(Participant_Database!$D$3,Participant_Database!$Z3,0),"") ->  | E2: =IF($C2<>"",OFFSET(Participant_Database!$E$3,Participant_Database!$Z3,0),"") ->  | F2: =IF($C2<>"",OFFSET(Participant_Database!$F$3,Participant_Database!$Z3,0),"") ->  | G2: =IF($C2<>"",OFFSET(Participant_Database!$G$3,Participant_Database!$Z3,0),"") ->  | H2: =IF($C2<>"",OFFSET(Participant_Database!$H$3,Participant_Database!$Z3,0),"") ->  | I2: =IF($C2<>"",OFFSET(Participant_Database!$I$3,Participant_Database!$Z3,0),"") ->  | J2: =IF($C2<>"",OFFSET(Participant_Database!$J$3,Participant_Database!$Z3,0),"") ->  | K2: =IF($C2<>"",OFFSET(Participant_Database!$K$3,Participant_Database!$Z3,0),"") ->  | L2: =IF($C2<>"",OFFSET(Participant_Database!$L$3,Participant_Database!$Z3,0),"") ->  | M2: =IF($C2<>"",OFFSET(Participant_Database!$M$3,Participant_Database!$Z3,0),"") ->  | N2: =IF($C2<>"",OFFSET(Participant_Database!$N$3,Participant_Database!$Z3,0),"") ->  | O2: =IF($C2<>"",OFFSET(Participant_Database!$O$3,Participant_Database!$Z3,0),"") ->  | P2: =IF($C2<>"",OFFSET(Participant_Database!$P$3,Participant_Database!$Z3,0),"") ->  | Q2: =IF($C2<>"",OFFSET(Participant_Database!$Q$3,Participant_Database!$Z3,0),"") ->  | R2: =IF($C2<>"",OFFSET(Participant_Database!$R$3,Participant_Database!$Z3,0),"") ->  | S2: =IF($C2<>"",OFFSET(Participant_Database!$S$3,Participant_Database!$Z3,0),"") ->  | T2: =IF($C2<>"",OFFSET(Participant_Database!$T$3,Participant_Database!$Z3,0),"") ->  | U2: =IF($C2<>"",OFFSET(Participant_Database!$U$3,Participant_Database!$Z3,0),"") ->  | V2: =IF($C2<>"",OFFSET(Participant_Database!$V$3,Participant_Database!$Z3,0),"") ->  | W2: =IF($C2<>"",OFFSET(Participant_Database!$W$3,Participant_Database!$Z3,0),"") ->  | X2: =IF(C2<>"",1,"") ->  | Y2: FALSE
A3: =IF($C3<>"",OFFSET(Participant_Database!$A$3,Participant_Database!$Z4,0),"") ->  | B3: =IF($C3<>"",OFFSET(Participant_Database!$B$3,Participant_Database!$Z4,0),"") ->  | C3: =IF(OFFSET(Participant_Database!$C$3,Participant_Database!$Z4,0)<>"",OFFSET(Participant_Database!$C$3,Participant_Database!$Z4,0),"") ->  | D3: =IF($C3<>"",OFFSET(Participant_Database!$D$3,Participant_Database!$Z4,0),"") ->  | E3: =IF($C3<>"",OFFSET(Participant_Database!$E$3,Participant_Database!$Z4,0),"") ->  | F3: =IF($C3<>"",OFFSET(Participant_Database!$F$3,Participant_Database!$Z4,0),"") ->  | G3: =IF($C3<>"",OFFSET(Participant_Database!$G$3,Participant_Database!$Z4,0),"") ->  | H3: =IF($C3<>"",OFFSET(Participant_Database!$H$3,Participant_Database!$Z4,0),"") ->  | I3: =IF($C3<>"",OFFSET(Participant_Database!$I$3,Participant_Database!$Z4,0),"") ->  | J3: =IF($C3<>"",OFFSET(Participant_Database!$J$3,Participant_Database!$Z4,0),"") ->  | K3: =IF($C3<>"",OFFSET(Participant_Database!$K$3,Participant_Database!$Z4,0),"") ->  | L3: =IF($C3<>"",OFFSET(Participant_Database!$L$3,Participant_Database!$Z4,0),"") ->  | M3: =IF($C3<>"",OFFSET(Participant_Database!$M$3,Participant_Database!$Z4,0),"") ->  | N3: =IF($C3<>"",OFFSET(Participant_Database!$N$3,Participant_Database!$Z4,0),"") ->  | O3: =IF($C3<>"",OFFSET(Participant_Database!$O$3,Participant_Database!$Z4,0),"") ->  | P3: =IF($C3<>"",OFFSET(Participant_Database!$P$3,Participant_Database!$Z4,0),"") ->  | Q3: =IF($C3<>"",OFFSET(Participant_Database!$Q$3,Participant_Database!$Z4,0),"") ->  | R3: =IF($C3<>"",OFFSET(Participant_Database!$R$3,Participant_Database!$Z4,0),"") ->  | S3: =IF($C3<>"",OFFSET(Participant_Database!$S$3,Participant_Database!$Z4,0),"") ->  | T3: =IF($C3<>"",OFFSET(Participant_Database!$T$3,Participant_Database!$Z4,0),"") ->  | U3: =IF($C3<>"",OFFSET(Participant_Database!$U$3,Participant_Database!$Z4,0),"") ->  | V3: =IF($C3<>"",OFFSET(Participant_Database!$V$3,Participant_Database!$Z4,0),"") ->  | W3: =IF($C3<>"",OFFSET(Participant_Database!$W$3,Participant_Database!$Z4,0),"") ->  | X3: =IF(C3<>"",2,"") -> 
A4: =IF($C4<>"",OFFSET(Participant_Database!$A$3,Participant_Database!$Z5,0),"") ->  | B4: =IF($C4<>"",OFFSET(Participant_Database!$B$3,Participant_Database!$Z5,0),"") ->  | C4: =IF(OFFSET(Participant_Database!$C$3,Participant_Database!$Z5,0)<>"",OFFSET(Participant_Database!$C$3,Participant_Database!$Z5,0),"") ->  | D4: =IF($C4<>"",OFFSET(Participant_Database!$D$3,Participant_Database!$Z5,0),"") ->  | E4: =IF($C4<>"",OFFSET(Participant_Database!$E$3,Participant_Database!$Z5,0),"") ->  | F4: =IF($C4<>"",OFFSET(Participant_Database!$F$3,Participant_Database!$Z5,0),"") ->  | G4: =IF($C4<>"",OFFSET(Participant_Database!$G$3,Participant_Database!$Z5,0),"") ->  | H4: =IF($C4<>"",OFFSET(Participant_Database!$H$3,Participant_Database!$Z5,0),"") ->  | I4: =IF($C4<>"",OFFSET(Participant_Database!$I$3,Participant_Database!$Z5,0),"") ->  | J4: =IF($C4<>"",OFFSET(Participant_Database!$J$3,Participant_Database!$Z5,0),"") ->  | K4: =IF($C4<>"",OFFSET(Participant_Database!$K$3,Participant_Database!$Z5,0),"") ->  | L4: =IF($C4<>"",OFFSET(Participant_Database!$L$3,Participant_Database!$Z5,0),"") ->  | M4: =IF($C4<>"",OFFSET(Participant_Database!$M$3,Participant_Database!$Z5,0),"") ->  | N4: =IF($C4<>"",OFFSET(Participant_Database!$N$3,Participant_Database!$Z5,0),"") ->  | O4: =IF($C4<>"",OFFSET(Participant_Database!$O$3,Participant_Database!$Z5,0),"") ->  | P4: =IF($C4<>"",OFFSET(Participant_Database!$P$3,Participant_Database!$Z5,0),"") ->  | Q4: =IF($C4<>"",OFFSET(Participant_Database!$Q$3,Participant_Database!$Z5,0),"") ->  | R4: =IF($C4<>"",OFFSET(Participant_Database!$R$3,Participant_Database!$Z5,0),"") ->  | S4: =IF($C4<>"",OFFSET(Participant_Database!$S$3,Participant_Database!$Z5,0),"") ->  | T4: =IF($C4<>"",OFFSET(Participant_Database!$T$3,Participant_Database!$Z5,0),"") ->  | U4: =IF($C4<>"",OFFSET(Participant_Database!$U$3,Participant_Database!$Z5,0),"") ->  | V4: =IF($C4<>"",OFFSET(Participant_Database!$V$3,Participant_Database!$Z5,0),"") ->  | W4: =IF($C4<>"",OFFSET(Participant_Database!$W$3,Participant_Database!$Z5,0),"") ->  | X4: =IF(C4<>"",Participant_Database!$Z3,"") -> 
A5: =IF($C5<>"",OFFSET(Participant_Database!$A$3,Participant_Database!$Z6,0),"") ->  | B5: =IF($C5<>"",OFFSET(Participant_Database!$B$3,Participant_Database!$Z6,0),"") ->  | C5: =IF(OFFSET(Participant_Database!$C$3,Participant_Database!$Z6,0)<>"",OFFSET(Participant_Database!$C$3,Participant_Database!$Z6,0),"") ->  | D5: =IF($C5<>"",OFFSET(Participant_Database!$D$3,Participant_Database!$Z6,0),"") ->  | E5: =IF($C5<>"",OFFSET(Participant_Database!$E$3,Participant_Database!$Z6,0),"") ->  | F5: =IF($C5<>"",OFFSET(Participant_Database!$F$3,Participant_Database!$Z6,0),"") ->  | G5: =IF($C5<>"",OFFSET(Participant_Database!$G$3,Participant_Database!$Z6,0),"") ->  | H5: =IF($C5<>"",OFFSET(Participant_Database!$H$3,Participant_Database!$Z6,0),"") ->  | I5: =IF($C5<>"",OFFSET(Participant_Database!$I$3,Participant_Database!$Z6,0),"") ->  | J5: =IF($C5<>"",OFFSET(Participant_Database!$J$3,Participant_Database!$Z6,0),"") ->  | K5: =IF($C5<>"",OFFSET(Participant_Database!$K$3,Participant_Database!$Z6,0),"") ->  | L5: =IF($C5<>"",OFFSET(Participant_Database!$L$3,Participant_Database!$Z6,0),"") ->  | M5: =IF($C5<>"",OFFSET(Participant_Database!$M$3,Participant_Database!$Z6,0),"") ->  | N5: =IF($C5<>"",OFFSET(Participant_Database!$N$3,Participant_Database!$Z6,0),"") ->  | O5: =IF($C5<>"",OFFSET(Participant_Database!$O$3,Participant_Database!$Z6,0),"") ->  | P5: =IF($C5<>"",OFFSET(Participant_Database!$P$3,Participant_Database!$Z6,0),"") ->  | Q5: =IF($C5<>"",OFFSET(Participant_Database!$Q$3,Participant_Database!$Z6,0),"") ->  | R5: =IF($C5<>"",OFFSET(Participant_Database!$R$3,Participant_Database!$Z6,0),"") ->  | S5: =IF($C5<>"",OFFSET(Participant_Database!$S$3,Participant_Database!$Z6,0),"") ->  | T5: =IF($C5<>"",OFFSET(Participant_Database!$T$3,Participant_Database!$Z6,0),"") ->  | U5: =IF($C5<>"",OFFSET(Participant_Database!$U$3,Participant_Database!$Z6,0),"") ->  | V5: =IF($C5<>"",OFFSET(Participant_Database!$V$3,Participant_Database!$Z6,0),"") ->  | W5: =IF($C5<>"",OFFSET(Participant_Database!$W$3,Participant_Database!$Z6,0),"") ->  | X5: =IF(C5<>"",Participant_Database!$Z4,"") -> 
A6: =IF($C6<>"",OFFSET(Participant_Database!$A$3,Participant_Database!$Z7,0),"") ->  | B6: =IF($C6<>"",OFFSET(Participant_Database!$B$3,Participant_Database!$Z7,0),"") ->  | C6: =IF(OFFSET(Participant_Database!$C$3,Participant_Database!$Z7,0)<>"",OFFSET(Participant_Database!$C$3,Participant_Database!$Z7,0),"") ->  | D6: =IF($C6<>"",OFFSET(Participant_Database!$D$3,Participant_Database!$Z7,0),"") ->  | E6: =IF($C6<>"",OFFSET(Participant_Database!$E$3,Participant_Database!$Z7,0),"") ->  | F6: =IF($C6<>"",OFFSET(Participant_Database!$F$3,Participant_Database!$Z7,0),"") ->  | G6: =IF($C6<>"",OFFSET(Participant_Database!$G$3,Participant_Database!$Z7,0),"") ->  | H6: =IF($C6<>"",OFFSET(Participant_Database!$H$3,Participant_Database!$Z7,0),"") ->  | I6: =IF($C6<>"",OFFSET(Participant_Database!$I$3,Participant_Database!$Z7,0),"") ->  | J6: =IF($C6<>"",OFFSET(Participant_Database!$J$3,Participant_Database!$Z7,0),"") ->  | K6: =IF($C6<>"",OFFSET(Participant_Database!$K$3,Participant_Database!$Z7,0),"") ->  | L6: =IF($C6<>"",OFFSET(Participant_Database!$L$3,Participant_Database!$Z7,0),"") ->  | M6: =IF($C6<>"",OFFSET(Participant_Database!$M$3,Participant_Database!$Z7,0),"") ->  | N6: =IF($C6<>"",OFFSET(Participant_Database!$N$3,Participant_Database!$Z7,0),"") ->  | O6: =IF($C6<>"",OFFSET(Participant_Database!$O$3,Participant_Database!$Z7,0),"") ->  | P6: =IF($C6<>"",OFFSET(Participant_Database!$P$3,Participant_Database!$Z7,0),"") ->  | Q6: =IF($C6<>"",OFFSET(Participant_Database!$Q$3,Participant_Database!$Z7,0),"") ->  | R6: =IF($C6<>"",OFFSET(Participant_Database!$R$3,Participant_Database!$Z7,0),"") ->  | S6: =IF($C6<>"",OFFSET(Participant_Database!$S$3,Participant_Database!$Z7,0),"") ->  | T6: =IF($C6<>"",OFFSET(Participant_Database!$T$3,Participant_Database!$Z7,0),"") ->  | U6: =IF($C6<>"",OFFSET(Participant_Database!$U$3,Participant_Database!$Z7,0),"") ->  | V6: =IF($C6<>"",OFFSET(Participant_Database!$V$3,Participant_Database!$Z7,0),"") ->  | W6: =IF($C6<>"",OFFSET(Participant_Database!$W$3,Participant_Database!$Z7,0),"") ->  | X6: =IF(C6<>"",Participant_Database!$Z5,"") -> 
A7: =IF($C7<>"",OFFSET(Participant_Database!$A$3,Participant_Database!$Z8,0),"") ->  | B7: =IF($C7<>"",OFFSET(Participant_Database!$B$3,Participant_Database!$Z8,0),"") ->  | C7: =IF(OFFSET(Participant_Database!$C$3,Participant_Database!$Z8,0)<>"",OFFSET(Participant_Database!$C$3,Participant_Database!$Z8,0),"") ->  | D7: =IF($C7<>"",OFFSET(Participant_Database!$D$3,Participant_Database!$Z8,0),"") ->  | E7: =IF($C7<>"",OFFSET(Participant_Database!$E$3,Participant_Database!$Z8,0),"") ->  | F7: =IF($C7<>"",OFFSET(Participant_Database!$F$3,Participant_Database!$Z8,0),"") ->  | G7: =IF($C7<>"",OFFSET(Participant_Database!$G$3,Participant_Database!$Z8,0),"") ->  | H7: =IF($C7<>"",OFFSET(Participant_Database!$H$3,Participant_Database!$Z8,0),"") ->  | I7: =IF($C7<>"",OFFSET(Participant_Database!$I$3,Participant_Database!$Z8,0),"") ->  | J7: =IF($C7<>"",OFFSET(Participant_Database!$J$3,Participant_Database!$Z8,0),"") ->  | K7: =IF($C7<>"",OFFSET(Participant_Database!$K$3,Participant_Database!$Z8,0),"") ->  | L7: =IF($C7<>"",OFFSET(Participant_Database!$L$3,Participant_Database!$Z8,0),"") ->  | M7: =IF($C7<>"",OFFSET(Participant_Database!$M$3,Participant_Database!$Z8,0),"") ->  | N7: =IF($C7<>"",OFFSET(Participant_Database!$N$3,Participant_Database!$Z8,0),"") ->  | O7: =IF($C7<>"",OFFSET(Participant_Database!$O$3,Participant_Database!$Z8,0),"") ->  | P7: =IF($C7<>"",OFFSET(Participant_Database!$P$3,Participant_Database!$Z8,0),"") ->  | Q7: =IF($C7<>"",OFFSET(Participant_Database!$Q$3,Participant_Database!$Z8,0),"") ->  | R7: =IF($C7<>"",OFFSET(Participant_Database!$R$3,Participant_Database!$Z8,0),"") ->  | S7: =IF($C7<>"",OFFSET(Participant_Database!$S$3,Participant_Database!$Z8,0),"") ->  | T7: =IF($C7<>"",OFFSET(Participant_Database!$T$3,Participant_Database!$Z8,0),"") ->  | U7: =IF($C7<>"",OFFSET(Participant_Database!$U$3,Participant_Database!$Z8,0),"") ->  | V7: =IF($C7<>"",OFFSET(Participant_Database!$V$3,Participant_Database!$Z8,0),"") ->  | W7: =IF($C7<>"",OFFSET(Participant_Database!$W$3,Participant_Database!$Z8,0),"") ->  | X7: =IF(C7<>"",Participant_Database!$Z6,"") -> 
A8: =IF($C8<>"",OFFSET(Participant_Database!$A$3,Participant_Database!$Z9,0),"") ->  | B8: =IF($C8<>"",OFFSET(Participant_Database!$B$3,Participant_Database!$Z9,0),"") ->  | C8: =IF(OFFSET(Participant_Database!$C$3,Participant_Database!$Z9,0)<>"",OFFSET(Participant_Database!$C$3,Participant_Database!$Z9,0),"") ->  | D8: =IF($C8<>"",OFFSET(Participant_Database!$D$3,Participant_Database!$Z9,0),"") ->  | E8: =IF($C8<>"",OFFSET(Participant_Database!$E$3,Participant_Database!$Z9,0),"") ->  | F8: =IF($C8<>"",OFFSET(Participant_Database!$F$3,Participant_Database!$Z9,0),"") ->  | G8: =IF($C8<>"",OFFSET(Participant_Database!$G$3,Participant_Database!$Z9,0),"") ->  | H8: =IF($C8<>"",OFFSET(Participant_Database!$H$3,Participant_Database!$Z9,0),"") ->  | I8: =IF($C8<>"",OFFSET(Participant_Database!$I$3,Participant_Database!$Z9,0),"") ->  | J8: =IF($C8<>"",OFFSET(Participant_Database!$J$3,Participant_Database!$Z9,0),"") ->  | K8: =IF($C8<>"",OFFSET(Participant_Database!$K$3,Participant_Database!$Z9,0),"") ->  | L8: =IF($C8<>"",OFFSET(Participant_Database!$L$3,Participant_Database!$Z9,0),"") ->  | M8: =IF($C8<>"",OFFSET(Participant_Database!$M$3,Participant_Database!$Z9,0),"") ->  | N8: =IF($C8<>"",OFFSET(Participant_Database!$N$3,Participant_Database!$Z9,0),"") ->  | O8: =IF($C8<>"",OFFSET(Participant_Database!$O$3,Participant_Database!$Z9,0),"") ->  | P8: =IF($C8<>"",OFFSET(Participant_Database!$P$3,Participant_Database!$Z9,0),"") ->  | Q8: =IF($C8<>"",OFFSET(Participant_Database!$Q$3,Participant_Database!$Z9,0),"") ->  | R8: =IF($C8<>"",OFFSET(Participant_Database!$R$3,Participant_Database!$Z9,0),"") ->  | S8: =IF($C8<>"",OFFSET(Participant_Database!$S$3,Participant_Database!$Z9,0),"") ->  | T8: =IF($C8<>"",OFFSET(Participant_Database!$T$3,Participant_Database!$Z9,0),"") ->  | U8: =IF($C8<>"",OFFSET(Participant_Database!$U$3,Participant_Database!$Z9,0),"") ->  | V8: =IF($C8<>"",OFFSET(Participant_Database!$V$3,Participant_Database!$Z9,0),"") ->  | W8: =IF($C8<>"",OFFSET(Participant_Database!$W$3,Participant_Database!$Z9,0),"") ->  | X8: =IF(C8<>"",Participant_Database!$Z7,"") -> 
A9: =IF($C9<>"",OFFSET(Participant_Database!$A$3,Participant_Database!$Z10,0),"") ->  | B9: =IF($C9<>"",OFFSET(Participant_Database!$B$3,Participant_Database!$Z10,0),"") ->  | C9: =IF(OFFSET(Participant_Database!$C$3,Participant_Database!$Z10,0)<>"",OFFSET(Participant_Database!$C$3,Participant_Database!$Z10,0),"") ->  | D9: =IF($C9<>"",OFFSET(Participant_Database!$D$3,Participant_Database!$Z10,0),"") ->  | E9: =IF($C9<>"",OFFSET(Participant_Database!$E$3,Participant_Database!$Z10,0),"") ->  | F9: =IF($C9<>"",OFFSET(Participant_Database!$F$3,Participant_Database!$Z10,0),"") ->  | G9: =IF($C9<>"",OFFSET(Participant_Database!$G$3,Participant_Database!$Z10,0),"") ->  | H9: =IF($C9<>"",OFFSET(Participant_Database!$H$3,Participant_Database!$Z10,0),"") ->  | I9: =IF($C9<>"",OFFSET(Participant_Database!$I$3,Participant_Database!$Z10,0),"") ->  | J9: =IF($C9<>"",OFFSET(Participant_Database!$J$3,Participant_Database!$Z10,0),"") ->  | K9: =IF($C9<>"",OFFSET(Participant_Database!$K$3,Participant_Database!$Z10,0),"") ->  | L9: =IF($C9<>"",OFFSET(Participant_Database!$L$3,Participant_Database!$Z10,0),"") ->  | M9: =IF($C9<>"",OFFSET(Participant_Database!$M$3,Participant_Database!$Z10,0),"") ->  | N9: =IF($C9<>"",OFFSET(Participant_Database!$N$3,Participant_Database!$Z10,0),"") ->  | O9: =IF($C9<>"",OFFSET(Participant_Database!$O$3,Participant_Database!$Z10,0),"") ->  | P9: =IF($C9<>"",OFFSET(Participant_Database!$P$3,Participant_Database!$Z10,0),"") ->  | Q9: =IF($C9<>"",OFFSET(Participant_Database!$Q$3,Participant_Database!$Z10,0),"") ->  | R9: =IF($C9<>"",OFFSET(Participant_Database!$R$3,Participant_Database!$Z10,0),"") ->  | S9: =IF($C9<>"",OFFSET(Participant_Database!$S$3,Participant_Database!$Z10,0),"") ->  | T9: =IF($C9<>"",OFFSET(Participant_Database!$T$3,Participant_Database!$Z10,0),"") ->  | U9: =IF($C9<>"",OFFSET(Participant_Database!$U$3,Participant_Database!$Z10,0),"") ->  | V9: =IF($C9<>"",OFFSET(Participant_Database!$V$3,Participant_Database!$Z10,0),"") ->  | W9: =IF($C9<>"",OFFSET(Participant_Database!$W$3,Participant_Database!$Z10,0),"") ->  | X9: =IF(C9<>"",Participant_Database!$Z8,"") -> 
A10: =IF($C10<>"",OFFSET(Participant_Database!$A$3,Participant_Database!$Z11,0),"") ->  | B10: =IF($C10<>"",OFFSET(Participant_Database!$B$3,Participant_Database!$Z11,0),"") ->  | C10: =IF(OFFSET(Participant_Database!$C$3,Participant_Database!$Z11,0)<>"",OFFSET(Participant_Database!$C$3,Participant_Database!$Z11,0),"") ->  | D10: =IF($C10<>"",OFFSET(Participant_Database!$D$3,Participant_Database!$Z11,0),"") ->  | E10: =IF($C10<>"",OFFSET(Participant_Database!$E$3,Participant_Database!$Z11,0),"") ->  | F10: =IF($C10<>"",OFFSET(Participant_Database!$F$3,Participant_Database!$Z11,0),"") ->  | G10: =IF($C10<>"",OFFSET(Participant_Database!$G$3,Participant_Database!$Z11,0),"") ->  | H10: =IF($C10<>"",OFFSET(Participant_Database!$H$3,Participant_Database!$Z11,0),"") ->  | I10: =IF($C10<>"",OFFSET(Participant_Database!$I$3,Participant_Database!$Z11,0),"") ->  | J10: =IF($C10<>"",OFFSET(Participant_Database!$J$3,Participant_Database!$Z11,0),"") ->  | K10: =IF($C10<>"",OFFSET(Participant_Database!$K$3,Participant_Database!$Z11,0),"") ->  | L10: =IF($C10<>"",OFFSET(Participant_Database!$L$3,Participant_Database!$Z11,0),"") ->  | M10: =IF($C10<>"",OFFSET(Participant_Database!$M$3,Participant_Database!$Z11,0),"") ->  | N10: =IF($C10<>"",OFFSET(Participant_Database!$N$3,Participant_Database!$Z11,0),"") ->  | O10: =IF($C10<>"",OFFSET(Participant_Database!$O$3,Participant_Database!$Z11,0),"") ->  | P10: =IF($C10<>"",OFFSET(Participant_Database!$P$3,Participant_Database!$Z11,0),"") ->  | Q10: =IF($C10<>"",OFFSET(Participant_Database!$Q$3,Participant_Database!$Z11,0),"") ->  | R10: =IF($C10<>"",OFFSET(Participant_Database!$R$3,Participant_Database!$Z11,0),"") ->  | S10: =IF($C10<>"",OFFSET(Participant_Database!$S$3,Participant_Database!$Z11,0),"") ->  | T10: =IF($C10<>"",OFFSET(Participant_Database!$T$3,Participant_Database!$Z11,0),"") ->  | U10: =IF($C10<>"",OFFSET(Participant_Database!$U$3,Participant_Database!$Z11,0),"") ->  | V10: =IF($C10<>"",OFFSET(Participant_Database!$V$3,Participant_Database!$Z11,0),"") ->  | W10: =IF($C10<>"",OFFSET(Participant_Database!$W$3,Participant_Database!$Z11,0),"") ->  | X10: =IF(C10<>"",Participant_Database!$Z9,"") -> 
A11: =IF($C11<>"",OFFSET(Participant_Database!$A$3,Participant_Database!$Z12,0),"") ->  | B11: =IF($C11<>"",OFFSET(Participant_Database!$B$3,Participant_Database!$Z12,0),"") ->  | C11: =IF(OFFSET(Participant_Database!$C$3,Participant_Database!$Z12,0)<>"",OFFSET(Participant_Database!$C$3,Participant_Database!$Z12,0),"") ->  | D11: =IF($C11<>"",OFFSET(Participant_Database!$D$3,Participant_Database!$Z12,0),"") ->  | E11: =IF($C11<>"",OFFSET(Participant_Database!$E$3,Participant_Database!$Z12,0),"") ->  | F11: =IF($C11<>"",OFFSET(Participant_Database!$F$3,Participant_Database!$Z12,0),"") ->  | G11: =IF($C11<>"",OFFSET(Participant_Database!$G$3,Participant_Database!$Z12,0),"") ->  | H11: =IF($C11<>"",OFFSET(Participant_Database!$H$3,Participant_Database!$Z12,0),"") ->  | I11: =IF($C11<>"",OFFSET(Participant_Database!$I$3,Participant_Database!$Z12,0),"") ->  | J11: =IF($C11<>"",OFFSET(Participant_Database!$J$3,Participant_Database!$Z12,0),"") ->  | K11: =IF($C11<>"",OFFSET(Participant_Database!$K$3,Participant_Database!$Z12,0),"") ->  | L11: =IF($C11<>"",OFFSET(Participant_Database!$L$3,Participant_Database!$Z12,0),"") ->  | M11: =IF($C11<>"",OFFSET(Participant_Database!$M$3,Participant_Database!$Z12,0),"") ->  | N11: =IF($C11<>"",OFFSET(Participant_Database!$N$3,Participant_Database!$Z12,0),"") ->  | O11: =IF($C11<>"",OFFSET(Participant_Database!$O$3,Participant_Database!$Z12,0),"") ->  | P11: =IF($C11<>"",OFFSET(Participant_Database!$P$3,Participant_Database!$Z12,0),"") ->  | Q11: =IF($C11<>"",OFFSET(Participant_Database!$Q$3,Participant_Database!$Z12,0),"") ->  | R11: =IF($C11<>"",OFFSET(Participant_Database!$R$3,Participant_Database!$Z12,0),"") ->  | S11: =IF($C11<>"",OFFSET(Participant_Database!$S$3,Participant_Database!$Z12,0),"") ->  | T11: =IF($C11<>"",OFFSET(Participant_Database!$T$3,Participant_Database!$Z12,0),"") ->  | U11: =IF($C11<>"",OFFSET(Participant_Database!$U$3,Participant_Database!$Z12,0),"") ->  | V11: =IF($C11<>"",OFFSET(Participant_Database!$V$3,Participant_Database!$Z12,0),"") ->  | W11: =IF($C11<>"",OFFSET(Participant_Database!$W$3,Participant_Database!$Z12,0),"") ->  | X11: =IF(C11<>"",Participant_Database!$Z10,"") -> 
A12: =IF($C12<>"",OFFSET(Participant_Database!$A$3,Participant_Database!$Z13,0),"") ->  | B12: =IF($C12<>"",OFFSET(Participant_Database!$B$3,Participant_Database!$Z13,0),"") ->  | C12: =IF(OFFSET(Participant_Database!$C$3,Participant_Database!$Z13,0)<>"",OFFSET(Participant_Database!$C$3,Participant_Database!$Z13,0),"") ->  | D12: =IF($C12<>"",OFFSET(Participant_Database!$D$3,Participant_Database!$Z13,0),"") ->  | E12: =IF($C12<>"",OFFSET(Participant_Database!$E$3,Participant_Database!$Z13,0),"") ->  | F12: =IF($C12<>"",OFFSET(Participant_Database!$F$3,Participant_Database!$Z13,0),"") ->  | G12: =IF($C12<>"",OFFSET(Participant_Database!$G$3,Participant_Database!$Z13,0),"") ->  | H12: =IF($C12<>"",OFFSET(Participant_Database!$H$3,Participant_Database!$Z13,0),"") ->  | I12: =IF($C12<>"",OFFSET(Participant_Database!$I$3,Participant_Database!$Z13,0),"") ->  | J12: =IF($C12<>"",OFFSET(Participant_Database!$J$3,Participant_Database!$Z13,0),"") ->  | K12: =IF($C12<>"",OFFSET(Participant_Database!$K$3,Participant_Database!$Z13,0),"") ->  | L12: =IF($C12<>"",OFFSET(Participant_Database!$L$3,Participant_Database!$Z13,0),"") ->  | M12: =IF($C12<>"",OFFSET(Participant_Database!$M$3,Participant_Database!$Z13,0),"") ->  | N12: =IF($C12<>"",OFFSET(Participant_Database!$N$3,Participant_Database!$Z13,0),"") ->  | O12: =IF($C12<>"",OFFSET(Participant_Database!$O$3,Participant_Database!$Z13,0),"") ->  | P12: =IF($C12<>"",OFFSET(Participant_Database!$P$3,Participant_Database!$Z13,0),"") ->  | Q12: =IF($C12<>"",OFFSET(Participant_Database!$Q$3,Participant_Database!$Z13,0),"") ->  | R12: =IF($C12<>"",OFFSET(Participant_Database!$R$3,Participant_Database!$Z13,0),"") ->  | S12: =IF($C12<>"",OFFSET(Participant_Database!$S$3,Participant_Database!$Z13,0),"") ->  | T12: =IF($C12<>"",OFFSET(Participant_Database!$T$3,Participant_Database!$Z13,0),"") ->  | U12: =IF($C12<>"",OFFSET(Participant_Database!$U$3,Participant_Database!$Z13,0),"") ->  | V12: =IF($C12<>"",OFFSET(Participant_Database!$V$3,Participant_Database!$Z13,0),"") ->  | W12: =IF($C12<>"",OFFSET(Participant_Database!$W$3,Participant_Database!$Z13,0),"") ->  | X12: =IF(C12<>"",Participant_Database!$Z11,"") -> 
A13: =IF($C13<>"",OFFSET(Participant_Database!$A$3,Participant_Database!$Z14,0),"") ->  | B13: =IF($C13<>"",OFFSET(Participant_Database!$B$3,Participant_Database!$Z14,0),"") ->  | C13: =IF(OFFSET(Participant_Database!$C$3,Participant_Database!$Z14,0)<>"",OFFSET(Participant_Database!$C$3,Participant_Database!$Z14,0),"") ->  | D13: =IF($C13<>"",OFFSET(Participant_Database!$D$3,Participant_Database!$Z14,0),"") ->  | E13: =IF($C13<>"",OFFSET(Participant_Database!$E$3,Participant_Database!$Z14,0),"") ->  | F13: =IF($C13<>"",OFFSET(Participant_Database!$F$3,Participant_Database!$Z14,0),"") ->  | G13: =IF($C13<>"",OFFSET(Participant_Database!$G$3,Participant_Database!$Z14,0),"") ->  | H13: =IF($C13<>"",OFFSET(Participant_Database!$H$3,Participant_Database!$Z14,0),"") ->  | I13: =IF($C13<>"",OFFSET(Participant_Database!$I$3,Participant_Database!$Z14,0),"") ->  | J13: =IF($C13<>"",OFFSET(Participant_Database!$J$3,Participant_Database!$Z14,0),"") ->  | K13: =IF($C13<>"",OFFSET(Participant_Database!$K$3,Participant_Database!$Z14,0),"") ->  | L13: =IF($C13<>"",OFFSET(Participant_Database!$L$3,Participant_Database!$Z14,0),"") ->  | M13: =IF($C13<>"",OFFSET(Participant_Database!$M$3,Participant_Database!$Z14,0),"") ->  | N13: =IF($C13<>"",OFFSET(Participant_Database!$N$3,Participant_Database!$Z14,0),"") ->  | O13: =IF($C13<>"",OFFSET(Participant_Database!$O$3,Participant_Database!$Z14,0),"") ->  | P13: =IF($C13<>"",OFFSET(Participant_Database!$P$3,Participant_Database!$Z14,0),"") ->  | Q13: =IF($C13<>"",OFFSET(Participant_Database!$Q$3,Participant_Database!$Z14,0),"") ->  | R13: =IF($C13<>"",OFFSET(Participant_Database!$R$3,Participant_Database!$Z14,0),"") ->  | S13: =IF($C13<>"",OFFSET(Participant_Database!$S$3,Participant_Database!$Z14,0),"") ->  | T13: =IF($C13<>"",OFFSET(Participant_Database!$T$3,Participant_Database!$Z14,0),"") ->  | U13: =IF($C13<>"",OFFSET(Participant_Database!$U$3,Participant_Database!$Z14,0),"") ->  | V13: =IF($C13<>"",OFFSET(Participant_Database!$V$3,Participant_Database!$Z14,0),"") ->  | W13: =IF($C13<>"",OFFSET(Participant_Database!$W$3,Participant_Database!$Z14,0),"") ->  | X13: =IF(C13<>"",Participant_Database!$Z12,"") -> 
A14: =IF($C14<>"",OFFSET(Participant_Database!$A$3,Participant_Database!$Z15,0),"") ->  | B14: =IF($C14<>"",OFFSET(Participant_Database!$B$3,Participant_Database!$Z15,0),"") ->  | C14: =IF(OFFSET(Participant_Database!$C$3,Participant_Database!$Z15,0)<>"",OFFSET(Participant_Database!$C$3,Participant_Database!$Z15,0),"") ->  | D14: =IF($C14<>"",OFFSET(Participant_Database!$D$3,Participant_Database!$Z15,0),"") ->  | E14: =IF($C14<>"",OFFSET(Participant_Database!$E$3,Participant_Database!$Z15,0),"") ->  | F14: =IF($C14<>"",OFFSET(Participant_Database!$F$3,Participant_Database!$Z15,0),"") ->  | G14: =IF($C14<>"",OFFSET(Participant_Database!$G$3,Participant_Database!$Z15,0),"") ->  | H14: =IF($C14<>"",OFFSET(Participant_Database!$H$3,Participant_Database!$Z15,0),"") ->  | I14: =IF($C14<>"",OFFSET(Participant_Database!$I$3,Participant_Database!$Z15,0),"") ->  | J14: =IF($C14<>"",OFFSET(Participant_Database!$J$3,Participant_Database!$Z15,0),"") ->  | K14: =IF($C14<>"",OFFSET(Participant_Database!$K$3,Participant_Database!$Z15,0),"") ->  | L14: =IF($C14<>"",OFFSET(Participant_Database!$L$3,Participant_Database!$Z15,0),"") ->  | M14: =IF($C14<>"",OFFSET(Participant_Database!$M$3,Participant_Database!$Z15,0),"") ->  | N14: =IF($C14<>"",OFFSET(Participant_Database!$N$3,Participant_Database!$Z15,0),"") ->  | O14: =IF($C14<>"",OFFSET(Participant_Database!$O$3,Participant_Database!$Z15,0),"") ->  | P14: =IF($C14<>"",OFFSET(Participant_Database!$P$3,Participant_Database!$Z15,0),"") ->  | Q14: =IF($C14<>"",OFFSET(Participant_Database!$Q$3,Participant_Database!$Z15,0),"") ->  | R14: =IF($C14<>"",OFFSET(Participant_Database!$R$3,Participant_Database!$Z15,0),"") ->  | S14: =IF($C14<>"",OFFSET(Participant_Database!$S$3,Participant_Database!$Z15,0),"") ->  | T14: =IF($C14<>"",OFFSET(Participant_Database!$T$3,Participant_Database!$Z15,0),"") ->  | U14: =IF($C14<>"",OFFSET(Participant_Database!$U$3,Participant_Database!$Z15,0),"") ->  | V14: =IF($C14<>"",OFFSET(Participant_Database!$V$3,Participant_Database!$Z15,0),"") ->  | W14: =IF($C14<>"",OFFSET(Participant_Database!$W$3,Participant_Database!$Z15,0),"") ->  | X14: =IF(C14<>"",Participant_Database!$Z13,"") -> 
A15: =IF($C15<>"",OFFSET(Participant_Database!$A$3,Participant_Database!$Z16,0),"") ->  | B15: =IF($C15<>"",OFFSET(Participant_Database!$B$3,Participant_Database!$Z16,0),"") ->  | C15: =IF(OFFSET(Participant_Database!$C$3,Participant_Database!$Z16,0)<>"",OFFSET(Participant_Database!$C$3,Participant_Database!$Z16,0),"") ->  | D15: =IF($C15<>"",OFFSET(Participant_Database!$D$3,Participant_Database!$Z16,0),"") ->  | E15: =IF($C15<>"",OFFSET(Participant_Database!$E$3,Participant_Database!$Z16,0),"") ->  | F15: =IF($C15<>"",OFFSET(Participant_Database!$F$3,Participant_Database!$Z16,0),"") ->  | G15: =IF($C15<>"",OFFSET(Participant_Database!$G$3,Participant_Database!$Z16,0),"") ->  | H15: =IF($C15<>"",OFFSET(Participant_Database!$H$3,Participant_Database!$Z16,0),"") ->  | I15: =IF($C15<>"",OFFSET(Participant_Database!$I$3,Participant_Database!$Z16,0),"") ->  | J15: =IF($C15<>"",OFFSET(Participant_Database!$J$3,Participant_Database!$Z16,0),"") ->  | K15: =IF($C15<>"",OFFSET(Participant_Database!$K$3,Participant_Database!$Z16,0),"") ->  | L15: =IF($C15<>"",OFFSET(Participant_Database!$L$3,Participant_Database!$Z16,0),"") ->  | M15: =IF($C15<>"",OFFSET(Participant_Database!$M$3,Participant_Database!$Z16,0),"") ->  | N15: =IF($C15<>"",OFFSET(Participant_Database!$N$3,Participant_Database!$Z16,0),"") ->  | O15: =IF($C15<>"",OFFSET(Participant_Database!$O$3,Participant_Database!$Z16,0),"") ->  | P15: =IF($C15<>"",OFFSET(Participant_Database!$P$3,Participant_Database!$Z16,0),"") ->  | Q15: =IF($C15<>"",OFFSET(Participant_Database!$Q$3,Participant_Database!$Z16,0),"") ->  | R15: =IF($C15<>"",OFFSET(Participant_Database!$R$3,Participant_Database!$Z16,0),"") ->  | S15: =IF($C15<>"",OFFSET(Participant_Database!$S$3,Participant_Database!$Z16,0),"") ->  | T15: =IF($C15<>"",OFFSET(Participant_Database!$T$3,Participant_Database!$Z16,0),"") ->  | U15: =IF($C15<>"",OFFSET(Participant_Database!$U$3,Participant_Database!$Z16,0),"") ->  | V15: =IF($C15<>"",OFFSET(Participant_Database!$V$3,Participant_Database!$Z16,0),"") ->  | W15: =IF($C15<>"",OFFSET(Participant_Database!$W$3,Participant_Database!$Z16,0),"") ->  | X15: =IF(C15<>"",Participant_Database!$Z14,"") -> 
A16: =IF($C16<>"",OFFSET(Participant_Database!$A$3,Participant_Database!$Z17,0),"") ->  | B16: =IF($C16<>"",OFFSET(Participant_Database!$B$3,Participant_Database!$Z17,0),"") ->  | C16: =IF(OFFSET(Participant_Database!$C$3,Participant_Database!$Z17,0)<>"",OFFSET(Participant_Database!$C$3,Participant_Database!$Z17,0),"") ->  | D16: =IF($C16<>"",OFFSET(Participant_Database!$D$3,Participant_Database!$Z17,0),"") ->  | E16: =IF($C16<>"",OFFSET(Participant_Database!$E$3,Participant_Database!$Z17,0),"") ->  | F16: =IF($C16<>"",OFFSET(Participant_Database!$F$3,Participant_Database!$Z17,0),"") ->  | G16: =IF($C16<>"",OFFSET(Participant_Database!$G$3,Participant_Database!$Z17,0),"") ->  | H16: =IF($C16<>"",OFFSET(Participant_Database!$H$3,Participant_Database!$Z17,0),"") ->  | I16: =IF($C16<>"",OFFSET(Participant_Database!$I$3,Participant_Database!$Z17,0),"") ->  | J16: =IF($C16<>"",OFFSET(Participant_Database!$J$3,Participant_Database!$Z17,0),"") ->  | K16: =IF($C16<>"",OFFSET(Participant_Database!$K$3,Participant_Database!$Z17,0),"") ->  | L16: =IF($C16<>"",OFFSET(Participant_Database!$L$3,Participant_Database!$Z17,0),"") ->  | M16: =IF($C16<>"",OFFSET(Participant_Database!$M$3,Participant_Database!$Z17,0),"") ->  | N16: =IF($C16<>"",OFFSET(Participant_Database!$N$3,Participant_Database!$Z17,0),"") ->  | O16: =IF($C16<>"",OFFSET(Participant_Database!$O$3,Participant_Database!$Z17,0),"") ->  | P16: =IF($C16<>"",OFFSET(Participant_Database!$P$3,Participant_Database!$Z17,0),"") ->  | Q16: =IF($C16<>"",OFFSET(Participant_Database!$Q$3,Participant_Database!$Z17,0),"") ->  | R16: =IF($C16<>"",OFFSET(Participant_Database!$R$3,Participant_Database!$Z17,0),"") ->  | S16: =IF($C16<>"",OFFSET(Participant_Database!$S$3,Participant_Database!$Z17,0),"") ->  | T16: =IF($C16<>"",OFFSET(Participant_Database!$T$3,Participant_Database!$Z17,0),"") ->  | U16: =IF($C16<>"",OFFSET(Participant_Database!$U$3,Participant_Database!$Z17,0),"") ->  | V16: =IF($C16<>"",OFFSET(Participant_Database!$V$3,Participant_Database!$Z17,0),"") ->  | W16: =IF($C16<>"",OFFSET(Participant_Database!$W$3,Participant_Database!$Z17,0),"") ->  | X16: =IF(C16<>"",Participant_Database!$Z15,"") -> 
A17: =IF($C17<>"",OFFSET(Participant_Database!$A$3,Participant_Database!$Z18,0),"") ->  | B17: =IF($C17<>"",OFFSET(Participant_Database!$B$3,Participant_Database!$Z18,0),"") ->  | C17: =IF(OFFSET(Participant_Database!$C$3,Participant_Database!$Z18,0)<>"",OFFSET(Participant_Database!$C$3,Participant_Database!$Z18,0),"") ->  | D17: =IF($C17<>"",OFFSET(Participant_Database!$D$3,Participant_Database!$Z18,0),"") ->  | E17: =IF($C17<>"",OFFSET(Participant_Database!$E$3,Participant_Database!$Z18,0),"") ->  | F17: =IF($C17<>"",OFFSET(Participant_Database!$F$3,Participant_Database!$Z18,0),"") ->  | G17: =IF($C17<>"",OFFSET(Participant_Database!$G$3,Participant_Database!$Z18,0),"") ->  | H17: =IF($C17<>"",OFFSET(Participant_Database!$H$3,Participant_Database!$Z18,0),"") ->  | I17: =IF($C17<>"",OFFSET(Participant_Database!$I$3,Participant_Database!$Z18,0),"") ->  | J17: =IF($C17<>"",OFFSET(Participant_Database!$J$3,Participant_Database!$Z18,0),"") ->  | K17: =IF($C17<>"",OFFSET(Participant_Database!$K$3,Participant_Database!$Z18,0),"") ->  | L17: =IF($C17<>"",OFFSET(Participant_Database!$L$3,Participant_Database!$Z18,0),"") ->  | M17: =IF($C17<>"",OFFSET(Participant_Database!$M$3,Participant_Database!$Z18,0),"") ->  | N17: =IF($C17<>"",OFFSET(Participant_Database!$N$3,Participant_Database!$Z18,0),"") ->  | O17: =IF($C17<>"",OFFSET(Participant_Database!$O$3,Participant_Database!$Z18,0),"") ->  | P17: =IF($C17<>"",OFFSET(Participant_Database!$P$3,Participant_Database!$Z18,0),"") ->  | Q17: =IF($C17<>"",OFFSET(Participant_Database!$Q$3,Participant_Database!$Z18,0),"") ->  | R17: =IF($C17<>"",OFFSET(Participant_Database!$R$3,Participant_Database!$Z18,0),"") ->  | S17: =IF($C17<>"",OFFSET(Participant_Database!$S$3,Participant_Database!$Z18,0),"") ->  | T17: =IF($C17<>"",OFFSET(Participant_Database!$T$3,Participant_Database!$Z18,0),"") ->  | U17: =IF($C17<>"",OFFSET(Participant_Database!$U$3,Participant_Database!$Z18,0),"") ->  | V17: =IF($C17<>"",OFFSET(Participant_Database!$V$3,Participant_Database!$Z18,0),"") ->  | W17: =IF($C17<>"",OFFSET(Participant_Database!$W$3,Participant_Database!$Z18,0),"") ->  | X17: =IF(C17<>"",Participant_Database!$Z16,"") -> 
A18: =IF($C18<>"",OFFSET(Participant_Database!$A$3,Participant_Database!$Z19,0),"") ->  | B18: =IF($C18<>"",OFFSET(Participant_Database!$B$3,Participant_Database!$Z19,0),"") ->  | C18: =IF(OFFSET(Participant_Database!$C$3,Participant_Database!$Z19,0)<>"",OFFSET(Participant_Database!$C$3,Participant_Database!$Z19,0),"") ->  | D18: =IF($C18<>"",OFFSET(Participant_Database!$D$3,Participant_Database!$Z19,0),"") ->  | E18: =IF($C18<>"",OFFSET(Participant_Database!$E$3,Participant_Database!$Z19,0),"") ->  | F18: =IF($C18<>"",OFFSET(Participant_Database!$F$3,Participant_Database!$Z19,0),"") ->  | G18: =IF($C18<>"",OFFSET(Participant_Database!$G$3,Participant_Database!$Z19,0),"") ->  | H18: =IF($C18<>"",OFFSET(Participant_Database!$H$3,Participant_Database!$Z19,0),"") ->  | I18: =IF($C18<>"",OFFSET(Participant_Database!$I$3,Participant_Database!$Z19,0),"") ->  | J18: =IF($C18<>"",OFFSET(Participant_Database!$J$3,Participant_Database!$Z19,0),"") ->  | K18: =IF($C18<>"",OFFSET(Participant_Database!$K$3,Participant_Database!$Z19,0),"") ->  | L18: =IF($C18<>"",OFFSET(Participant_Database!$L$3,Participant_Database!$Z19,0),"") ->  | M18: =IF($C18<>"",OFFSET(Participant_Database!$M$3,Participant_Database!$Z19,0),"") ->  | N18: =IF($C18<>"",OFFSET(Participant_Database!$N$3,Participant_Database!$Z19,0),"") ->  | O18: =IF($C18<>"",OFFSET(Participant_Database!$O$3,Participant_Database!$Z19,0),"") ->  | P18: =IF($C18<>"",OFFSET(Participant_Database!$P$3,Participant_Database!$Z19,0),"") ->  | Q18: =IF($C18<>"",OFFSET(Participant_Database!$Q$3,Participant_Database!$Z19,0),"") ->  | R18: =IF($C18<>"",OFFSET(Participant_Database!$R$3,Participant_Database!$Z19,0),"") ->  | S18: =IF($C18<>"",OFFSET(Participant_Database!$S$3,Participant_Database!$Z19,0),"") ->  | T18: =IF($C18<>"",OFFSET(Participant_Database!$T$3,Participant_Database!$Z19,0),"") ->  | U18: =IF($C18<>"",OFFSET(Participant_Database!$U$3,Participant_Database!$Z19,0),"") ->  | V18: =IF($C18<>"",OFFSET(Participant_Database!$V$3,Participant_Database!$Z19,0),"") ->  | W18: =IF($C18<>"",OFFSET(Participant_Database!$W$3,Participant_Database!$Z19,0),"") ->  | X18: =IF(C18<>"",Participant_Database!$Z17,"") -> 
A19: =IF($C19<>"",OFFSET(Participant_Database!$A$3,Participant_Database!$Z20,0),"") ->  | B19: =IF($C19<>"",OFFSET(Participant_Database!$B$3,Participant_Database!$Z20,0),"") ->  | C19: =IF(OFFSET(Participant_Database!$C$3,Participant_Database!$Z20,0)<>"",OFFSET(Participant_Database!$C$3,Participant_Database!$Z20,0),"") ->  | D19: =IF($C19<>"",OFFSET(Participant_Database!$D$3,Participant_Database!$Z20,0),"") ->  | E19: =IF($C19<>"",OFFSET(Participant_Database!$E$3,Participant_Database!$Z20,0),"") ->  | F19: =IF($C19<>"",OFFSET(Participant_Database!$F$3,Participant_Database!$Z20,0),"") ->  | G19: =IF($C19<>"",OFFSET(Participant_Database!$G$3,Participant_Database!$Z20,0),"") ->  | H19: =IF($C19<>"",OFFSET(Participant_Database!$H$3,Participant_Database!$Z20,0),"") ->  | I19: =IF($C19<>"",OFFSET(Participant_Database!$I$3,Participant_Database!$Z20,0),"") ->  | J19: =IF($C19<>"",OFFSET(Participant_Database!$J$3,Participant_Database!$Z20,0),"") ->  | K19: =IF($C19<>"",OFFSET(Participant_Database!$K$3,Participant_Database!$Z20,0),"") ->  | L19: =IF($C19<>"",OFFSET(Participant_Database!$L$3,Participant_Database!$Z20,0),"") ->  | M19: =IF($C19<>"",OFFSET(Participant_Database!$M$3,Participant_Database!$Z20,0),"") ->  | N19: =IF($C19<>"",OFFSET(Participant_Database!$N$3,Participant_Database!$Z20,0),"") ->  | O19: =IF($C19<>"",OFFSET(Participant_Database!$O$3,Participant_Database!$Z20,0),"") ->  | P19: =IF($C19<>"",OFFSET(Participant_Database!$P$3,Participant_Database!$Z20,0),"") ->  | Q19: =IF($C19<>"",OFFSET(Participant_Database!$Q$3,Participant_Database!$Z20,0),"") ->  | R19: =IF($C19<>"",OFFSET(Participant_Database!$R$3,Participant_Database!$Z20,0),"") ->  | S19: =IF($C19<>"",OFFSET(Participant_Database!$S$3,Participant_Database!$Z20,0),"") ->  | T19: =IF($C19<>"",OFFSET(Participant_Database!$T$3,Participant_Database!$Z20,0),"") ->  | U19: =IF($C19<>"",OFFSET(Participant_Database!$U$3,Participant_Database!$Z20,0),"") ->  | V19: =IF($C19<>"",OFFSET(Participant_Database!$V$3,Participant_Database!$Z20,0),"") ->  | W19: =IF($C19<>"",OFFSET(Participant_Database!$W$3,Participant_Database!$Z20,0),"") ->  | X19: =IF(C19<>"",Participant_Database!$Z18,"") -> 
A20: =IF($C20<>"",OFFSET(Participant_Database!$A$3,Participant_Database!$Z21,0),"") ->  | B20: =IF($C20<>"",OFFSET(Participant_Database!$B$3,Participant_Database!$Z21,0),"") ->  | C20: =IF(OFFSET(Participant_Database!$C$3,Participant_Database!$Z21,0)<>"",OFFSET(Participant_Database!$C$3,Participant_Database!$Z21,0),"") ->  | D20: =IF($C20<>"",OFFSET(Participant_Database!$D$3,Participant_Database!$Z21,0),"") ->  | E20: =IF($C20<>"",OFFSET(Participant_Database!$E$3,Participant_Database!$Z21,0),"") ->  | F20: =IF($C20<>"",OFFSET(Participant_Database!$F$3,Participant_Database!$Z21,0),"") ->  | G20: =IF($C20<>"",OFFSET(Participant_Database!$G$3,Participant_Database!$Z21,0),"") ->  | H20: =IF($C20<>"",OFFSET(Participant_Database!$H$3,Participant_Database!$Z21,0),"") ->  | I20: =IF($C20<>"",OFFSET(Participant_Database!$I$3,Participant_Database!$Z21,0),"") ->  | J20: =IF($C20<>"",OFFSET(Participant_Database!$J$3,Participant_Database!$Z21,0),"") ->  | K20: =IF($C20<>"",OFFSET(Participant_Database!$K$3,Participant_Database!$Z21,0),"") ->  | L20: =IF($C20<>"",OFFSET(Participant_Database!$L$3,Participant_Database!$Z21,0),"") ->  | M20: =IF($C20<>"",OFFSET(Participant_Database!$M$3,Participant_Database!$Z21,0),"") ->  | N20: =IF($C20<>"",OFFSET(Participant_Database!$N$3,Participant_Database!$Z21,0),"") ->  | O20: =IF($C20<>"",OFFSET(Participant_Database!$O$3,Participant_Database!$Z21,0),"") ->  | P20: =IF($C20<>"",OFFSET(Participant_Database!$P$3,Participant_Database!$Z21,0),"") ->  | Q20: =IF($C20<>"",OFFSET(Participant_Database!$Q$3,Participant_Database!$Z21,0),"") ->  | R20: =IF($C20<>"",OFFSET(Participant_Database!$R$3,Participant_Database!$Z21,0),"") ->  | S20: =IF($C20<>"",OFFSET(Participant_Database!$S$3,Participant_Database!$Z21,0),"") ->  | T20: =IF($C20<>"",OFFSET(Participant_Database!$T$3,Participant_Database!$Z21,0),"") ->  | U20: =IF($C20<>"",OFFSET(Participant_Database!$U$3,Participant_Database!$Z21,0),"") ->  | V20: =IF($C20<>"",OFFSET(Participant_Database!$V$3,Participant_Database!$Z21,0),"") ->  | W20: =IF($C20<>"",OFFSET(Participant_Database!$W$3,Participant_Database!$Z21,0),"") ->  | X20: =IF(C20<>"",Participant_Database!$Z19,"") -> 
A21: =IF($C21<>"",OFFSET(Participant_Database!$A$3,Participant_Database!$Z22,0),"") ->  | B21: =IF($C21<>"",OFFSET(Participant_Database!$B$3,Participant_Database!$Z22,0),"") ->  | C21: =IF(OFFSET(Participant_Database!$C$3,Participant_Database!$Z22,0)<>"",OFFSET(Participant_Database!$C$3,Participant_Database!$Z22,0),"") ->  | D21: =IF($C21<>"",OFFSET(Participant_Database!$D$3,Participant_Database!$Z22,0),"") ->  | E21: =IF($C21<>"",OFFSET(Participant_Database!$E$3,Participant_Database!$Z22,0),"") ->  | F21: =IF($C21<>"",OFFSET(Participant_Database!$F$3,Participant_Database!$Z22,0),"") ->  | G21: =IF($C21<>"",OFFSET(Participant_Database!$G$3,Participant_Database!$Z22,0),"") ->  | H21: =IF($C21<>"",OFFSET(Participant_Database!$H$3,Participant_Database!$Z22,0),"") ->  | I21: =IF($C21<>"",OFFSET(Participant_Database!$I$3,Participant_Database!$Z22,0),"") ->  | J21: =IF($C21<>"",OFFSET(Participant_Database!$J$3,Participant_Database!$Z22,0),"") ->  | K21: =IF($C21<>"",OFFSET(Participant_Database!$K$3,Participant_Database!$Z22,0),"") ->  | L21: =IF($C21<>"",OFFSET(Participant_Database!$L$3,Participant_Database!$Z22,0),"") ->  | M21: =IF($C21<>"",OFFSET(Participant_Database!$M$3,Participant_Database!$Z22,0),"") ->  | N21: =IF($C21<>"",OFFSET(Participant_Database!$N$3,Participant_Database!$Z22,0),"") ->  | O21: =IF($C21<>"",OFFSET(Participant_Database!$O$3,Participant_Database!$Z22,0),"") ->  | P21: =IF($C21<>"",OFFSET(Participant_Database!$P$3,Participant_Database!$Z22,0),"") ->  | Q21: =IF($C21<>"",OFFSET(Participant_Database!$Q$3,Participant_Database!$Z22,0),"") ->  | R21: =IF($C21<>"",OFFSET(Participant_Database!$R$3,Participant_Database!$Z22,0),"") ->  | S21: =IF($C21<>"",OFFSET(Participant_Database!$S$3,Participant_Database!$Z22,0),"") ->  | T21: =IF($C21<>"",OFFSET(Participant_Database!$T$3,Participant_Database!$Z22,0),"") ->  | U21: =IF($C21<>"",OFFSET(Participant_Database!$U$3,Participant_Database!$Z22,0),"") ->  | V21: =IF($C21<>"",OFFSET(Participant_Database!$V$3,Participant_Database!$Z22,0),"") ->  | W21: =IF($C21<>"",OFFSET(Participant_Database!$W$3,Participant_Database!$Z22,0),"") ->  | X21: =IF(C21<>"",Participant_Database!$Z20,"") -> 
A22: =IF($C22<>"",OFFSET(Participant_Database!$A$3,Participant_Database!$Z23,0),"") ->  | B22: =IF($C22<>"",OFFSET(Participant_Database!$B$3,Participant_Database!$Z23,0),"") ->  | C22: =IF(OFFSET(Participant_Database!$C$3,Participant_Database!$Z23,0)<>"",OFFSET(Participant_Database!$C$3,Participant_Database!$Z23,0),"") ->  | D22: =IF($C22<>"",OFFSET(Participant_Database!$D$3,Participant_Database!$Z23,0),"") ->  | E22: =IF($C22<>"",OFFSET(Participant_Database!$E$3,Participant_Database!$Z23,0),"") ->  | F22: =IF($C22<>"",OFFSET(Participant_Database!$F$3,Participant_Database!$Z23,0),"") ->  | G22: =IF($C22<>"",OFFSET(Participant_Database!$G$3,Participant_Database!$Z23,0),"") ->  | H22: =IF($C22<>"",OFFSET(Participant_Database!$H$3,Participant_Database!$Z23,0),"") ->  | I22: =IF($C22<>"",OFFSET(Participant_Database!$I$3,Participant_Database!$Z23,0),"") ->  | J22: =IF($C22<>"",OFFSET(Participant_Database!$J$3,Participant_Database!$Z23,0),"") ->  | K22: =IF($C22<>"",OFFSET(Participant_Database!$K$3,Participant_Database!$Z23,0),"") ->  | L22: =IF($C22<>"",OFFSET(Participant_Database!$L$3,Participant_Database!$Z23,0),"") ->  | M22: =IF($C22<>"",OFFSET(Participant_Database!$M$3,Participant_Database!$Z23,0),"") ->  | N22: =IF($C22<>"",OFFSET(Participant_Database!$N$3,Participant_Database!$Z23,0),"") ->  | O22: =IF($C22<>"",OFFSET(Participant_Database!$O$3,Participant_Database!$Z23,0),"") ->  | P22: =IF($C22<>"",OFFSET(Participant_Database!$P$3,Participant_Database!$Z23,0),"") ->  | Q22: =IF($C22<>"",OFFSET(Participant_Database!$Q$3,Participant_Database!$Z23,0),"") ->  | R22: =IF($C22<>"",OFFSET(Participant_Database!$R$3,Participant_Database!$Z23,0),"") ->  | S22: =IF($C22<>"",OFFSET(Participant_Database!$S$3,Participant_Database!$Z23,0),"") ->  | T22: =IF($C22<>"",OFFSET(Participant_Database!$T$3,Participant_Database!$Z23,0),"") ->  | U22: =IF($C22<>"",OFFSET(Participant_Database!$U$3,Participant_Database!$Z23,0),"") ->  | V22: =IF($C22<>"",OFFSET(Participant_Database!$V$3,Participant_Database!$Z23,0),"") ->  | W22: =IF($C22<>"",OFFSET(Participant_Database!$W$3,Participant_Database!$Z23,0),"") ->  | X22: =IF(C22<>"",Participant_Database!$Z21,"") -> 
A23: =IF($C23<>"",OFFSET(Participant_Database!$A$3,Participant_Database!$Z24,0),"") ->  | B23: =IF($C23<>"",OFFSET(Participant_Database!$B$3,Participant_Database!$Z24,0),"") ->  | C23: =IF(OFFSET(Participant_Database!$C$3,Participant_Database!$Z24,0)<>"",OFFSET(Participant_Database!$C$3,Participant_Database!$Z24,0),"") ->  | D23: =IF($C23<>"",OFFSET(Participant_Database!$D$3,Participant_Database!$Z24,0),"") ->  | E23: =IF($C23<>"",OFFSET(Participant_Database!$E$3,Participant_Database!$Z24,0),"") ->  | F23: =IF($C23<>"",OFFSET(Participant_Database!$F$3,Participant_Database!$Z24,0),"") ->  | G23: =IF($C23<>"",OFFSET(Participant_Database!$G$3,Participant_Database!$Z24,0),"") ->  | H23: =IF($C23<>"",OFFSET(Participant_Database!$H$3,Participant_Database!$Z24,0),"") ->  | I23: =IF($C23<>"",OFFSET(Participant_Database!$I$3,Participant_Database!$Z24,0),"") ->  | J23: =IF($C23<>"",OFFSET(Participant_Database!$J$3,Participant_Database!$Z24,0),"") ->  | K23: =IF($C23<>"",OFFSET(Participant_Database!$K$3,Participant_Database!$Z24,0),"") ->  | L23: =IF($C23<>"",OFFSET(Participant_Database!$L$3,Participant_Database!$Z24,0),"") ->  | M23: =IF($C23<>"",OFFSET(Participant_Database!$M$3,Participant_Database!$Z24,0),"") ->  | N23: =IF($C23<>"",OFFSET(Participant_Database!$N$3,Participant_Database!$Z24,0),"") ->  | O23: =IF($C23<>"",OFFSET(Participant_Database!$O$3,Participant_Database!$Z24,0),"") ->  | P23: =IF($C23<>"",OFFSET(Participant_Database!$P$3,Participant_Database!$Z24,0),"") ->  | Q23: =IF($C23<>"",OFFSET(Participant_Database!$Q$3,Participant_Database!$Z24,0),"") ->  | R23: =IF($C23<>"",OFFSET(Participant_Database!$R$3,Participant_Database!$Z24,0),"") ->  | S23: =IF($C23<>"",OFFSET(Participant_Database!$S$3,Participant_Database!$Z24,0),"") ->  | T23: =IF($C23<>"",OFFSET(Participant_Database!$T$3,Participant_Database!$Z24,0),"") ->  | U23: =IF($C23<>"",OFFSET(Participant_Database!$U$3,Participant_Database!$Z24,0),"") ->  | V23: =IF($C23<>"",OFFSET(Participant_Database!$V$3,Participant_Database!$Z24,0),"") ->  | W23: =IF($C23<>"",OFFSET(Participant_Database!$W$3,Participant_Database!$Z24,0),"") ->  | X23: =IF(C23<>"",Participant_Database!$Z22,"") -> 
A24: =IF($C24<>"",OFFSET(Participant_Database!$A$3,Participant_Database!$Z25,0),"") ->  | B24: =IF($C24<>"",OFFSET(Participant_Database!$B$3,Participant_Database!$Z25,0),"") ->  | C24: =IF(OFFSET(Participant_Database!$C$3,Participant_Database!$Z25,0)<>"",OFFSET(Participant_Database!$C$3,Participant_Database!$Z25,0),"") ->  | D24: =IF($C24<>"",OFFSET(Participant_Database!$D$3,Participant_Database!$Z25,0),"") ->  | E24: =IF($C24<>"",OFFSET(Participant_Database!$E$3,Participant_Database!$Z25,0),"") ->  | F24: =IF($C24<>"",OFFSET(Participant_Database!$F$3,Participant_Database!$Z25,0),"") ->  | G24: =IF($C24<>"",OFFSET(Participant_Database!$G$3,Participant_Database!$Z25,0),"") ->  | H24: =IF($C24<>"",OFFSET(Participant_Database!$H$3,Participant_Database!$Z25,0),"") ->  | I24: =IF($C24<>"",OFFSET(Participant_Database!$I$3,Participant_Database!$Z25,0),"") ->  | J24: =IF($C24<>"",OFFSET(Participant_Database!$J$3,Participant_Database!$Z25,0),"") ->  | K24: =IF($C24<>"",OFFSET(Participant_Database!$K$3,Participant_Database!$Z25,0),"") ->  | L24: =IF($C24<>"",OFFSET(Participant_Database!$L$3,Participant_Database!$Z25,0),"") ->  | M24: =IF($C24<>"",OFFSET(Participant_Database!$M$3,Participant_Database!$Z25,0),"") ->  | N24: =IF($C24<>"",OFFSET(Participant_Database!$N$3,Participant_Database!$Z25,0),"") ->  | O24: =IF($C24<>"",OFFSET(Participant_Database!$O$3,Participant_Database!$Z25,0),"") ->  | P24: =IF($C24<>"",OFFSET(Participant_Database!$P$3,Participant_Database!$Z25,0),"") ->  | Q24: =IF($C24<>"",OFFSET(Participant_Database!$Q$3,Participant_Database!$Z25,0),"") ->  | R24: =IF($C24<>"",OFFSET(Participant_Database!$R$3,Participant_Database!$Z25,0),"") ->  | S24: =IF($C24<>"",OFFSET(Participant_Database!$S$3,Participant_Database!$Z25,0),"") ->  | T24: =IF($C24<>"",OFFSET(Participant_Database!$T$3,Participant_Database!$Z25,0),"") ->  | U24: =IF($C24<>"",OFFSET(Participant_Database!$U$3,Participant_Database!$Z25,0),"") ->  | V24: =IF($C24<>"",OFFSET(Participant_Database!$V$3,Participant_Database!$Z25,0),"") ->  | W24: =IF($C24<>"",OFFSET(Participant_Database!$W$3,Participant_Database!$Z25,0),"") ->  | X24: =IF(C24<>"",Participant_Database!$Z23,"") -> 
A25: =IF($C25<>"",OFFSET(Participant_Database!$A$3,Participant_Database!$Z26,0),"") ->  | B25: =IF($C25<>"",OFFSET(Participant_Database!$B$3,Participant_Database!$Z26,0),"") ->  | C25: =IF(OFFSET(Participant_Database!$C$3,Participant_Database!$Z26,0)<>"",OFFSET(Participant_Database!$C$3,Participant_Database!$Z26,0),"") ->  | D25: =IF($C25<>"",OFFSET(Participant_Database!$D$3,Participant_Database!$Z26,0),"") ->  | E25: =IF($C25<>"",OFFSET(Participant_Database!$E$3,Participant_Database!$Z26,0),"") ->  | F25: =IF($C25<>"",OFFSET(Participant_Database!$F$3,Participant_Database!$Z26,0),"") ->  | G25: =IF($C25<>"",OFFSET(Participant_Database!$G$3,Participant_Database!$Z26,0),"") ->  | H25: =IF($C25<>"",OFFSET(Participant_Database!$H$3,Participant_Database!$Z26,0),"") ->  | I25: =IF($C25<>"",OFFSET(Participant_Database!$I$3,Participant_Database!$Z26,0),"") ->  | J25: =IF($C25<>"",OFFSET(Participant_Database!$J$3,Participant_Database!$Z26,0),"") ->  | K25: =IF($C25<>"",OFFSET(Participant_Database!$K$3,Participant_Database!$Z26,0),"") ->  | L25: =IF($C25<>"",OFFSET(Participant_Database!$L$3,Participant_Database!$Z26,0),"") ->  | M25: =IF($C25<>"",OFFSET(Participant_Database!$M$3,Participant_Database!$Z26,0),"") ->  | N25: =IF($C25<>"",OFFSET(Participant_Database!$N$3,Participant_Database!$Z26,0),"") ->  | O25: =IF($C25<>"",OFFSET(Participant_Database!$O$3,Participant_Database!$Z26,0),"") ->  | P25: =IF($C25<>"",OFFSET(Participant_Database!$P$3,Participant_Database!$Z26,0),"") ->  | Q25: =IF($C25<>"",OFFSET(Participant_Database!$Q$3,Participant_Database!$Z26,0),"") ->  | R25: =IF($C25<>"",OFFSET(Participant_Database!$R$3,Participant_Database!$Z26,0),"") ->  | S25: =IF($C25<>"",OFFSET(Participant_Database!$S$3,Participant_Database!$Z26,0),"") ->  | T25: =IF($C25<>"",OFFSET(Participant_Database!$T$3,Participant_Database!$Z26,0),"") ->  | U25: =IF($C25<>"",OFFSET(Participant_Database!$U$3,Participant_Database!$Z26,0),"") ->  | V25: =IF($C25<>"",OFFSET(Participant_Database!$V$3,Participant_Database!$Z26,0),"") ->  | W25: =IF($C25<>"",OFFSET(Participant_Database!$W$3,Participant_Database!$Z26,0),"") ->  | X25: =IF(C25<>"",Participant_Database!$Z24,"") -> 
A26: =IF($C26<>"",OFFSET(Participant_Database!$A$3,Participant_Database!$Z27,0),"") ->  | B26: =IF($C26<>"",OFFSET(Participant_Database!$B$3,Participant_Database!$Z27,0),"") ->  | C26: =IF(OFFSET(Participant_Database!$C$3,Participant_Database!$Z27,0)<>"",OFFSET(Participant_Database!$C$3,Participant_Database!$Z27,0),"") ->  | D26: =IF($C26<>"",OFFSET(Participant_Database!$D$3,Participant_Database!$Z27,0),"") ->  | E26: =IF($C26<>"",OFFSET(Participant_Database!$E$3,Participant_Database!$Z27,0),"") ->  | F26: =IF($C26<>"",OFFSET(Participant_Database!$F$3,Participant_Database!$Z27,0),"") ->  | G26: =IF($C26<>"",OFFSET(Participant_Database!$G$3,Participant_Database!$Z27,0),"") ->  | H26: =IF($C26<>"",OFFSET(Participant_Database!$H$3,Participant_Database!$Z27,0),"") ->  | I26: =IF($C26<>"",OFFSET(Participant_Database!$I$3,Participant_Database!$Z27,0),"") ->  | J26: =IF($C26<>"",OFFSET(Participant_Database!$J$3,Participant_Database!$Z27,0),"") ->  | K26: =IF($C26<>"",OFFSET(Participant_Database!$K$3,Participant_Database!$Z27,0),"") ->  | L26: =IF($C26<>"",OFFSET(Participant_Database!$L$3,Participant_Database!$Z27,0),"") ->  | M26: =IF($C26<>"",OFFSET(Participant_Database!$M$3,Participant_Database!$Z27,0),"") ->  | N26: =IF($C26<>"",OFFSET(Participant_Database!$N$3,Participant_Database!$Z27,0),"") ->  | O26: =IF($C26<>"",OFFSET(Participant_Database!$O$3,Participant_Database!$Z27,0),"") ->  | P26: =IF($C26<>"",OFFSET(Participant_Database!$P$3,Participant_Database!$Z27,0),"") ->  | Q26: =IF($C26<>"",OFFSET(Participant_Database!$Q$3,Participant_Database!$Z27,0),"") ->  | R26: =IF($C26<>"",OFFSET(Participant_Database!$R$3,Participant_Database!$Z27,0),"") ->  | S26: =IF($C26<>"",OFFSET(Participant_Database!$S$3,Participant_Database!$Z27,0),"") ->  | T26: =IF($C26<>"",OFFSET(Participant_Database!$T$3,Participant_Database!$Z27,0),"") ->  | U26: =IF($C26<>"",OFFSET(Participant_Database!$U$3,Participant_Database!$Z27,0),"") ->  | V26: =IF($C26<>"",OFFSET(Participant_Database!$V$3,Participant_Database!$Z27,0),"") ->  | W26: =IF($C26<>"",OFFSET(Participant_Database!$W$3,Participant_Database!$Z27,0),"") ->  | X26: =IF(C26<>"",Participant_Database!$Z25,"") -> 
A27: =IF($C27<>"",OFFSET(Participant_Database!$A$3,Participant_Database!$Z28,0),"") ->  | B27: =IF($C27<>"",OFFSET(Participant_Database!$B$3,Participant_Database!$Z28,0),"") ->  | C27: =IF(OFFSET(Participant_Database!$C$3,Participant_Database!$Z28,0)<>"",OFFSET(Participant_Database!$C$3,Participant_Database!$Z28,0),"") ->  | D27: =IF($C27<>"",OFFSET(Participant_Database!$D$3,Participant_Database!$Z28,0),"") ->  | E27: =IF($C27<>"",OFFSET(Participant_Database!$E$3,Participant_Database!$Z28,0),"") ->  | F27: =IF($C27<>"",OFFSET(Participant_Database!$F$3,Participant_Database!$Z28,0),"") ->  | G27: =IF($C27<>"",OFFSET(Participant_Database!$G$3,Participant_Database!$Z28,0),"") ->  | H27: =IF($C27<>"",OFFSET(Participant_Database!$H$3,Participant_Database!$Z28,0),"") ->  | I27: =IF($C27<>"",OFFSET(Participant_Database!$I$3,Participant_Database!$Z28,0),"") ->  | J27: =IF($C27<>"",OFFSET(Participant_Database!$J$3,Participant_Database!$Z28,0),"") ->  | K27: =IF($C27<>"",OFFSET(Participant_Database!$K$3,Participant_Database!$Z28,0),"") ->  | L27: =IF($C27<>"",OFFSET(Participant_Database!$L$3,Participant_Database!$Z28,0),"") ->  | M27: =IF($C27<>"",OFFSET(Participant_Database!$M$3,Participant_Database!$Z28,0),"") ->  | N27: =IF($C27<>"",OFFSET(Participant_Database!$N$3,Participant_Database!$Z28,0),"") ->  | O27: =IF($C27<>"",OFFSET(Participant_Database!$O$3,Participant_Database!$Z28,0),"") ->  | P27: =IF($C27<>"",OFFSET(Participant_Database!$P$3,Participant_Database!$Z28,0),"") ->  | Q27: =IF($C27<>"",OFFSET(Participant_Database!$Q$3,Participant_Database!$Z28,0),"") ->  | R27: =IF($C27<>"",OFFSET(Participant_Database!$R$3,Participant_Database!$Z28,0),"") ->  | S27: =IF($C27<>"",OFFSET(Participant_Database!$S$3,Participant_Database!$Z28,0),"") ->  | T27: =IF($C27<>"",OFFSET(Participant_Database!$T$3,Participant_Database!$Z28,0),"") ->  | U27: =IF($C27<>"",OFFSET(Participant_Database!$U$3,Participant_Database!$Z28,0),"") ->  | V27: =IF($C27<>"",OFFSET(Participant_Database!$V$3,Participant_Database!$Z28,0),"") ->  | W27: =IF($C27<>"",OFFSET(Participant_Database!$W$3,Participant_Database!$Z28,0),"") ->  | X27: =IF(C27<>"",Participant_Database!$Z26,"") -> 
A28: =IF($C28<>"",OFFSET(Participant_Database!$A$3,Participant_Database!$Z29,0),"") ->  | B28: =IF($C28<>"",OFFSET(Participant_Database!$B$3,Participant_Database!$Z29,0),"") ->  | C28: =IF(OFFSET(Participant_Database!$C$3,Participant_Database!$Z29,0)<>"",OFFSET(Participant_Database!$C$3,Participant_Database!$Z29,0),"") ->  | D28: =IF($C28<>"",OFFSET(Participant_Database!$D$3,Participant_Database!$Z29,0),"") ->  | E28: =IF($C28<>"",OFFSET(Participant_Database!$E$3,Participant_Database!$Z29,0),"") ->  | F28: =IF($C28<>"",OFFSET(Participant_Database!$F$3,Participant_Database!$Z29,0),"") ->  | G28: =IF($C28<>"",OFFSET(Participant_Database!$G$3,Participant_Database!$Z29,0),"") ->  | H28: =IF($C28<>"",OFFSET(Participant_Database!$H$3,Participant_Database!$Z29,0),"") ->  | I28: =IF($C28<>"",OFFSET(Participant_Database!$I$3,Participant_Database!$Z29,0),"") ->  | J28: =IF($C28<>"",OFFSET(Participant_Database!$J$3,Participant_Database!$Z29,0),"") ->  | K28: =IF($C28<>"",OFFSET(Participant_Database!$K$3,Participant_Database!$Z29,0),"") ->  | L28: =IF($C28<>"",OFFSET(Participant_Database!$L$3,Participant_Database!$Z29,0),"") ->  | M28: =IF($C28<>"",OFFSET(Participant_Database!$M$3,Participant_Database!$Z29,0),"") ->  | N28: =IF($C28<>"",OFFSET(Participant_Database!$N$3,Participant_Database!$Z29,0),"") ->  | O28: =IF($C28<>"",OFFSET(Participant_Database!$O$3,Participant_Database!$Z29,0),"") ->  | P28: =IF($C28<>"",OFFSET(Participant_Database!$P$3,Participant_Database!$Z29,0),"") ->  | Q28: =IF($C28<>"",OFFSET(Participant_Database!$Q$3,Participant_Database!$Z29,0),"") ->  | R28: =IF($C28<>"",OFFSET(Participant_Database!$R$3,Participant_Database!$Z29,0),"") ->  | S28: =IF($C28<>"",OFFSET(Participant_Database!$S$3,Participant_Database!$Z29,0),"") ->  | T28: =IF($C28<>"",OFFSET(Participant_Database!$T$3,Participant_Database!$Z29,0),"") ->  | U28: =IF($C28<>"",OFFSET(Participant_Database!$U$3,Participant_Database!$Z29,0),"") ->  | V28: =IF($C28<>"",OFFSET(Participant_Database!$V$3,Participant_Database!$Z29,0),"") ->  | W28: =IF($C28<>"",OFFSET(Participant_Database!$W$3,Participant_Database!$Z29,0),"") ->  | X28: =IF(C28<>"",Participant_Database!$Z27,"") -> 
A29: =IF($C29<>"",OFFSET(Participant_Database!$A$3,Participant_Database!$Z30,0),"") ->  | B29: =IF($C29<>"",OFFSET(Participant_Database!$B$3,Participant_Database!$Z30,0),"") ->  | C29: =IF(OFFSET(Participant_Database!$C$3,Participant_Database!$Z30,0)<>"",OFFSET(Participant_Database!$C$3,Participant_Database!$Z30,0),"") ->  | D29: =IF($C29<>"",OFFSET(Participant_Database!$D$3,Participant_Database!$Z30,0),"") ->  | E29: =IF($C29<>"",OFFSET(Participant_Database!$E$3,Participant_Database!$Z30,0),"") ->  | F29: =IF($C29<>"",OFFSET(Participant_Database!$F$3,Participant_Database!$Z30,0),"") ->  | G29: =IF($C29<>"",OFFSET(Participant_Database!$G$3,Participant_Database!$Z30,0),"") ->  | H29: =IF($C29<>"",OFFSET(Participant_Database!$H$3,Participant_Database!$Z30,0),"") ->  | I29: =IF($C29<>"",OFFSET(Participant_Database!$I$3,Participant_Database!$Z30,0),"") ->  | J29: =IF($C29<>"",OFFSET(Participant_Database!$J$3,Participant_Database!$Z30,0),"") ->  | K29: =IF($C29<>"",OFFSET(Participant_Database!$K$3,Participant_Database!$Z30,0),"") ->  | L29: =IF($C29<>"",OFFSET(Participant_Database!$L$3,Participant_Database!$Z30,0),"") ->  | M29: =IF($C29<>"",OFFSET(Participant_Database!$M$3,Participant_Database!$Z30,0),"") ->  | N29: =IF($C29<>"",OFFSET(Participant_Database!$N$3,Participant_Database!$Z30,0),"") ->  | O29: =IF($C29<>"",OFFSET(Participant_Database!$O$3,Participant_Database!$Z30,0),"") ->  | P29: =IF($C29<>"",OFFSET(Participant_Database!$P$3,Participant_Database!$Z30,0),"") ->  | Q29: =IF($C29<>"",OFFSET(Participant_Database!$Q$3,Participant_Database!$Z30,0),"") ->  | R29: =IF($C29<>"",OFFSET(Participant_Database!$R$3,Participant_Database!$Z30,0),"") ->  | S29: =IF($C29<>"",OFFSET(Participant_Database!$S$3,Participant_Database!$Z30,0),"") ->  | T29: =IF($C29<>"",OFFSET(Participant_Database!$T$3,Participant_Database!$Z30,0),"") ->  | U29: =IF($C29<>"",OFFSET(Participant_Database!$U$3,Participant_Database!$Z30,0),"") ->  | V29: =IF($C29<>"",OFFSET(Participant_Database!$V$3,Participant_Database!$Z30,0),"") ->  | W29: =IF($C29<>"",OFFSET(Participant_Database!$W$3,Participant_Database!$Z30,0),"") ->  | X29: =IF(C29<>"",Participant_Database!$Z28,"") -> 
A30: =IF($C30<>"",OFFSET(Participant_Database!$A$3,Participant_Database!$Z31,0),"") ->  | B30: =IF($C30<>"",OFFSET(Participant_Database!$B$3,Participant_Database!$Z31,0),"") ->  | C30: =IF(OFFSET(Participant_Database!$C$3,Participant_Database!$Z31,0)<>"",OFFSET(Participant_Database!$C$3,Participant_Database!$Z31,0),"") ->  | D30: =IF($C30<>"",OFFSET(Participant_Database!$D$3,Participant_Database!$Z31,0),"") ->  | E30: =IF($C30<>"",OFFSET(Participant_Database!$E$3,Participant_Database!$Z31,0),"") ->  | F30: =IF($C30<>"",OFFSET(Participant_Database!$F$3,Participant_Database!$Z31,0),"") ->  | G30: =IF($C30<>"",OFFSET(Participant_Database!$G$3,Participant_Database!$Z31,0),"") ->  | H30: =IF($C30<>"",OFFSET(Participant_Database!$H$3,Participant_Database!$Z31,0),"") ->  | I30: =IF($C30<>"",OFFSET(Participant_Database!$I$3,Participant_Database!$Z31,0),"") ->  | J30: =IF($C30<>"",OFFSET(Participant_Database!$J$3,Participant_Database!$Z31,0),"") ->  | K30: =IF($C30<>"",OFFSET(Participant_Database!$K$3,Participant_Database!$Z31,0),"") ->  | L30: =IF($C30<>"",OFFSET(Participant_Database!$L$3,Participant_Database!$Z31,0),"") ->  | M30: =IF($C30<>"",OFFSET(Participant_Database!$M$3,Participant_Database!$Z31,0),"") ->  | N30: =IF($C30<>"",OFFSET(Participant_Database!$N$3,Participant_Database!$Z31,0),"") ->  | O30: =IF($C30<>"",OFFSET(Participant_Database!$O$3,Participant_Database!$Z31,0),"") ->  | P30: =IF($C30<>"",OFFSET(Participant_Database!$P$3,Participant_Database!$Z31,0),"") ->  | Q30: =IF($C30<>"",OFFSET(Participant_Database!$Q$3,Participant_Database!$Z31,0),"") ->  | R30: =IF($C30<>"",OFFSET(Participant_Database!$R$3,Participant_Database!$Z31,0),"") ->  | S30: =IF($C30<>"",OFFSET(Participant_Database!$S$3,Participant_Database!$Z31,0),"") ->  | T30: =IF($C30<>"",OFFSET(Participant_Database!$T$3,Participant_Database!$Z31,0),"") ->  | U30: =IF($C30<>"",OFFSET(Participant_Database!$U$3,Participant_Database!$Z31,0),"") ->  | V30: =IF($C30<>"",OFFSET(Participant_Database!$V$3,Participant_Database!$Z31,0),"") ->  | W30: =IF($C30<>"",OFFSET(Participant_Database!$W$3,Participant_Database!$Z31,0),"") ->  | X30: =IF(C30<>"",Participant_Database!$Z29,"") -> 
A31: =IF($C31<>"",OFFSET(Participant_Database!$A$3,Participant_Database!$Z32,0),"") ->  | B31: =IF($C31<>"",OFFSET(Participant_Database!$B$3,Participant_Database!$Z32,0),"") ->  | C31: =IF(OFFSET(Participant_Database!$C$3,Participant_Database!$Z32,0)<>"",OFFSET(Participant_Database!$C$3,Participant_Database!$Z32,0),"") ->  | D31: =IF($C31<>"",OFFSET(Participant_Database!$D$3,Participant_Database!$Z32,0),"") ->  | E31: =IF($C31<>"",OFFSET(Participant_Database!$E$3,Participant_Database!$Z32,0),"") ->  | F31: =IF($C31<>"",OFFSET(Participant_Database!$F$3,Participant_Database!$Z32,0),"") ->  | G31: =IF($C31<>"",OFFSET(Participant_Database!$G$3,Participant_Database!$Z32,0),"") ->  | H31: =IF($C31<>"",OFFSET(Participant_Database!$H$3,Participant_Database!$Z32,0),"") ->  | I31: =IF($C31<>"",OFFSET(Participant_Database!$I$3,Participant_Database!$Z32,0),"") ->  | J31: =IF($C31<>"",OFFSET(Participant_Database!$J$3,Participant_Database!$Z32,0),"") ->  | K31: =IF($C31<>"",OFFSET(Participant_Database!$K$3,Participant_Database!$Z32,0),"") ->  | L31: =IF($C31<>"",OFFSET(Participant_Database!$L$3,Participant_Database!$Z32,0),"") ->  | M31: =IF($C31<>"",OFFSET(Participant_Database!$M$3,Participant_Database!$Z32,0),"") ->  | N31: =IF($C31<>"",OFFSET(Participant_Database!$N$3,Participant_Database!$Z32,0),"") ->  | O31: =IF($C31<>"",OFFSET(Participant_Database!$O$3,Participant_Database!$Z32,0),"") ->  | P31: =IF($C31<>"",OFFSET(Participant_Database!$P$3,Participant_Database!$Z32,0),"") ->  | Q31: =IF($C31<>"",OFFSET(Participant_Database!$Q$3,Participant_Database!$Z32,0),"") ->  | R31: =IF($C31<>"",OFFSET(Participant_Database!$R$3,Participant_Database!$Z32,0),"") ->  | S31: =IF($C31<>"",OFFSET(Participant_Database!$S$3,Participant_Database!$Z32,0),"") ->  | T31: =IF($C31<>"",OFFSET(Participant_Database!$T$3,Participant_Database!$Z32,0),"") ->  | U31: =IF($C31<>"",OFFSET(Participant_Database!$U$3,Participant_Database!$Z32,0),"") ->  | V31: =IF($C31<>"",OFFSET(Participant_Database!$V$3,Participant_Database!$Z32,0),"") ->  | W31: =IF($C31<>"",OFFSET(Participant_Database!$W$3,Participant_Database!$Z32,0),"") ->  | X31: =IF(C31<>"",Participant_Database!$Z30,"") -> 
A32: =IF($C32<>"",OFFSET(Participant_Database!$A$3,Participant_Database!$Z33,0),"") ->  | B32: =IF($C32<>"",OFFSET(Participant_Database!$B$3,Participant_Database!$Z33,0),"") ->  | C32: =IF(OFFSET(Participant_Database!$C$3,Participant_Database!$Z33,0)<>"",OFFSET(Participant_Database!$C$3,Participant_Database!$Z33,0),"") ->  | D32: =IF($C32<>"",OFFSET(Participant_Database!$D$3,Participant_Database!$Z33,0),"") ->  | E32: =IF($C32<>"",OFFSET(Participant_Database!$E$3,Participant_Database!$Z33,0),"") ->  | F32: =IF($C32<>"",OFFSET(Participant_Database!$F$3,Participant_Database!$Z33,0),"") ->  | G32: =IF($C32<>"",OFFSET(Participant_Database!$G$3,Participant_Database!$Z33,0),"") ->  | H32: =IF($C32<>"",OFFSET(Participant_Database!$H$3,Participant_Database!$Z33,0),"") ->  | I32: =IF($C32<>"",OFFSET(Participant_Database!$I$3,Participant_Database!$Z33,0),"") ->  | J32: =IF($C32<>"",OFFSET(Participant_Database!$J$3,Participant_Database!$Z33,0),"") ->  | K32: =IF($C32<>"",OFFSET(Participant_Database!$K$3,Participant_Database!$Z33,0),"") ->  | L32: =IF($C32<>"",OFFSET(Participant_Database!$L$3,Participant_Database!$Z33,0),"") ->  | M32: =IF($C32<>"",OFFSET(Participant_Database!$M$3,Participant_Database!$Z33,0),"") ->  | N32: =IF($C32<>"",OFFSET(Participant_Database!$N$3,Participant_Database!$Z33,0),"") ->  | O32: =IF($C32<>"",OFFSET(Participant_Database!$O$3,Participant_Database!$Z33,0),"") ->  | P32: =IF($C32<>"",OFFSET(Participant_Database!$P$3,Participant_Database!$Z33,0),"") ->  | Q32: =IF($C32<>"",OFFSET(Participant_Database!$Q$3,Participant_Database!$Z33,0),"") ->  | R32: =IF($C32<>"",OFFSET(Participant_Database!$R$3,Participant_Database!$Z33,0),"") ->  | S32: =IF($C32<>"",OFFSET(Participant_Database!$S$3,Participant_Database!$Z33,0),"") ->  | T32: =IF($C32<>"",OFFSET(Participant_Database!$T$3,Participant_Database!$Z33,0),"") ->  | U32: =IF($C32<>"",OFFSET(Participant_Database!$U$3,Participant_Database!$Z33,0),"") ->  | V32: =IF($C32<>"",OFFSET(Participant_Database!$V$3,Participant_Database!$Z33,0),"") ->  | W32: =IF($C32<>"",OFFSET(Participant_Database!$W$3,Participant_Database!$Z33,0),"") ->  | X32: =IF(C32<>"",Participant_Database!$Z31,"") -> 
A33: =IF($C33<>"",OFFSET(Participant_Database!$A$3,Participant_Database!$Z34,0),"") ->  | B33: =IF($C33<>"",OFFSET(Participant_Database!$B$3,Participant_Database!$Z34,0),"") ->  | C33: =IF(OFFSET(Participant_Database!$C$3,Participant_Database!$Z34,0)<>"",OFFSET(Participant_Database!$C$3,Participant_Database!$Z34,0),"") ->  | D33: =IF($C33<>"",OFFSET(Participant_Database!$D$3,Participant_Database!$Z34,0),"") ->  | E33: =IF($C33<>"",OFFSET(Participant_Database!$E$3,Participant_Database!$Z34,0),"") ->  | F33: =IF($C33<>"",OFFSET(Participant_Database!$F$3,Participant_Database!$Z34,0),"") ->  | G33: =IF($C33<>"",OFFSET(Participant_Database!$G$3,Participant_Database!$Z34,0),"") ->  | H33: =IF($C33<>"",OFFSET(Participant_Database!$H$3,Participant_Database!$Z34,0),"") ->  | I33: =IF($C33<>"",OFFSET(Participant_Database!$I$3,Participant_Database!$Z34,0),"") ->  | J33: =IF($C33<>"",OFFSET(Participant_Database!$J$3,Participant_Database!$Z34,0),"") ->  | K33: =IF($C33<>"",OFFSET(Participant_Database!$K$3,Participant_Database!$Z34,0),"") ->  | L33: =IF($C33<>"",OFFSET(Participant_Database!$L$3,Participant_Database!$Z34,0),"") ->  | M33: =IF($C33<>"",OFFSET(Participant_Database!$M$3,Participant_Database!$Z34,0),"") ->  | N33: =IF($C33<>"",OFFSET(Participant_Database!$N$3,Participant_Database!$Z34,0),"") ->  | O33: =IF($C33<>"",OFFSET(Participant_Database!$O$3,Participant_Database!$Z34,0),"") ->  | P33: =IF($C33<>"",OFFSET(Participant_Database!$P$3,Participant_Database!$Z34,0),"") ->  | Q33: =IF($C33<>"",OFFSET(Participant_Database!$Q$3,Participant_Database!$Z34,0),"") ->  | R33: =IF($C33<>"",OFFSET(Participant_Database!$R$3,Participant_Database!$Z34,0),"") ->  | S33: =IF($C33<>"",OFFSET(Participant_Database!$S$3,Participant_Database!$Z34,0),"") ->  | T33: =IF($C33<>"",OFFSET(Participant_Database!$T$3,Participant_Database!$Z34,0),"") ->  | U33: =IF($C33<>"",OFFSET(Participant_Database!$U$3,Participant_Database!$Z34,0),"") ->  | V33: =IF($C33<>"",OFFSET(Participant_Database!$V$3,Participant_Database!$Z34,0),"") ->  | W33: =IF($C33<>"",OFFSET(Participant_Database!$W$3,Participant_Database!$Z34,0),"") ->  | X33: =IF(C33<>"",Participant_Database!$Z32,"") -> 
A34: =IF($C34<>"",OFFSET(Participant_Database!$A$3,Participant_Database!$Z35,0),"") ->  | B34: =IF($C34<>"",OFFSET(Participant_Database!$B$3,Participant_Database!$Z35,0),"") ->  | C34: =IF(OFFSET(Participant_Database!$C$3,Participant_Database!$Z35,0)<>"",OFFSET(Participant_Database!$C$3,Participant_Database!$Z35,0),"") ->  | D34: =IF($C34<>"",OFFSET(Participant_Database!$D$3,Participant_Database!$Z35,0),"") ->  | E34: =IF($C34<>"",OFFSET(Participant_Database!$E$3,Participant_Database!$Z35,0),"") ->  | F34: =IF($C34<>"",OFFSET(Participant_Database!$F$3,Participant_Database!$Z35,0),"") ->  | G34: =IF($C34<>"",OFFSET(Participant_Database!$G$3,Participant_Database!$Z35,0),"") ->  | H34: =IF($C34<>"",OFFSET(Participant_Database!$H$3,Participant_Database!$Z35,0),"") ->  | I34: =IF($C34<>"",OFFSET(Participant_Database!$I$3,Participant_Database!$Z35,0),"") ->  | J34: =IF($C34<>"",OFFSET(Participant_Database!$J$3,Participant_Database!$Z35,0),"") ->  | K34: =IF($C34<>"",OFFSET(Participant_Database!$K$3,Participant_Database!$Z35,0),"") ->  | L34: =IF($C34<>"",OFFSET(Participant_Database!$L$3,Participant_Database!$Z35,0),"") ->  | M34: =IF($C34<>"",OFFSET(Participant_Database!$M$3,Participant_Database!$Z35,0),"") ->  | N34: =IF($C34<>"",OFFSET(Participant_Database!$N$3,Participant_Database!$Z35,0),"") ->  | O34: =IF($C34<>"",OFFSET(Participant_Database!$O$3,Participant_Database!$Z35,0),"") ->  | P34: =IF($C34<>"",OFFSET(Participant_Database!$P$3,Participant_Database!$Z35,0),"") ->  | Q34: =IF($C34<>"",OFFSET(Participant_Database!$Q$3,Participant_Database!$Z35,0),"") ->  | R34: =IF($C34<>"",OFFSET(Participant_Database!$R$3,Participant_Database!$Z35,0),"") ->  | S34: =IF($C34<>"",OFFSET(Participant_Database!$S$3,Participant_Database!$Z35,0),"") ->  | T34: =IF($C34<>"",OFFSET(Participant_Database!$T$3,Participant_Database!$Z35,0),"") ->  | U34: =IF($C34<>"",OFFSET(Participant_Database!$U$3,Participant_Database!$Z35,0),"") ->  | V34: =IF($C34<>"",OFFSET(Participant_Database!$V$3,Participant_Database!$Z35,0),"") ->  | W34: =IF($C34<>"",OFFSET(Participant_Database!$W$3,Participant_Database!$Z35,0),"") ->  | X34: =IF(C34<>"",Participant_Database!$Z33,"") -> 
A35: =IF($C35<>"",OFFSET(Participant_Database!$A$3,Participant_Database!$Z36,0),"") ->  | B35: =IF($C35<>"",OFFSET(Participant_Database!$B$3,Participant_Database!$Z36,0),"") ->  | C35: =IF(OFFSET(Participant_Database!$C$3,Participant_Database!$Z36,0)<>"",OFFSET(Participant_Database!$C$3,Participant_Database!$Z36,0),"") ->  | D35: =IF($C35<>"",OFFSET(Participant_Database!$D$3,Participant_Database!$Z36,0),"") ->  | E35: =IF($C35<>"",OFFSET(Participant_Database!$E$3,Participant_Database!$Z36,0),"") ->  | F35: =IF($C35<>"",OFFSET(Participant_Database!$F$3,Participant_Database!$Z36,0),"") ->  | G35: =IF($C35<>"",OFFSET(Participant_Database!$G$3,Participant_Database!$Z36,0),"") ->  | H35: =IF($C35<>"",OFFSET(Participant_Database!$H$3,Participant_Database!$Z36,0),"") ->  | I35: =IF($C35<>"",OFFSET(Participant_Database!$I$3,Participant_Database!$Z36,0),"") ->  | J35: =IF($C35<>"",OFFSET(Participant_Database!$J$3,Participant_Database!$Z36,0),"") ->  | K35: =IF($C35<>"",OFFSET(Participant_Database!$K$3,Participant_Database!$Z36,0),"") ->  | L35: =IF($C35<>"",OFFSET(Participant_Database!$L$3,Participant_Database!$Z36,0),"") ->  | M35: =IF($C35<>"",OFFSET(Participant_Database!$M$3,Participant_Database!$Z36,0),"") ->  | N35: =IF($C35<>"",OFFSET(Participant_Database!$N$3,Participant_Database!$Z36,0),"") ->  | O35: =IF($C35<>"",OFFSET(Participant_Database!$O$3,Participant_Database!$Z36,0),"") ->  | P35: =IF($C35<>"",OFFSET(Participant_Database!$P$3,Participant_Database!$Z36,0),"") ->  | Q35: =IF($C35<>"",OFFSET(Participant_Database!$Q$3,Participant_Database!$Z36,0),"") ->  | R35: =IF($C35<>"",OFFSET(Participant_Database!$R$3,Participant_Database!$Z36,0),"") ->  | S35: =IF($C35<>"",OFFSET(Participant_Database!$S$3,Participant_Database!$Z36,0),"") ->  | T35: =IF($C35<>"",OFFSET(Participant_Database!$T$3,Participant_Database!$Z36,0),"") ->  | U35: =IF($C35<>"",OFFSET(Participant_Database!$U$3,Participant_Database!$Z36,0),"") ->  | V35: =IF($C35<>"",OFFSET(Participant_Database!$V$3,Participant_Database!$Z36,0),"") ->  | W35: =IF($C35<>"",OFFSET(Participant_Database!$W$3,Participant_Database!$Z36,0),"") ->  | X35: =IF(C35<>"",Participant_Database!$Z34,"") -> 
A36: =IF($C36<>"",OFFSET(Participant_Database!$A$3,Participant_Database!$Z37,0),"") ->  | B36: =IF($C36<>"",OFFSET(Participant_Database!$B$3,Participant_Database!$Z37,0),"") ->  | C36: =IF(OFFSET(Participant_Database!$C$3,Participant_Database!$Z37,0)<>"",OFFSET(Participant_Database!$C$3,Participant_Database!$Z37,0),"") ->  | D36: =IF($C36<>"",OFFSET(Participant_Database!$D$3,Participant_Database!$Z37,0),"") ->  | E36: =IF($C36<>"",OFFSET(Participant_Database!$E$3,Participant_Database!$Z37,0),"") ->  | F36: =IF($C36<>"",OFFSET(Participant_Database!$F$3,Participant_Database!$Z37,0),"") ->  | G36: =IF($C36<>"",OFFSET(Participant_Database!$G$3,Participant_Database!$Z37,0),"") ->  | H36: =IF($C36<>"",OFFSET(Participant_Database!$H$3,Participant_Database!$Z37,0),"") ->  | I36: =IF($C36<>"",OFFSET(Participant_Database!$I$3,Participant_Database!$Z37,0),"") ->  | J36: =IF($C36<>"",OFFSET(Participant_Database!$J$3,Participant_Database!$Z37,0),"") ->  | K36: =IF($C36<>"",OFFSET(Participant_Database!$K$3,Participant_Database!$Z37,0),"") ->  | L36: =IF($C36<>"",OFFSET(Participant_Database!$L$3,Participant_Database!$Z37,0),"") ->  | M36: =IF($C36<>"",OFFSET(Participant_Database!$M$3,Participant_Database!$Z37,0),"") ->  | N36: =IF($C36<>"",OFFSET(Participant_Database!$N$3,Participant_Database!$Z37,0),"") ->  | O36: =IF($C36<>"",OFFSET(Participant_Database!$O$3,Participant_Database!$Z37,0),"") ->  | P36: =IF($C36<>"",OFFSET(Participant_Database!$P$3,Participant_Database!$Z37,0),"") ->  | Q36: =IF($C36<>"",OFFSET(Participant_Database!$Q$3,Participant_Database!$Z37,0),"") ->  | R36: =IF($C36<>"",OFFSET(Participant_Database!$R$3,Participant_Database!$Z37,0),"") ->  | S36: =IF($C36<>"",OFFSET(Participant_Database!$S$3,Participant_Database!$Z37,0),"") ->  | T36: =IF($C36<>"",OFFSET(Participant_Database!$T$3,Participant_Database!$Z37,0),"") ->  | U36: =IF($C36<>"",OFFSET(Participant_Database!$U$3,Participant_Database!$Z37,0),"") ->  | V36: =IF($C36<>"",OFFSET(Participant_Database!$V$3,Participant_Database!$Z37,0),"") ->  | W36: =IF($C36<>"",OFFSET(Participant_Database!$W$3,Participant_Database!$Z37,0),"") ->  | X36: =IF(C36<>"",Participant_Database!$Z35,"") -> 
A37: =IF($C37<>"",OFFSET(Participant_Database!$A$3,Participant_Database!$Z38,0),"") ->  | B37: =IF($C37<>"",OFFSET(Participant_Database!$B$3,Participant_Database!$Z38,0),"") ->  | C37: =IF(OFFSET(Participant_Database!$C$3,Participant_Database!$Z38,0)<>"",OFFSET(Participant_Database!$C$3,Participant_Database!$Z38,0),"") ->  | D37: =IF($C37<>"",OFFSET(Participant_Database!$D$3,Participant_Database!$Z38,0),"") ->  | E37: =IF($C37<>"",OFFSET(Participant_Database!$E$3,Participant_Database!$Z38,0),"") ->  | F37: =IF($C37<>"",OFFSET(Participant_Database!$F$3,Participant_Database!$Z38,0),"") ->  | G37: =IF($C37<>"",OFFSET(Participant_Database!$G$3,Participant_Database!$Z38,0),"") ->  | H37: =IF($C37<>"",OFFSET(Participant_Database!$H$3,Participant_Database!$Z38,0),"") ->  | I37: =IF($C37<>"",OFFSET(Participant_Database!$I$3,Participant_Database!$Z38,0),"") ->  | J37: =IF($C37<>"",OFFSET(Participant_Database!$J$3,Participant_Database!$Z38,0),"") ->  | K37: =IF($C37<>"",OFFSET(Participant_Database!$K$3,Participant_Database!$Z38,0),"") ->  | L37: =IF($C37<>"",OFFSET(Participant_Database!$L$3,Participant_Database!$Z38,0),"") ->  | M37: =IF($C37<>"",OFFSET(Participant_Database!$M$3,Participant_Database!$Z38,0),"") ->  | N37: =IF($C37<>"",OFFSET(Participant_Database!$N$3,Participant_Database!$Z38,0),"") ->  | O37: =IF($C37<>"",OFFSET(Participant_Database!$O$3,Participant_Database!$Z38,0),"") ->  | P37: =IF($C37<>"",OFFSET(Participant_Database!$P$3,Participant_Database!$Z38,0),"") ->  | Q37: =IF($C37<>"",OFFSET(Participant_Database!$Q$3,Participant_Database!$Z38,0),"") ->  | R37: =IF($C37<>"",OFFSET(Participant_Database!$R$3,Participant_Database!$Z38,0),"") ->  | S37: =IF($C37<>"",OFFSET(Participant_Database!$S$3,Participant_Database!$Z38,0),"") ->  | T37: =IF($C37<>"",OFFSET(Participant_Database!$T$3,Participant_Database!$Z38,0),"") ->  | U37: =IF($C37<>"",OFFSET(Participant_Database!$U$3,Participant_Database!$Z38,0),"") ->  | V37: =IF($C37<>"",OFFSET(Participant_Database!$V$3,Participant_Database!$Z38,0),"") ->  | W37: =IF($C37<>"",OFFSET(Participant_Database!$W$3,Participant_Database!$Z38,0),"") ->  | X37: =IF(C37<>"",Participant_Database!$Z36,"") -> 
A38: =IF($C38<>"",OFFSET(Participant_Database!$A$3,Participant_Database!$Z39,0),"") ->  | B38: =IF($C38<>"",OFFSET(Participant_Database!$B$3,Participant_Database!$Z39,0),"") ->  | C38: =IF(OFFSET(Participant_Database!$C$3,Participant_Database!$Z39,0)<>"",OFFSET(Participant_Database!$C$3,Participant_Database!$Z39,0),"") ->  | D38: =IF($C38<>"",OFFSET(Participant_Database!$D$3,Participant_Database!$Z39,0),"") ->  | E38: =IF($C38<>"",OFFSET(Participant_Database!$E$3,Participant_Database!$Z39,0),"") ->  | F38: =IF($C38<>"",OFFSET(Participant_Database!$F$3,Participant_Database!$Z39,0),"") ->  | G38: =IF($C38<>"",OFFSET(Participant_Database!$G$3,Participant_Database!$Z39,0),"") ->  | H38: =IF($C38<>"",OFFSET(Participant_Database!$H$3,Participant_Database!$Z39,0),"") ->  | I38: =IF($C38<>"",OFFSET(Participant_Database!$I$3,Participant_Database!$Z39,0),"") ->  | J38: =IF($C38<>"",OFFSET(Participant_Database!$J$3,Participant_Database!$Z39,0),"") ->  | K38: =IF($C38<>"",OFFSET(Participant_Database!$K$3,Participant_Database!$Z39,0),"") ->  | L38: =IF($C38<>"",OFFSET(Participant_Database!$L$3,Participant_Database!$Z39,0),"") ->  | M38: =IF($C38<>"",OFFSET(Participant_Database!$M$3,Participant_Database!$Z39,0),"") ->  | N38: =IF($C38<>"",OFFSET(Participant_Database!$N$3,Participant_Database!$Z39,0),"") ->  | O38: =IF($C38<>"",OFFSET(Participant_Database!$O$3,Participant_Database!$Z39,0),"") ->  | P38: =IF($C38<>"",OFFSET(Participant_Database!$P$3,Participant_Database!$Z39,0),"") ->  | Q38: =IF($C38<>"",OFFSET(Participant_Database!$Q$3,Participant_Database!$Z39,0),"") ->  | R38: =IF($C38<>"",OFFSET(Participant_Database!$R$3,Participant_Database!$Z39,0),"") ->  | S38: =IF($C38<>"",OFFSET(Participant_Database!$S$3,Participant_Database!$Z39,0),"") ->  | T38: =IF($C38<>"",OFFSET(Participant_Database!$T$3,Participant_Database!$Z39,0),"") ->  | U38: =IF($C38<>"",OFFSET(Participant_Database!$U$3,Participant_Database!$Z39,0),"") ->  | V38: =IF($C38<>"",OFFSET(Participant_Database!$V$3,Participant_Database!$Z39,0),"") ->  | W38: =IF($C38<>"",OFFSET(Participant_Database!$W$3,Participant_Database!$Z39,0),"") ->  | X38: =IF(C38<>"",Participant_Database!$Z37,"") -> 
A39: =IF($C39<>"",OFFSET(Participant_Database!$A$3,Participant_Database!$Z40,0),"") ->  | B39: =IF($C39<>"",OFFSET(Participant_Database!$B$3,Participant_Database!$Z40,0),"") ->  | C39: =IF(OFFSET(Participant_Database!$C$3,Participant_Database!$Z40,0)<>"",OFFSET(Participant_Database!$C$3,Participant_Database!$Z40,0),"") ->  | D39: =IF($C39<>"",OFFSET(Participant_Database!$D$3,Participant_Database!$Z40,0),"") ->  | E39: =IF($C39<>"",OFFSET(Participant_Database!$E$3,Participant_Database!$Z40,0),"") ->  | F39: =IF($C39<>"",OFFSET(Participant_Database!$F$3,Participant_Database!$Z40,0),"") ->  | G39: =IF($C39<>"",OFFSET(Participant_Database!$G$3,Participant_Database!$Z40,0),"") ->  | H39: =IF($C39<>"",OFFSET(Participant_Database!$H$3,Participant_Database!$Z40,0),"") ->  | I39: =IF($C39<>"",OFFSET(Participant_Database!$I$3,Participant_Database!$Z40,0),"") ->  | J39: =IF($C39<>"",OFFSET(Participant_Database!$J$3,Participant_Database!$Z40,0),"") ->  | K39: =IF($C39<>"",OFFSET(Participant_Database!$K$3,Participant_Database!$Z40,0),"") ->  | L39: =IF($C39<>"",OFFSET(Participant_Database!$L$3,Participant_Database!$Z40,0),"") ->  | M39: =IF($C39<>"",OFFSET(Participant_Database!$M$3,Participant_Database!$Z40,0),"") ->  | N39: =IF($C39<>"",OFFSET(Participant_Database!$N$3,Participant_Database!$Z40,0),"") ->  | O39: =IF($C39<>"",OFFSET(Participant_Database!$O$3,Participant_Database!$Z40,0),"") ->  | P39: =IF($C39<>"",OFFSET(Participant_Database!$P$3,Participant_Database!$Z40,0),"") ->  | Q39: =IF($C39<>"",OFFSET(Participant_Database!$Q$3,Participant_Database!$Z40,0),"") ->  | R39: =IF($C39<>"",OFFSET(Participant_Database!$R$3,Participant_Database!$Z40,0),"") ->  | S39: =IF($C39<>"",OFFSET(Participant_Database!$S$3,Participant_Database!$Z40,0),"") ->  | T39: =IF($C39<>"",OFFSET(Participant_Database!$T$3,Participant_Database!$Z40,0),"") ->  | U39: =IF($C39<>"",OFFSET(Participant_Database!$U$3,Participant_Database!$Z40,0),"") ->  | V39: =IF($C39<>"",OFFSET(Participant_Database!$V$3,Participant_Database!$Z40,0),"") ->  | W39: =IF($C39<>"",OFFSET(Participant_Database!$W$3,Participant_Database!$Z40,0),"") ->  | X39: =IF(C39<>"",Participant_Database!$Z38,"") -> 
A40: =IF($C40<>"",OFFSET(Participant_Database!$A$3,Participant_Database!$Z41,0),"") ->  | B40: =IF($C40<>"",OFFSET(Participant_Database!$B$3,Participant_Database!$Z41,0),"") ->  | C40: =IF(OFFSET(Participant_Database!$C$3,Participant_Database!$Z41,0)<>"",OFFSET(Participant_Database!$C$3,Participant_Database!$Z41,0),"") ->  | D40: =IF($C40<>"",OFFSET(Participant_Database!$D$3,Participant_Database!$Z41,0),"") ->  | E40: =IF($C40<>"",OFFSET(Participant_Database!$E$3,Participant_Database!$Z41,0),"") ->  | F40: =IF($C40<>"",OFFSET(Participant_Database!$F$3,Participant_Database!$Z41,0),"") ->  | G40: =IF($C40<>"",OFFSET(Participant_Database!$G$3,Participant_Database!$Z41,0),"") ->  | H40: =IF($C40<>"",OFFSET(Participant_Database!$H$3,Participant_Database!$Z41,0),"") ->  | I40: =IF($C40<>"",OFFSET(Participant_Database!$I$3,Participant_Database!$Z41,0),"") ->  | J40: =IF($C40<>"",OFFSET(Participant_Database!$J$3,Participant_Database!$Z41,0),"") ->  | K40: =IF($C40<>"",OFFSET(Participant_Database!$K$3,Participant_Database!$Z41,0),"") ->  | L40: =IF($C40<>"",OFFSET(Participant_Database!$L$3,Participant_Database!$Z41,0),"") ->  | M40: =IF($C40<>"",OFFSET(Participant_Database!$M$3,Participant_Database!$Z41,0),"") ->  | N40: =IF($C40<>"",OFFSET(Participant_Database!$N$3,Participant_Database!$Z41,0),"") ->  | O40: =IF($C40<>"",OFFSET(Participant_Database!$O$3,Participant_Database!$Z41,0),"") ->  | P40: =IF($C40<>"",OFFSET(Participant_Database!$P$3,Participant_Database!$Z41,0),"") ->  | Q40: =IF($C40<>"",OFFSET(Participant_Database!$Q$3,Participant_Database!$Z41,0),"") ->  | R40: =IF($C40<>"",OFFSET(Participant_Database!$R$3,Participant_Database!$Z41,0),"") ->  | S40: =IF($C40<>"",OFFSET(Participant_Database!$S$3,Participant_Database!$Z41,0),"") ->  | T40: =IF($C40<>"",OFFSET(Participant_Database!$T$3,Participant_Database!$Z41,0),"") ->  | U40: =IF($C40<>"",OFFSET(Participant_Database!$U$3,Participant_Database!$Z41,0),"") ->  | V40: =IF($C40<>"",OFFSET(Participant_Database!$V$3,Participant_Database!$Z41,0),"") ->  | W40: =IF($C40<>"",OFFSET(Participant_Database!$W$3,Participant_Database!$Z41,0),"") ->  | X40: =IF(C40<>"",Participant_Database!$Z39,"") -> 
A41: =IF($C41<>"",OFFSET(Participant_Database!$A$3,Participant_Database!$Z42,0),"") ->  | B41: =IF($C41<>"",OFFSET(Participant_Database!$B$3,Participant_Database!$Z42,0),"") ->  | C41: =IF(OFFSET(Participant_Database!$C$3,Participant_Database!$Z42,0)<>"",OFFSET(Participant_Database!$C$3,Participant_Database!$Z42,0),"") ->  | D41: =IF($C41<>"",OFFSET(Participant_Database!$D$3,Participant_Database!$Z42,0),"") ->  | E41: =IF($C41<>"",OFFSET(Participant_Database!$E$3,Participant_Database!$Z42,0),"") ->  | F41: =IF($C41<>"",OFFSET(Participant_Database!$F$3,Participant_Database!$Z42,0),"") ->  | G41: =IF($C41<>"",OFFSET(Participant_Database!$G$3,Participant_Database!$Z42,0),"") ->  | H41: =IF($C41<>"",OFFSET(Participant_Database!$H$3,Participant_Database!$Z42,0),"") ->  | I41: =IF($C41<>"",OFFSET(Participant_Database!$I$3,Participant_Database!$Z42,0),"") ->  | J41: =IF($C41<>"",OFFSET(Participant_Database!$J$3,Participant_Database!$Z42,0),"") ->  | K41: =IF($C41<>"",OFFSET(Participant_Database!$K$3,Participant_Database!$Z42,0),"") ->  | L41: =IF($C41<>"",OFFSET(Participant_Database!$L$3,Participant_Database!$Z42,0),"") ->  | M41: =IF($C41<>"",OFFSET(Participant_Database!$M$3,Participant_Database!$Z42,0),"") ->  | N41: =IF($C41<>"",OFFSET(Participant_Database!$N$3,Participant_Database!$Z42,0),"") ->  | O41: =IF($C41<>"",OFFSET(Participant_Database!$O$3,Participant_Database!$Z42,0),"") ->  | P41: =IF($C41<>"",OFFSET(Participant_Database!$P$3,Participant_Database!$Z42,0),"") ->  | Q41: =IF($C41<>"",OFFSET(Participant_Database!$Q$3,Participant_Database!$Z42,0),"") ->  | R41: =IF($C41<>"",OFFSET(Participant_Database!$R$3,Participant_Database!$Z42,0),"") ->  | S41: =IF($C41<>"",OFFSET(Participant_Database!$S$3,Participant_Database!$Z42,0),"") ->  | T41: =IF($C41<>"",OFFSET(Participant_Database!$T$3,Participant_Database!$Z42,0),"") ->  | U41: =IF($C41<>"",OFFSET(Participant_Database!$U$3,Participant_Database!$Z42,0),"") ->  | V41: =IF($C41<>"",OFFSET(Participant_Database!$V$3,Participant_Database!$Z42,0),"") ->  | W41: =IF($C41<>"",OFFSET(Participant_Database!$W$3,Participant_Database!$Z42,0),"") ->  | X41: =IF(C41<>"",Participant_Database!$Z40,"") -> 
A42: =IF($C42<>"",OFFSET(Participant_Database!$A$3,Participant_Database!$Z43,0),"") ->  | B42: =IF($C42<>"",OFFSET(Participant_Database!$B$3,Participant_Database!$Z43,0),"") ->  | C42: =IF(OFFSET(Participant_Database!$C$3,Participant_Database!$Z43,0)<>"",OFFSET(Participant_Database!$C$3,Participant_Database!$Z43,0),"") ->  | D42: =IF($C42<>"",OFFSET(Participant_Database!$D$3,Participant_Database!$Z43,0),"") ->  | E42: =IF($C42<>"",OFFSET(Participant_Database!$E$3,Participant_Database!$Z43,0),"") ->  | F42: =IF($C42<>"",OFFSET(Participant_Database!$F$3,Participant_Database!$Z43,0),"") ->  | G42: =IF($C42<>"",OFFSET(Participant_Database!$G$3,Participant_Database!$Z43,0),"") ->  | H42: =IF($C42<>"",OFFSET(Participant_Database!$H$3,Participant_Database!$Z43,0),"") ->  | I42: =IF($C42<>"",OFFSET(Participant_Database!$I$3,Participant_Database!$Z43,0),"") ->  | J42: =IF($C42<>"",OFFSET(Participant_Database!$J$3,Participant_Database!$Z43,0),"") ->  | K42: =IF($C42<>"",OFFSET(Participant_Database!$K$3,Participant_Database!$Z43,0),"") ->  | L42: =IF($C42<>"",OFFSET(Participant_Database!$L$3,Participant_Database!$Z43,0),"") ->  | M42: =IF($C42<>"",OFFSET(Participant_Database!$M$3,Participant_Database!$Z43,0),"") ->  | N42: =IF($C42<>"",OFFSET(Participant_Database!$N$3,Participant_Database!$Z43,0),"") ->  | O42: =IF($C42<>"",OFFSET(Participant_Database!$O$3,Participant_Database!$Z43,0),"") ->  | P42: =IF($C42<>"",OFFSET(Participant_Database!$P$3,Participant_Database!$Z43,0),"") ->  | Q42: =IF($C42<>"",OFFSET(Participant_Database!$Q$3,Participant_Database!$Z43,0),"") ->  | R42: =IF($C42<>"",OFFSET(Participant_Database!$R$3,Participant_Database!$Z43,0),"") ->  | S42: =IF($C42<>"",OFFSET(Participant_Database!$S$3,Participant_Database!$Z43,0),"") ->  | T42: =IF($C42<>"",OFFSET(Participant_Database!$T$3,Participant_Database!$Z43,0),"") ->  | U42: =IF($C42<>"",OFFSET(Participant_Database!$U$3,Participant_Database!$Z43,0),"") ->  | V42: =IF($C42<>"",OFFSET(Participant_Database!$V$3,Participant_Database!$Z43,0),"") ->  | W42: =IF($C42<>"",OFFSET(Participant_Database!$W$3,Participant_Database!$Z43,0),"") ->  | X42: =IF(C42<>"",Participant_Database!$Z41,"") -> 
A43: =IF($C43<>"",OFFSET(Participant_Database!$A$3,Participant_Database!$Z44,0),"") ->  | B43: =IF($C43<>"",OFFSET(Participant_Database!$B$3,Participant_Database!$Z44,0),"") ->  | C43: =IF(OFFSET(Participant_Database!$C$3,Participant_Database!$Z44,0)<>"",OFFSET(Participant_Database!$C$3,Participant_Database!$Z44,0),"") ->  | D43: =IF($C43<>"",OFFSET(Participant_Database!$D$3,Participant_Database!$Z44,0),"") ->  | E43: =IF($C43<>"",OFFSET(Participant_Database!$E$3,Participant_Database!$Z44,0),"") ->  | F43: =IF($C43<>"",OFFSET(Participant_Database!$F$3,Participant_Database!$Z44,0),"") ->  | G43: =IF($C43<>"",OFFSET(Participant_Database!$G$3,Participant_Database!$Z44,0),"") ->  | H43: =IF($C43<>"",OFFSET(Participant_Database!$H$3,Participant_Database!$Z44,0),"") ->  | I43: =IF($C43<>"",OFFSET(Participant_Database!$I$3,Participant_Database!$Z44,0),"") ->  | J43: =IF($C43<>"",OFFSET(Participant_Database!$J$3,Participant_Database!$Z44,0),"") ->  | K43: =IF($C43<>"",OFFSET(Participant_Database!$K$3,Participant_Database!$Z44,0),"") ->  | L43: =IF($C43<>"",OFFSET(Participant_Database!$L$3,Participant_Database!$Z44,0),"") ->  | M43: =IF($C43<>"",OFFSET(Participant_Database!$M$3,Participant_Database!$Z44,0),"") ->  | N43: =IF($C43<>"",OFFSET(Participant_Database!$N$3,Participant_Database!$Z44,0),"") ->  | O43: =IF($C43<>"",OFFSET(Participant_Database!$O$3,Participant_Database!$Z44,0),"") ->  | P43: =IF($C43<>"",OFFSET(Participant_Database!$P$3,Participant_Database!$Z44,0),"") ->  | Q43: =IF($C43<>"",OFFSET(Participant_Database!$Q$3,Participant_Database!$Z44,0),"") ->  | R43: =IF($C43<>"",OFFSET(Participant_Database!$R$3,Participant_Database!$Z44,0),"") ->  | S43: =IF($C43<>"",OFFSET(Participant_Database!$S$3,Participant_Database!$Z44,0),"") ->  | T43: =IF($C43<>"",OFFSET(Participant_Database!$T$3,Participant_Database!$Z44,0),"") ->  | U43: =IF($C43<>"",OFFSET(Participant_Database!$U$3,Participant_Database!$Z44,0),"") ->  | V43: =IF($C43<>"",OFFSET(Participant_Database!$V$3,Participant_Database!$Z44,0),"") ->  | W43: =IF($C43<>"",OFFSET(Participant_Database!$W$3,Participant_Database!$Z44,0),"") ->  | X43: =IF(C43<>"",Participant_Database!$Z42,"") -> 
A44: =IF($C44<>"",OFFSET(Participant_Database!$A$3,Participant_Database!$Z45,0),"") ->  | B44: =IF($C44<>"",OFFSET(Participant_Database!$B$3,Participant_Database!$Z45,0),"") ->  | C44: =IF(OFFSET(Participant_Database!$C$3,Participant_Database!$Z45,0)<>"",OFFSET(Participant_Database!$C$3,Participant_Database!$Z45,0),"") ->  | D44: =IF($C44<>"",OFFSET(Participant_Database!$D$3,Participant_Database!$Z45,0),"") ->  | E44: =IF($C44<>"",OFFSET(Participant_Database!$E$3,Participant_Database!$Z45,0),"") ->  | F44: =IF($C44<>"",OFFSET(Participant_Database!$F$3,Participant_Database!$Z45,0),"") ->  | G44: =IF($C44<>"",OFFSET(Participant_Database!$G$3,Participant_Database!$Z45,0),"") ->  | H44: =IF($C44<>"",OFFSET(Participant_Database!$H$3,Participant_Database!$Z45,0),"") ->  | I44: =IF($C44<>"",OFFSET(Participant_Database!$I$3,Participant_Database!$Z45,0),"") ->  | J44: =IF($C44<>"",OFFSET(Participant_Database!$J$3,Participant_Database!$Z45,0),"") ->  | K44: =IF($C44<>"",OFFSET(Participant_Database!$K$3,Participant_Database!$Z45,0),"") ->  | L44: =IF($C44<>"",OFFSET(Participant_Database!$L$3,Participant_Database!$Z45,0),"") ->  | M44: =IF($C44<>"",OFFSET(Participant_Database!$M$3,Participant_Database!$Z45,0),"") ->  | N44: =IF($C44<>"",OFFSET(Participant_Database!$N$3,Participant_Database!$Z45,0),"") ->  | O44: =IF($C44<>"",OFFSET(Participant_Database!$O$3,Participant_Database!$Z45,0),"") ->  | P44: =IF($C44<>"",OFFSET(Participant_Database!$P$3,Participant_Database!$Z45,0),"") ->  | Q44: =IF($C44<>"",OFFSET(Participant_Database!$Q$3,Participant_Database!$Z45,0),"") ->  | R44: =IF($C44<>"",OFFSET(Participant_Database!$R$3,Participant_Database!$Z45,0),"") ->  | S44: =IF($C44<>"",OFFSET(Participant_Database!$S$3,Participant_Database!$Z45,0),"") ->  | T44: =IF($C44<>"",OFFSET(Participant_Database!$T$3,Participant_Database!$Z45,0),"") ->  | U44: =IF($C44<>"",OFFSET(Participant_Database!$U$3,Participant_Database!$Z45,0),"") ->  | V44: =IF($C44<>"",OFFSET(Participant_Database!$V$3,Participant_Database!$Z45,0),"") ->  | W44: =IF($C44<>"",OFFSET(Participant_Database!$W$3,Participant_Database!$Z45,0),"") ->  | X44: =IF(C44<>"",Participant_Database!$Z43,"") -> 
A45: =IF($C45<>"",OFFSET(Participant_Database!$A$3,Participant_Database!$Z46,0),"") ->  | B45: =IF($C45<>"",OFFSET(Participant_Database!$B$3,Participant_Database!$Z46,0),"") ->  | C45: =IF(OFFSET(Participant_Database!$C$3,Participant_Database!$Z46,0)<>"",OFFSET(Participant_Database!$C$3,Participant_Database!$Z46,0),"") ->  | D45: =IF($C45<>"",OFFSET(Participant_Database!$D$3,Participant_Database!$Z46,0),"") ->  | E45: =IF($C45<>"",OFFSET(Participant_Database!$E$3,Participant_Database!$Z46,0),"") ->  | F45: =IF($C45<>"",OFFSET(Participant_Database!$F$3,Participant_Database!$Z46,0),"") ->  | G45: =IF($C45<>"",OFFSET(Participant_Database!$G$3,Participant_Database!$Z46,0),"") ->  | H45: =IF($C45<>"",OFFSET(Participant_Database!$H$3,Participant_Database!$Z46,0),"") ->  | I45: =IF($C45<>"",OFFSET(Participant_Database!$I$3,Participant_Database!$Z46,0),"") ->  | J45: =IF($C45<>"",OFFSET(Participant_Database!$J$3,Participant_Database!$Z46,0),"") ->  | K45: =IF($C45<>"",OFFSET(Participant_Database!$K$3,Participant_Database!$Z46,0),"") ->  | L45: =IF($C45<>"",OFFSET(Participant_Database!$L$3,Participant_Database!$Z46,0),"") ->  | M45: =IF($C45<>"",OFFSET(Participant_Database!$M$3,Participant_Database!$Z46,0),"") ->  | N45: =IF($C45<>"",OFFSET(Participant_Database!$N$3,Participant_Database!$Z46,0),"") ->  | O45: =IF($C45<>"",OFFSET(Participant_Database!$O$3,Participant_Database!$Z46,0),"") ->  | P45: =IF($C45<>"",OFFSET(Participant_Database!$P$3,Participant_Database!$Z46,0),"") ->  | Q45: =IF($C45<>"",OFFSET(Participant_Database!$Q$3,Participant_Database!$Z46,0),"") ->  | R45: =IF($C45<>"",OFFSET(Participant_Database!$R$3,Participant_Database!$Z46,0),"") ->  | S45: =IF($C45<>"",OFFSET(Participant_Database!$S$3,Participant_Database!$Z46,0),"") ->  | T45: =IF($C45<>"",OFFSET(Participant_Database!$T$3,Participant_Database!$Z46,0),"") ->  | U45: =IF($C45<>"",OFFSET(Participant_Database!$U$3,Participant_Database!$Z46,0),"") ->  | V45: =IF($C45<>"",OFFSET(Participant_Database!$V$3,Participant_Database!$Z46,0),"") ->  | W45: =IF($C45<>"",OFFSET(Participant_Database!$W$3,Participant_Database!$Z46,0),"") ->  | X45: =IF(C45<>"",Participant_Database!$Z44,"") -> 
A46: =IF($C46<>"",OFFSET(Participant_Database!$A$3,Participant_Database!$Z47,0),"") ->  | B46: =IF($C46<>"",OFFSET(Participant_Database!$B$3,Participant_Database!$Z47,0),"") ->  | C46: =IF(OFFSET(Participant_Database!$C$3,Participant_Database!$Z47,0)<>"",OFFSET(Participant_Database!$C$3,Participant_Database!$Z47,0),"") ->  | D46: =IF($C46<>"",OFFSET(Participant_Database!$D$3,Participant_Database!$Z47,0),"") ->  | E46: =IF($C46<>"",OFFSET(Participant_Database!$E$3,Participant_Database!$Z47,0),"") ->  | F46: =IF($C46<>"",OFFSET(Participant_Database!$F$3,Participant_Database!$Z47,0),"") ->  | G46: =IF($C46<>"",OFFSET(Participant_Database!$G$3,Participant_Database!$Z47,0),"") ->  | H46: =IF($C46<>"",OFFSET(Participant_Database!$H$3,Participant_Database!$Z47,0),"") ->  | I46: =IF($C46<>"",OFFSET(Participant_Database!$I$3,Participant_Database!$Z47,0),"") ->  | J46: =IF($C46<>"",OFFSET(Participant_Database!$J$3,Participant_Database!$Z47,0),"") ->  | K46: =IF($C46<>"",OFFSET(Participant_Database!$K$3,Participant_Database!$Z47,0),"") ->  | L46: =IF($C46<>"",OFFSET(Participant_Database!$L$3,Participant_Database!$Z47,0),"") ->  | M46: =IF($C46<>"",OFFSET(Participant_Database!$M$3,Participant_Database!$Z47,0),"") ->  | N46: =IF($C46<>"",OFFSET(Participant_Database!$N$3,Participant_Database!$Z47,0),"") ->  | O46: =IF($C46<>"",OFFSET(Participant_Database!$O$3,Participant_Database!$Z47,0),"") ->  | P46: =IF($C46<>"",OFFSET(Participant_Database!$P$3,Participant_Database!$Z47,0),"") ->  | Q46: =IF($C46<>"",OFFSET(Participant_Database!$Q$3,Participant_Database!$Z47,0),"") ->  | R46: =IF($C46<>"",OFFSET(Participant_Database!$R$3,Participant_Database!$Z47,0),"") ->  | S46: =IF($C46<>"",OFFSET(Participant_Database!$S$3,Participant_Database!$Z47,0),"") ->  | T46: =IF($C46<>"",OFFSET(Participant_Database!$T$3,Participant_Database!$Z47,0),"") ->  | U46: =IF($C46<>"",OFFSET(Participant_Database!$U$3,Participant_Database!$Z47,0),"") ->  | V46: =IF($C46<>"",OFFSET(Participant_Database!$V$3,Participant_Database!$Z47,0),"") ->  | W46: =IF($C46<>"",OFFSET(Participant_Database!$W$3,Participant_Database!$Z47,0),"") ->  | X46: =IF(C46<>"",Participant_Database!$Z45,"") -> 
A47: =IF($C47<>"",OFFSET(Participant_Database!$A$3,Participant_Database!$Z48,0),"") ->  | B47: =IF($C47<>"",OFFSET(Participant_Database!$B$3,Participant_Database!$Z48,0),"") ->  | C47: =IF(OFFSET(Participant_Database!$C$3,Participant_Database!$Z48,0)<>"",OFFSET(Participant_Database!$C$3,Participant_Database!$Z48,0),"") ->  | D47: =IF($C47<>"",OFFSET(Participant_Database!$D$3,Participant_Database!$Z48,0),"") ->  | E47: =IF($C47<>"",OFFSET(Participant_Database!$E$3,Participant_Database!$Z48,0),"") ->  | F47: =IF($C47<>"",OFFSET(Participant_Database!$F$3,Participant_Database!$Z48,0),"") ->  | G47: =IF($C47<>"",OFFSET(Participant_Database!$G$3,Participant_Database!$Z48,0),"") ->  | H47: =IF($C47<>"",OFFSET(Participant_Database!$H$3,Participant_Database!$Z48,0),"") ->  | I47: =IF($C47<>"",OFFSET(Participant_Database!$I$3,Participant_Database!$Z48,0),"") ->  | J47: =IF($C47<>"",OFFSET(Participant_Database!$J$3,Participant_Database!$Z48,0),"") ->  | K47: =IF($C47<>"",OFFSET(Participant_Database!$K$3,Participant_Database!$Z48,0),"") ->  | L47: =IF($C47<>"",OFFSET(Participant_Database!$L$3,Participant_Database!$Z48,0),"") ->  | M47: =IF($C47<>"",OFFSET(Participant_Database!$M$3,Participant_Database!$Z48,0),"") ->  | N47: =IF($C47<>"",OFFSET(Participant_Database!$N$3,Participant_Database!$Z48,0),"") ->  | O47: =IF($C47<>"",OFFSET(Participant_Database!$O$3,Participant_Database!$Z48,0),"") ->  | P47: =IF($C47<>"",OFFSET(Participant_Database!$P$3,Participant_Database!$Z48,0),"") ->  | Q47: =IF($C47<>"",OFFSET(Participant_Database!$Q$3,Participant_Database!$Z48,0),"") ->  | R47: =IF($C47<>"",OFFSET(Participant_Database!$R$3,Participant_Database!$Z48,0),"") ->  | S47: =IF($C47<>"",OFFSET(Participant_Database!$S$3,Participant_Database!$Z48,0),"") ->  | T47: =IF($C47<>"",OFFSET(Participant_Database!$T$3,Participant_Database!$Z48,0),"") ->  | U47: =IF($C47<>"",OFFSET(Participant_Database!$U$3,Participant_Database!$Z48,0),"") ->  | V47: =IF($C47<>"",OFFSET(Participant_Database!$V$3,Participant_Database!$Z48,0),"") ->  | W47: =IF($C47<>"",OFFSET(Participant_Database!$W$3,Participant_Database!$Z48,0),"") ->  | X47: =IF(C47<>"",Participant_Database!$Z46,"") -> 
A48: =IF($C48<>"",OFFSET(Participant_Database!$A$3,Participant_Database!$Z49,0),"") ->  | B48: =IF($C48<>"",OFFSET(Participant_Database!$B$3,Participant_Database!$Z49,0),"") ->  | C48: =IF(OFFSET(Participant_Database!$C$3,Participant_Database!$Z49,0)<>"",OFFSET(Participant_Database!$C$3,Participant_Database!$Z49,0),"") ->  | D48: =IF($C48<>"",OFFSET(Participant_Database!$D$3,Participant_Database!$Z49,0),"") ->  | E48: =IF($C48<>"",OFFSET(Participant_Database!$E$3,Participant_Database!$Z49,0),"") ->  | F48: =IF($C48<>"",OFFSET(Participant_Database!$F$3,Participant_Database!$Z49,0),"") ->  | G48: =IF($C48<>"",OFFSET(Participant_Database!$G$3,Participant_Database!$Z49,0),"") ->  | H48: =IF($C48<>"",OFFSET(Participant_Database!$H$3,Participant_Database!$Z49,0),"") ->  | I48: =IF($C48<>"",OFFSET(Participant_Database!$I$3,Participant_Database!$Z49,0),"") ->  | J48: =IF($C48<>"",OFFSET(Participant_Database!$J$3,Participant_Database!$Z49,0),"") ->  | K48: =IF($C48<>"",OFFSET(Participant_Database!$K$3,Participant_Database!$Z49,0),"") ->  | L48: =IF($C48<>"",OFFSET(Participant_Database!$L$3,Participant_Database!$Z49,0),"") ->  | M48: =IF($C48<>"",OFFSET(Participant_Database!$M$3,Participant_Database!$Z49,0),"") ->  | N48: =IF($C48<>"",OFFSET(Participant_Database!$N$3,Participant_Database!$Z49,0),"") ->  | O48: =IF($C48<>"",OFFSET(Participant_Database!$O$3,Participant_Database!$Z49,0),"") ->  | P48: =IF($C48<>"",OFFSET(Participant_Database!$P$3,Participant_Database!$Z49,0),"") ->  | Q48: =IF($C48<>"",OFFSET(Participant_Database!$Q$3,Participant_Database!$Z49,0),"") ->  | R48: =IF($C48<>"",OFFSET(Participant_Database!$R$3,Participant_Database!$Z49,0),"") ->  | S48: =IF($C48<>"",OFFSET(Participant_Database!$S$3,Participant_Database!$Z49,0),"") ->  | T48: =IF($C48<>"",OFFSET(Participant_Database!$T$3,Participant_Database!$Z49,0),"") ->  | U48: =IF($C48<>"",OFFSET(Participant_Database!$U$3,Participant_Database!$Z49,0),"") ->  | V48: =IF($C48<>"",OFFSET(Participant_Database!$V$3,Participant_Database!$Z49,0),"") ->  | W48: =IF($C48<>"",OFFSET(Participant_Database!$W$3,Participant_Database!$Z49,0),"") ->  | X48: =IF(C48<>"",Participant_Database!$Z47,"") -> 
A49: =IF($C49<>"",OFFSET(Participant_Database!$A$3,Participant_Database!$Z50,0),"") ->  | B49: =IF($C49<>"",OFFSET(Participant_Database!$B$3,Participant_Database!$Z50,0),"") ->  | C49: =IF(OFFSET(Participant_Database!$C$3,Participant_Database!$Z50,0)<>"",OFFSET(Participant_Database!$C$3,Participant_Database!$Z50,0),"") ->  | D49: =IF($C49<>"",OFFSET(Participant_Database!$D$3,Participant_Database!$Z50,0),"") ->  | E49: =IF($C49<>"",OFFSET(Participant_Database!$E$3,Participant_Database!$Z50,0),"") ->  | F49: =IF($C49<>"",OFFSET(Participant_Database!$F$3,Participant_Database!$Z50,0),"") ->  | G49: =IF($C49<>"",OFFSET(Participant_Database!$G$3,Participant_Database!$Z50,0),"") ->  | H49: =IF($C49<>"",OFFSET(Participant_Database!$H$3,Participant_Database!$Z50,0),"") ->  | I49: =IF($C49<>"",OFFSET(Participant_Database!$I$3,Participant_Database!$Z50,0),"") ->  | J49: =IF($C49<>"",OFFSET(Participant_Database!$J$3,Participant_Database!$Z50,0),"") ->  | K49: =IF($C49<>"",OFFSET(Participant_Database!$K$3,Participant_Database!$Z50,0),"") ->  | L49: =IF($C49<>"",OFFSET(Participant_Database!$L$3,Participant_Database!$Z50,0),"") ->  | M49: =IF($C49<>"",OFFSET(Participant_Database!$M$3,Participant_Database!$Z50,0),"") ->  | N49: =IF($C49<>"",OFFSET(Participant_Database!$N$3,Participant_Database!$Z50,0),"") ->  | O49: =IF($C49<>"",OFFSET(Participant_Database!$O$3,Participant_Database!$Z50,0),"") ->  | P49: =IF($C49<>"",OFFSET(Participant_Database!$P$3,Participant_Database!$Z50,0),"") ->  | Q49: =IF($C49<>"",OFFSET(Participant_Database!$Q$3,Participant_Database!$Z50,0),"") ->  | R49: =IF($C49<>"",OFFSET(Participant_Database!$R$3,Participant_Database!$Z50,0),"") ->  | S49: =IF($C49<>"",OFFSET(Participant_Database!$S$3,Participant_Database!$Z50,0),"") ->  | T49: =IF($C49<>"",OFFSET(Participant_Database!$T$3,Participant_Database!$Z50,0),"") ->  | U49: =IF($C49<>"",OFFSET(Participant_Database!$U$3,Participant_Database!$Z50,0),"") ->  | V49: =IF($C49<>"",OFFSET(Participant_Database!$V$3,Participant_Database!$Z50,0),"") ->  | W49: =IF($C49<>"",OFFSET(Participant_Database!$W$3,Participant_Database!$Z50,0),"") ->  | X49: =IF(C49<>"",Participant_Database!$Z48,"") -> 
A50: =IF($C50<>"",OFFSET(Participant_Database!$A$3,Participant_Database!$Z51,0),"") ->  | B50: =IF($C50<>"",OFFSET(Participant_Database!$B$3,Participant_Database!$Z51,0),"") ->  | C50: =IF(OFFSET(Participant_Database!$C$3,Participant_Database!$Z51,0)<>"",OFFSET(Participant_Database!$C$3,Participant_Database!$Z51,0),"") ->  | D50: =IF($C50<>"",OFFSET(Participant_Database!$D$3,Participant_Database!$Z51,0),"") ->  | E50: =IF($C50<>"",OFFSET(Participant_Database!$E$3,Participant_Database!$Z51,0),"") ->  | F50: =IF($C50<>"",OFFSET(Participant_Database!$F$3,Participant_Database!$Z51,0),"") ->  | G50: =IF($C50<>"",OFFSET(Participant_Database!$G$3,Participant_Database!$Z51,0),"") ->  | H50: =IF($C50<>"",OFFSET(Participant_Database!$H$3,Participant_Database!$Z51,0),"") ->  | I50: =IF($C50<>"",OFFSET(Participant_Database!$I$3,Participant_Database!$Z51,0),"") ->  | J50: =IF($C50<>"",OFFSET(Participant_Database!$J$3,Participant_Database!$Z51,0),"") ->  | K50: =IF($C50<>"",OFFSET(Participant_Database!$K$3,Participant_Database!$Z51,0),"") ->  | L50: =IF($C50<>"",OFFSET(Participant_Database!$L$3,Participant_Database!$Z51,0),"") ->  | M50: =IF($C50<>"",OFFSET(Participant_Database!$M$3,Participant_Database!$Z51,0),"") ->  | N50: =IF($C50<>"",OFFSET(Participant_Database!$N$3,Participant_Database!$Z51,0),"") ->  | O50: =IF($C50<>"",OFFSET(Participant_Database!$O$3,Participant_Database!$Z51,0),"") ->  | P50: =IF($C50<>"",OFFSET(Participant_Database!$P$3,Participant_Database!$Z51,0),"") ->  | Q50: =IF($C50<>"",OFFSET(Participant_Database!$Q$3,Participant_Database!$Z51,0),"") ->  | R50: =IF($C50<>"",OFFSET(Participant_Database!$R$3,Participant_Database!$Z51,0),"") ->  | S50: =IF($C50<>"",OFFSET(Participant_Database!$S$3,Participant_Database!$Z51,0),"") ->  | T50: =IF($C50<>"",OFFSET(Participant_Database!$T$3,Participant_Database!$Z51,0),"") ->  | U50: =IF($C50<>"",OFFSET(Participant_Database!$U$3,Participant_Database!$Z51,0),"") ->  | V50: =IF($C50<>"",OFFSET(Participant_Database!$V$3,Participant_Database!$Z51,0),"") ->  | W50: =IF($C50<>"",OFFSET(Participant_Database!$W$3,Participant_Database!$Z51,0),"") ->  | X50: =IF(C50<>"",Participant_Database!$Z49,"") -> 
A51: =IF($C51<>"",OFFSET(Participant_Database!$A$3,Participant_Database!$Z52,0),"") ->  | B51: =IF($C51<>"",OFFSET(Participant_Database!$B$3,Participant_Database!$Z52,0),"") ->  | C51: =IF(OFFSET(Participant_Database!$C$3,Participant_Database!$Z52,0)<>"",OFFSET(Participant_Database!$C$3,Participant_Database!$Z52,0),"") ->  | D51: =IF($C51<>"",OFFSET(Participant_Database!$D$3,Participant_Database!$Z52,0),"") ->  | E51: =IF($C51<>"",OFFSET(Participant_Database!$E$3,Participant_Database!$Z52,0),"") ->  | F51: =IF($C51<>"",OFFSET(Participant_Database!$F$3,Participant_Database!$Z52,0),"") ->  | G51: =IF($C51<>"",OFFSET(Participant_Database!$G$3,Participant_Database!$Z52,0),"") ->  | H51: =IF($C51<>"",OFFSET(Participant_Database!$H$3,Participant_Database!$Z52,0),"") ->  | I51: =IF($C51<>"",OFFSET(Participant_Database!$I$3,Participant_Database!$Z52,0),"") ->  | J51: =IF($C51<>"",OFFSET(Participant_Database!$J$3,Participant_Database!$Z52,0),"") ->  | K51: =IF($C51<>"",OFFSET(Participant_Database!$K$3,Participant_Database!$Z52,0),"") ->  | L51: =IF($C51<>"",OFFSET(Participant_Database!$L$3,Participant_Database!$Z52,0),"") ->  | M51: =IF($C51<>"",OFFSET(Participant_Database!$M$3,Participant_Database!$Z52,0),"") ->  | N51: =IF($C51<>"",OFFSET(Participant_Database!$N$3,Participant_Database!$Z52,0),"") ->  | O51: =IF($C51<>"",OFFSET(Participant_Database!$O$3,Participant_Database!$Z52,0),"") ->  | P51: =IF($C51<>"",OFFSET(Participant_Database!$P$3,Participant_Database!$Z52,0),"") ->  | Q51: =IF($C51<>"",OFFSET(Participant_Database!$Q$3,Participant_Database!$Z52,0),"") ->  | R51: =IF($C51<>"",OFFSET(Participant_Database!$R$3,Participant_Database!$Z52,0),"") ->  | S51: =IF($C51<>"",OFFSET(Participant_Database!$S$3,Participant_Database!$Z52,0),"") ->  | T51: =IF($C51<>"",OFFSET(Participant_Database!$T$3,Participant_Database!$Z52,0),"") ->  | U51: =IF($C51<>"",OFFSET(Participant_Database!$U$3,Participant_Database!$Z52,0),"") ->  | V51: =IF($C51<>"",OFFSET(Participant_Database!$V$3,Participant_Database!$Z52,0),"") ->  | W51: =IF($C51<>"",OFFSET(Participant_Database!$W$3,Participant_Database!$Z52,0),"") ->  | X51: =IF(C51<>"",Participant_Database!$Z50,"") -> 
A52: =IF($C52<>"",OFFSET(Participant_Database!$A$3,Participant_Database!$Z53,0),"") ->  | B52: =IF($C52<>"",OFFSET(Participant_Database!$B$3,Participant_Database!$Z53,0),"") ->  | C52: =IF(OFFSET(Participant_Database!$C$3,Participant_Database!$Z53,0)<>"",OFFSET(Participant_Database!$C$3,Participant_Database!$Z53,0),"") ->  | D52: =IF($C52<>"",OFFSET(Participant_Database!$D$3,Participant_Database!$Z53,0),"") ->  | E52: =IF($C52<>"",OFFSET(Participant_Database!$E$3,Participant_Database!$Z53,0),"") ->  | F52: =IF($C52<>"",OFFSET(Participant_Database!$F$3,Participant_Database!$Z53,0),"") ->  | G52: =IF($C52<>"",OFFSET(Participant_Database!$G$3,Participant_Database!$Z53,0),"") ->  | H52: =IF($C52<>"",OFFSET(Participant_Database!$H$3,Participant_Database!$Z53,0),"") ->  | I52: =IF($C52<>"",OFFSET(Participant_Database!$I$3,Participant_Database!$Z53,0),"") ->  | J52: =IF($C52<>"",OFFSET(Participant_Database!$J$3,Participant_Database!$Z53,0),"") ->  | K52: =IF($C52<>"",OFFSET(Participant_Database!$K$3,Participant_Database!$Z53,0),"") ->  | L52: =IF($C52<>"",OFFSET(Participant_Database!$L$3,Participant_Database!$Z53,0),"") ->  | M52: =IF($C52<>"",OFFSET(Participant_Database!$M$3,Participant_Database!$Z53,0),"") ->  | N52: =IF($C52<>"",OFFSET(Participant_Database!$N$3,Participant_Database!$Z53,0),"") ->  | O52: =IF($C52<>"",OFFSET(Participant_Database!$O$3,Participant_Database!$Z53,0),"") ->  | P52: =IF($C52<>"",OFFSET(Participant_Database!$P$3,Participant_Database!$Z53,0),"") ->  | Q52: =IF($C52<>"",OFFSET(Participant_Database!$Q$3,Participant_Database!$Z53,0),"") ->  | R52: =IF($C52<>"",OFFSET(Participant_Database!$R$3,Participant_Database!$Z53,0),"") ->  | S52: =IF($C52<>"",OFFSET(Participant_Database!$S$3,Participant_Database!$Z53,0),"") ->  | T52: =IF($C52<>"",OFFSET(Participant_Database!$T$3,Participant_Database!$Z53,0),"") ->  | U52: =IF($C52<>"",OFFSET(Participant_Database!$U$3,Participant_Database!$Z53,0),"") ->  | V52: =IF($C52<>"",OFFSET(Participant_Database!$V$3,Participant_Database!$Z53,0),"") ->  | W52: =IF($C52<>"",OFFSET(Participant_Database!$W$3,Participant_Database!$Z53,0),"") ->  | X52: =IF(C52<>"",Participant_Database!$Z51,"") -> 
A53: =IF($C53<>"",OFFSET(Participant_Database!$A$3,Participant_Database!$Z54,0),"") ->  | B53: =IF($C53<>"",OFFSET(Participant_Database!$B$3,Participant_Database!$Z54,0),"") ->  | C53: =IF(OFFSET(Participant_Database!$C$3,Participant_Database!$Z54,0)<>"",OFFSET(Participant_Database!$C$3,Participant_Database!$Z54,0),"") ->  | D53: =IF($C53<>"",OFFSET(Participant_Database!$D$3,Participant_Database!$Z54,0),"") ->  | E53: =IF($C53<>"",OFFSET(Participant_Database!$E$3,Participant_Database!$Z54,0),"") ->  | F53: =IF($C53<>"",OFFSET(Participant_Database!$F$3,Participant_Database!$Z54,0),"") ->  | G53: =IF($C53<>"",OFFSET(Participant_Database!$G$3,Participant_Database!$Z54,0),"") ->  | H53: =IF($C53<>"",OFFSET(Participant_Database!$H$3,Participant_Database!$Z54,0),"") ->  | I53: =IF($C53<>"",OFFSET(Participant_Database!$I$3,Participant_Database!$Z54,0),"") ->  | J53: =IF($C53<>"",OFFSET(Participant_Database!$J$3,Participant_Database!$Z54,0),"") ->  | K53: =IF($C53<>"",OFFSET(Participant_Database!$K$3,Participant_Database!$Z54,0),"") ->  | L53: =IF($C53<>"",OFFSET(Participant_Database!$L$3,Participant_Database!$Z54,0),"") ->  | M53: =IF($C53<>"",OFFSET(Participant_Database!$M$3,Participant_Database!$Z54,0),"") ->  | N53: =IF($C53<>"",OFFSET(Participant_Database!$N$3,Participant_Database!$Z54,0),"") ->  | O53: =IF($C53<>"",OFFSET(Participant_Database!$O$3,Participant_Database!$Z54,0),"") ->  | P53: =IF($C53<>"",OFFSET(Participant_Database!$P$3,Participant_Database!$Z54,0),"") ->  | Q53: =IF($C53<>"",OFFSET(Participant_Database!$Q$3,Participant_Database!$Z54,0),"") ->  | R53: =IF($C53<>"",OFFSET(Participant_Database!$R$3,Participant_Database!$Z54,0),"") ->  | S53: =IF($C53<>"",OFFSET(Participant_Database!$S$3,Participant_Database!$Z54,0),"") ->  | T53: =IF($C53<>"",OFFSET(Participant_Database!$T$3,Participant_Database!$Z54,0),"") ->  | U53: =IF($C53<>"",OFFSET(Participant_Database!$U$3,Participant_Database!$Z54,0),"") ->  | V53: =IF($C53<>"",OFFSET(Participant_Database!$V$3,Participant_Database!$Z54,0),"") ->  | W53: =IF($C53<>"",OFFSET(Participant_Database!$W$3,Participant_Database!$Z54,0),"") ->  | X53: =IF(C53<>"",Participant_Database!$Z52,"") -> 
A54: =IF($C54<>"",OFFSET(Participant_Database!$A$3,Participant_Database!$Z55,0),"") ->  | B54: =IF($C54<>"",OFFSET(Participant_Database!$B$3,Participant_Database!$Z55,0),"") ->  | C54: =IF(OFFSET(Participant_Database!$C$3,Participant_Database!$Z55,0)<>"",OFFSET(Participant_Database!$C$3,Participant_Database!$Z55,0),"") ->  | D54: =IF($C54<>"",OFFSET(Participant_Database!$D$3,Participant_Database!$Z55,0),"") ->  | E54: =IF($C54<>"",OFFSET(Participant_Database!$E$3,Participant_Database!$Z55,0),"") ->  | F54: =IF($C54<>"",OFFSET(Participant_Database!$F$3,Participant_Database!$Z55,0),"") ->  | G54: =IF($C54<>"",OFFSET(Participant_Database!$G$3,Participant_Database!$Z55,0),"") ->  | H54: =IF($C54<>"",OFFSET(Participant_Database!$H$3,Participant_Database!$Z55,0),"") ->  | I54: =IF($C54<>"",OFFSET(Participant_Database!$I$3,Participant_Database!$Z55,0),"") ->  | J54: =IF($C54<>"",OFFSET(Participant_Database!$J$3,Participant_Database!$Z55,0),"") ->  | K54: =IF($C54<>"",OFFSET(Participant_Database!$K$3,Participant_Database!$Z55,0),"") ->  | L54: =IF($C54<>"",OFFSET(Participant_Database!$L$3,Participant_Database!$Z55,0),"") ->  | M54: =IF($C54<>"",OFFSET(Participant_Database!$M$3,Participant_Database!$Z55,0),"") ->  | N54: =IF($C54<>"",OFFSET(Participant_Database!$N$3,Participant_Database!$Z55,0),"") ->  | O54: =IF($C54<>"",OFFSET(Participant_Database!$O$3,Participant_Database!$Z55,0),"") ->  | P54: =IF($C54<>"",OFFSET(Participant_Database!$P$3,Participant_Database!$Z55,0),"") ->  | Q54: =IF($C54<>"",OFFSET(Participant_Database!$Q$3,Participant_Database!$Z55,0),"") ->  | R54: =IF($C54<>"",OFFSET(Participant_Database!$R$3,Participant_Database!$Z55,0),"") ->  | S54: =IF($C54<>"",OFFSET(Participant_Database!$S$3,Participant_Database!$Z55,0),"") ->  | T54: =IF($C54<>"",OFFSET(Participant_Database!$T$3,Participant_Database!$Z55,0),"") ->  | U54: =IF($C54<>"",OFFSET(Participant_Database!$U$3,Participant_Database!$Z55,0),"") ->  | V54: =IF($C54<>"",OFFSET(Participant_Database!$V$3,Participant_Database!$Z55,0),"") ->  | W54: =IF($C54<>"",OFFSET(Participant_Database!$W$3,Participant_Database!$Z55,0),"") ->  | X54: =IF(C54<>"",Participant_Database!$Z53,"") -> 
A55: =IF($C55<>"",OFFSET(Participant_Database!$A$3,Participant_Database!$Z56,0),"") ->  | B55: =IF($C55<>"",OFFSET(Participant_Database!$B$3,Participant_Database!$Z56,0),"") ->  | C55: =IF(OFFSET(Participant_Database!$C$3,Participant_Database!$Z56,0)<>"",OFFSET(Participant_Database!$C$3,Participant_Database!$Z56,0),"") ->  | D55: =IF($C55<>"",OFFSET(Participant_Database!$D$3,Participant_Database!$Z56,0),"") ->  | E55: =IF($C55<>"",OFFSET(Participant_Database!$E$3,Participant_Database!$Z56,0),"") ->  | F55: =IF($C55<>"",OFFSET(Participant_Database!$F$3,Participant_Database!$Z56,0),"") ->  | G55: =IF($C55<>"",OFFSET(Participant_Database!$G$3,Participant_Database!$Z56,0),"") ->  | H55: =IF($C55<>"",OFFSET(Participant_Database!$H$3,Participant_Database!$Z56,0),"") ->  | I55: =IF($C55<>"",OFFSET(Participant_Database!$I$3,Participant_Database!$Z56,0),"") ->  | J55: =IF($C55<>"",OFFSET(Participant_Database!$J$3,Participant_Database!$Z56,0),"") ->  | K55: =IF($C55<>"",OFFSET(Participant_Database!$K$3,Participant_Database!$Z56,0),"") ->  | L55: =IF($C55<>"",OFFSET(Participant_Database!$L$3,Participant_Database!$Z56,0),"") ->  | M55: =IF($C55<>"",OFFSET(Participant_Database!$M$3,Participant_Database!$Z56,0),"") ->  | N55: =IF($C55<>"",OFFSET(Participant_Database!$N$3,Participant_Database!$Z56,0),"") ->  | O55: =IF($C55<>"",OFFSET(Participant_Database!$O$3,Participant_Database!$Z56,0),"") ->  | P55: =IF($C55<>"",OFFSET(Participant_Database!$P$3,Participant_Database!$Z56,0),"") ->  | Q55: =IF($C55<>"",OFFSET(Participant_Database!$Q$3,Participant_Database!$Z56,0),"") ->  | R55: =IF($C55<>"",OFFSET(Participant_Database!$R$3,Participant_Database!$Z56,0),"") ->  | S55: =IF($C55<>"",OFFSET(Participant_Database!$S$3,Participant_Database!$Z56,0),"") ->  | T55: =IF($C55<>"",OFFSET(Participant_Database!$T$3,Participant_Database!$Z56,0),"") ->  | U55: =IF($C55<>"",OFFSET(Participant_Database!$U$3,Participant_Database!$Z56,0),"") ->  | V55: =IF($C55<>"",OFFSET(Participant_Database!$V$3,Participant_Database!$Z56,0),"") ->  | W55: =IF($C55<>"",OFFSET(Participant_Database!$W$3,Participant_Database!$Z56,0),"") ->  | X55: =IF(C55<>"",Participant_Database!$Z54,"") -> 
A56: =IF($C56<>"",OFFSET(Participant_Database!$A$3,Participant_Database!$Z57,0),"") ->  | B56: =IF($C56<>"",OFFSET(Participant_Database!$B$3,Participant_Database!$Z57,0),"") ->  | C56: =IF(OFFSET(Participant_Database!$C$3,Participant_Database!$Z57,0)<>"",OFFSET(Participant_Database!$C$3,Participant_Database!$Z57,0),"") ->  | D56: =IF($C56<>"",OFFSET(Participant_Database!$D$3,Participant_Database!$Z57,0),"") ->  | E56: =IF($C56<>"",OFFSET(Participant_Database!$E$3,Participant_Database!$Z57,0),"") ->  | F56: =IF($C56<>"",OFFSET(Participant_Database!$F$3,Participant_Database!$Z57,0),"") ->  | G56: =IF($C56<>"",OFFSET(Participant_Database!$G$3,Participant_Database!$Z57,0),"") ->  | H56: =IF($C56<>"",OFFSET(Participant_Database!$H$3,Participant_Database!$Z57,0),"") ->  | I56: =IF($C56<>"",OFFSET(Participant_Database!$I$3,Participant_Database!$Z57,0),"") ->  | J56: =IF($C56<>"",OFFSET(Participant_Database!$J$3,Participant_Database!$Z57,0),"") ->  | K56: =IF($C56<>"",OFFSET(Participant_Database!$K$3,Participant_Database!$Z57,0),"") ->  | L56: =IF($C56<>"",OFFSET(Participant_Database!$L$3,Participant_Database!$Z57,0),"") ->  | M56: =IF($C56<>"",OFFSET(Participant_Database!$M$3,Participant_Database!$Z57,0),"") ->  | N56: =IF($C56<>"",OFFSET(Participant_Database!$N$3,Participant_Database!$Z57,0),"") ->  | O56: =IF($C56<>"",OFFSET(Participant_Database!$O$3,Participant_Database!$Z57,0),"") ->  | P56: =IF($C56<>"",OFFSET(Participant_Database!$P$3,Participant_Database!$Z57,0),"") ->  | Q56: =IF($C56<>"",OFFSET(Participant_Database!$Q$3,Participant_Database!$Z57,0),"") ->  | R56: =IF($C56<>"",OFFSET(Participant_Database!$R$3,Participant_Database!$Z57,0),"") ->  | S56: =IF($C56<>"",OFFSET(Participant_Database!$S$3,Participant_Database!$Z57,0),"") ->  | T56: =IF($C56<>"",OFFSET(Participant_Database!$T$3,Participant_Database!$Z57,0),"") ->  | U56: =IF($C56<>"",OFFSET(Participant_Database!$U$3,Participant_Database!$Z57,0),"") ->  | V56: =IF($C56<>"",OFFSET(Participant_Database!$V$3,Participant_Database!$Z57,0),"") ->  | W56: =IF($C56<>"",OFFSET(Participant_Database!$W$3,Participant_Database!$Z57,0),"") ->  | X56: =IF(C56<>"",Participant_Database!$Z55,"") -> 
A57: =IF($C57<>"",OFFSET(Participant_Database!$A$3,Participant_Database!$Z58,0),"") ->  | B57: =IF($C57<>"",OFFSET(Participant_Database!$B$3,Participant_Database!$Z58,0),"") ->  | C57: =IF(OFFSET(Participant_Database!$C$3,Participant_Database!$Z58,0)<>"",OFFSET(Participant_Database!$C$3,Participant_Database!$Z58,0),"") ->  | D57: =IF($C57<>"",OFFSET(Participant_Database!$D$3,Participant_Database!$Z58,0),"") ->  | E57: =IF($C57<>"",OFFSET(Participant_Database!$E$3,Participant_Database!$Z58,0),"") ->  | F57: =IF($C57<>"",OFFSET(Participant_Database!$F$3,Participant_Database!$Z58,0),"") ->  | G57: =IF($C57<>"",OFFSET(Participant_Database!$G$3,Participant_Database!$Z58,0),"") ->  | H57: =IF($C57<>"",OFFSET(Participant_Database!$H$3,Participant_Database!$Z58,0),"") ->  | I57: =IF($C57<>"",OFFSET(Participant_Database!$I$3,Participant_Database!$Z58,0),"") ->  | J57: =IF($C57<>"",OFFSET(Participant_Database!$J$3,Participant_Database!$Z58,0),"") ->  | K57: =IF($C57<>"",OFFSET(Participant_Database!$K$3,Participant_Database!$Z58,0),"") ->  | L57: =IF($C57<>"",OFFSET(Participant_Database!$L$3,Participant_Database!$Z58,0),"") ->  | M57: =IF($C57<>"",OFFSET(Participant_Database!$M$3,Participant_Database!$Z58,0),"") ->  | N57: =IF($C57<>"",OFFSET(Participant_Database!$N$3,Participant_Database!$Z58,0),"") ->  | O57: =IF($C57<>"",OFFSET(Participant_Database!$O$3,Participant_Database!$Z58,0),"") ->  | P57: =IF($C57<>"",OFFSET(Participant_Database!$P$3,Participant_Database!$Z58,0),"") ->  | Q57: =IF($C57<>"",OFFSET(Participant_Database!$Q$3,Participant_Database!$Z58,0),"") ->  | R57: =IF($C57<>"",OFFSET(Participant_Database!$R$3,Participant_Database!$Z58,0),"") ->  | S57: =IF($C57<>"",OFFSET(Participant_Database!$S$3,Participant_Database!$Z58,0),"") ->  | T57: =IF($C57<>"",OFFSET(Participant_Database!$T$3,Participant_Database!$Z58,0),"") ->  | U57: =IF($C57<>"",OFFSET(Participant_Database!$U$3,Participant_Database!$Z58,0),"") ->  | V57: =IF($C57<>"",OFFSET(Participant_Database!$V$3,Participant_Database!$Z58,0),"") ->  | W57: =IF($C57<>"",OFFSET(Participant_Database!$W$3,Participant_Database!$Z58,0),"") ->  | X57: =IF(C57<>"",Participant_Database!$Z56,"") -> 
A58: =IF($C58<>"",OFFSET(Participant_Database!$A$3,Participant_Database!$Z59,0),"") ->  | B58: =IF($C58<>"",OFFSET(Participant_Database!$B$3,Participant_Database!$Z59,0),"") ->  | C58: =IF(OFFSET(Participant_Database!$C$3,Participant_Database!$Z59,0)<>"",OFFSET(Participant_Database!$C$3,Participant_Database!$Z59,0),"") ->  | D58: =IF($C58<>"",OFFSET(Participant_Database!$D$3,Participant_Database!$Z59,0),"") ->  | E58: =IF($C58<>"",OFFSET(Participant_Database!$E$3,Participant_Database!$Z59,0),"") ->  | F58: =IF($C58<>"",OFFSET(Participant_Database!$F$3,Participant_Database!$Z59,0),"") ->  | G58: =IF($C58<>"",OFFSET(Participant_Database!$G$3,Participant_Database!$Z59,0),"") ->  | H58: =IF($C58<>"",OFFSET(Participant_Database!$H$3,Participant_Database!$Z59,0),"") ->  | I58: =IF($C58<>"",OFFSET(Participant_Database!$I$3,Participant_Database!$Z59,0),"") ->  | J58: =IF($C58<>"",OFFSET(Participant_Database!$J$3,Participant_Database!$Z59,0),"") ->  | K58: =IF($C58<>"",OFFSET(Participant_Database!$K$3,Participant_Database!$Z59,0),"") ->  | L58: =IF($C58<>"",OFFSET(Participant_Database!$L$3,Participant_Database!$Z59,0),"") ->  | M58: =IF($C58<>"",OFFSET(Participant_Database!$M$3,Participant_Database!$Z59,0),"") ->  | N58: =IF($C58<>"",OFFSET(Participant_Database!$N$3,Participant_Database!$Z59,0),"") ->  | O58: =IF($C58<>"",OFFSET(Participant_Database!$O$3,Participant_Database!$Z59,0),"") ->  | P58: =IF($C58<>"",OFFSET(Participant_Database!$P$3,Participant_Database!$Z59,0),"") ->  | Q58: =IF($C58<>"",OFFSET(Participant_Database!$Q$3,Participant_Database!$Z59,0),"") ->  | R58: =IF($C58<>"",OFFSET(Participant_Database!$R$3,Participant_Database!$Z59,0),"") ->  | S58: =IF($C58<>"",OFFSET(Participant_Database!$S$3,Participant_Database!$Z59,0),"") ->  | T58: =IF($C58<>"",OFFSET(Participant_Database!$T$3,Participant_Database!$Z59,0),"") ->  | U58: =IF($C58<>"",OFFSET(Participant_Database!$U$3,Participant_Database!$Z59,0),"") ->  | V58: =IF($C58<>"",OFFSET(Participant_Database!$V$3,Participant_Database!$Z59,0),"") ->  | W58: =IF($C58<>"",OFFSET(Participant_Database!$W$3,Participant_Database!$Z59,0),"") ->  | X58: =IF(C58<>"",Participant_Database!$Z57,"") -> 
A59: =IF($C59<>"",OFFSET(Participant_Database!$A$3,Participant_Database!$Z60,0),"") ->  | B59: =IF($C59<>"",OFFSET(Participant_Database!$B$3,Participant_Database!$Z60,0),"") ->  | C59: =IF(OFFSET(Participant_Database!$C$3,Participant_Database!$Z60,0)<>"",OFFSET(Participant_Database!$C$3,Participant_Database!$Z60,0),"") ->  | D59: =IF($C59<>"",OFFSET(Participant_Database!$D$3,Participant_Database!$Z60,0),"") ->  | E59: =IF($C59<>"",OFFSET(Participant_Database!$E$3,Participant_Database!$Z60,0),"") ->  | F59: =IF($C59<>"",OFFSET(Participant_Database!$F$3,Participant_Database!$Z60,0),"") ->  | G59: =IF($C59<>"",OFFSET(Participant_Database!$G$3,Participant_Database!$Z60,0),"") ->  | H59: =IF($C59<>"",OFFSET(Participant_Database!$H$3,Participant_Database!$Z60,0),"") ->  | I59: =IF($C59<>"",OFFSET(Participant_Database!$I$3,Participant_Database!$Z60,0),"") ->  | J59: =IF($C59<>"",OFFSET(Participant_Database!$J$3,Participant_Database!$Z60,0),"") ->  | K59: =IF($C59<>"",OFFSET(Participant_Database!$K$3,Participant_Database!$Z60,0),"") ->  | L59: =IF($C59<>"",OFFSET(Participant_Database!$L$3,Participant_Database!$Z60,0),"") ->  | M59: =IF($C59<>"",OFFSET(Participant_Database!$M$3,Participant_Database!$Z60,0),"") ->  | N59: =IF($C59<>"",OFFSET(Participant_Database!$N$3,Participant_Database!$Z60,0),"") ->  | O59: =IF($C59<>"",OFFSET(Participant_Database!$O$3,Participant_Database!$Z60,0),"") ->  | P59: =IF($C59<>"",OFFSET(Participant_Database!$P$3,Participant_Database!$Z60,0),"") ->  | Q59: =IF($C59<>"",OFFSET(Participant_Database!$Q$3,Participant_Database!$Z60,0),"") ->  | R59: =IF($C59<>"",OFFSET(Participant_Database!$R$3,Participant_Database!$Z60,0),"") ->  | S59: =IF($C59<>"",OFFSET(Participant_Database!$S$3,Participant_Database!$Z60,0),"") ->  | T59: =IF($C59<>"",OFFSET(Participant_Database!$T$3,Participant_Database!$Z60,0),"") ->  | U59: =IF($C59<>"",OFFSET(Participant_Database!$U$3,Participant_Database!$Z60,0),"") ->  | V59: =IF($C59<>"",OFFSET(Participant_Database!$V$3,Participant_Database!$Z60,0),"") ->  | W59: =IF($C59<>"",OFFSET(Participant_Database!$W$3,Participant_Database!$Z60,0),"") ->  | X59: =IF(C59<>"",Participant_Database!$Z58,"") -> 
A60: =IF($C60<>"",OFFSET(Participant_Database!$A$3,Participant_Database!$Z61,0),"") ->  | B60: =IF($C60<>"",OFFSET(Participant_Database!$B$3,Participant_Database!$Z61,0),"") ->  | C60: =IF(OFFSET(Participant_Database!$C$3,Participant_Database!$Z61,0)<>"",OFFSET(Participant_Database!$C$3,Participant_Database!$Z61,0),"") ->  | D60: =IF($C60<>"",OFFSET(Participant_Database!$D$3,Participant_Database!$Z61,0),"") ->  | E60: =IF($C60<>"",OFFSET(Participant_Database!$E$3,Participant_Database!$Z61,0),"") ->  | F60: =IF($C60<>"",OFFSET(Participant_Database!$F$3,Participant_Database!$Z61,0),"") ->  | G60: =IF($C60<>"",OFFSET(Participant_Database!$G$3,Participant_Database!$Z61,0),"") ->  | H60: =IF($C60<>"",OFFSET(Participant_Database!$H$3,Participant_Database!$Z61,0),"") ->  | I60: =IF($C60<>"",OFFSET(Participant_Database!$I$3,Participant_Database!$Z61,0),"") ->  | J60: =IF($C60<>"",OFFSET(Participant_Database!$J$3,Participant_Database!$Z61,0),"") ->  | K60: =IF($C60<>"",OFFSET(Participant_Database!$K$3,Participant_Database!$Z61,0),"") ->  | L60: =IF($C60<>"",OFFSET(Participant_Database!$L$3,Participant_Database!$Z61,0),"") ->  | M60: =IF($C60<>"",OFFSET(Participant_Database!$M$3,Participant_Database!$Z61,0),"") ->  | N60: =IF($C60<>"",OFFSET(Participant_Database!$N$3,Participant_Database!$Z61,0),"") ->  | O60: =IF($C60<>"",OFFSET(Participant_Database!$O$3,Participant_Database!$Z61,0),"") ->  | P60: =IF($C60<>"",OFFSET(Participant_Database!$P$3,Participant_Database!$Z61,0),"") ->  | Q60: =IF($C60<>"",OFFSET(Participant_Database!$Q$3,Participant_Database!$Z61,0),"") ->  | R60: =IF($C60<>"",OFFSET(Participant_Database!$R$3,Participant_Database!$Z61,0),"") ->  | S60: =IF($C60<>"",OFFSET(Participant_Database!$S$3,Participant_Database!$Z61,0),"") ->  | T60: =IF($C60<>"",OFFSET(Participant_Database!$T$3,Participant_Database!$Z61,0),"") ->  | U60: =IF($C60<>"",OFFSET(Participant_Database!$U$3,Participant_Database!$Z61,0),"") ->  | V60: =IF($C60<>"",OFFSET(Participant_Database!$V$3,Participant_Database!$Z61,0),"") ->  | W60: =IF($C60<>"",OFFSET(Participant_Database!$W$3,Participant_Database!$Z61,0),"") ->  | X60: =IF(C60<>"",Participant_Database!$Z59,"") -> 
A61: =IF($C61<>"",OFFSET(Participant_Database!$A$3,Participant_Database!$Z62,0),"") ->  | B61: =IF($C61<>"",OFFSET(Participant_Database!$B$3,Participant_Database!$Z62,0),"") ->  | C61: =IF(OFFSET(Participant_Database!$C$3,Participant_Database!$Z62,0)<>"",OFFSET(Participant_Database!$C$3,Participant_Database!$Z62,0),"") ->  | D61: =IF($C61<>"",OFFSET(Participant_Database!$D$3,Participant_Database!$Z62,0),"") ->  | E61: =IF($C61<>"",OFFSET(Participant_Database!$E$3,Participant_Database!$Z62,0),"") ->  | F61: =IF($C61<>"",OFFSET(Participant_Database!$F$3,Participant_Database!$Z62,0),"") ->  | G61: =IF($C61<>"",OFFSET(Participant_Database!$G$3,Participant_Database!$Z62,0),"") ->  | H61: =IF($C61<>"",OFFSET(Participant_Database!$H$3,Participant_Database!$Z62,0),"") ->  | I61: =IF($C61<>"",OFFSET(Participant_Database!$I$3,Participant_Database!$Z62,0),"") ->  | J61: =IF($C61<>"",OFFSET(Participant_Database!$J$3,Participant_Database!$Z62,0),"") ->  | K61: =IF($C61<>"",OFFSET(Participant_Database!$K$3,Participant_Database!$Z62,0),"") ->  | L61: =IF($C61<>"",OFFSET(Participant_Database!$L$3,Participant_Database!$Z62,0),"") ->  | M61: =IF($C61<>"",OFFSET(Participant_Database!$M$3,Participant_Database!$Z62,0),"") ->  | N61: =IF($C61<>"",OFFSET(Participant_Database!$N$3,Participant_Database!$Z62,0),"") ->  | O61: =IF($C61<>"",OFFSET(Participant_Database!$O$3,Participant_Database!$Z62,0),"") ->  | P61: =IF($C61<>"",OFFSET(Participant_Database!$P$3,Participant_Database!$Z62,0),"") ->  | Q61: =IF($C61<>"",OFFSET(Participant_Database!$Q$3,Participant_Database!$Z62,0),"") ->  | R61: =IF($C61<>"",OFFSET(Participant_Database!$R$3,Participant_Database!$Z62,0),"") ->  | S61: =IF($C61<>"",OFFSET(Participant_Database!$S$3,Participant_Database!$Z62,0),"") ->  | T61: =IF($C61<>"",OFFSET(Participant_Database!$T$3,Participant_Database!$Z62,0),"") ->  | U61: =IF($C61<>"",OFFSET(Participant_Database!$U$3,Participant_Database!$Z62,0),"") ->  | V61: =IF($C61<>"",OFFSET(Participant_Database!$V$3,Participant_Database!$Z62,0),"") ->  | W61: =IF($C61<>"",OFFSET(Participant_Database!$W$3,Participant_Database!$Z62,0),"") ->  | X61: =IF(C61<>"",Participant_Database!$Z60,"") -> 
A62: =IF($C62<>"",OFFSET(Participant_Database!$A$3,Participant_Database!$Z63,0),"") ->  | B62: =IF($C62<>"",OFFSET(Participant_Database!$B$3,Participant_Database!$Z63,0),"") ->  | C62: =IF(OFFSET(Participant_Database!$C$3,Participant_Database!$Z63,0)<>"",OFFSET(Participant_Database!$C$3,Participant_Database!$Z63,0),"") ->  | D62: =IF($C62<>"",OFFSET(Participant_Database!$D$3,Participant_Database!$Z63,0),"") ->  | E62: =IF($C62<>"",OFFSET(Participant_Database!$E$3,Participant_Database!$Z63,0),"") ->  | F62: =IF($C62<>"",OFFSET(Participant_Database!$F$3,Participant_Database!$Z63,0),"") ->  | G62: =IF($C62<>"",OFFSET(Participant_Database!$G$3,Participant_Database!$Z63,0),"") ->  | H62: =IF($C62<>"",OFFSET(Participant_Database!$H$3,Participant_Database!$Z63,0),"") ->  | I62: =IF($C62<>"",OFFSET(Participant_Database!$I$3,Participant_Database!$Z63,0),"") ->  | J62: =IF($C62<>"",OFFSET(Participant_Database!$J$3,Participant_Database!$Z63,0),"") ->  | K62: =IF($C62<>"",OFFSET(Participant_Database!$K$3,Participant_Database!$Z63,0),"") ->  | L62: =IF($C62<>"",OFFSET(Participant_Database!$L$3,Participant_Database!$Z63,0),"") ->  | M62: =IF($C62<>"",OFFSET(Participant_Database!$M$3,Participant_Database!$Z63,0),"") ->  | N62: =IF($C62<>"",OFFSET(Participant_Database!$N$3,Participant_Database!$Z63,0),"") ->  | O62: =IF($C62<>"",OFFSET(Participant_Database!$O$3,Participant_Database!$Z63,0),"") ->  | P62: =IF($C62<>"",OFFSET(Participant_Database!$P$3,Participant_Database!$Z63,0),"") ->  | Q62: =IF($C62<>"",OFFSET(Participant_Database!$Q$3,Participant_Database!$Z63,0),"") ->  | R62: =IF($C62<>"",OFFSET(Participant_Database!$R$3,Participant_Database!$Z63,0),"") ->  | S62: =IF($C62<>"",OFFSET(Participant_Database!$S$3,Participant_Database!$Z63,0),"") ->  | T62: =IF($C62<>"",OFFSET(Participant_Database!$T$3,Participant_Database!$Z63,0),"") ->  | U62: =IF($C62<>"",OFFSET(Participant_Database!$U$3,Participant_Database!$Z63,0),"") ->  | V62: =IF($C62<>"",OFFSET(Participant_Database!$V$3,Participant_Database!$Z63,0),"") ->  | W62: =IF($C62<>"",OFFSET(Participant_Database!$W$3,Participant_Database!$Z63,0),"") ->  | X62: =IF(C62<>"",Participant_Database!$Z61,"") -> 
A63: =IF($C63<>"",OFFSET(Participant_Database!$A$3,Participant_Database!$Z64,0),"") ->  | B63: =IF($C63<>"",OFFSET(Participant_Database!$B$3,Participant_Database!$Z64,0),"") ->  | C63: =IF(OFFSET(Participant_Database!$C$3,Participant_Database!$Z64,0)<>"",OFFSET(Participant_Database!$C$3,Participant_Database!$Z64,0),"") ->  | D63: =IF($C63<>"",OFFSET(Participant_Database!$D$3,Participant_Database!$Z64,0),"") ->  | E63: =IF($C63<>"",OFFSET(Participant_Database!$E$3,Participant_Database!$Z64,0),"") ->  | F63: =IF($C63<>"",OFFSET(Participant_Database!$F$3,Participant_Database!$Z64,0),"") ->  | G63: =IF($C63<>"",OFFSET(Participant_Database!$G$3,Participant_Database!$Z64,0),"") ->  | H63: =IF($C63<>"",OFFSET(Participant_Database!$H$3,Participant_Database!$Z64,0),"") ->  | I63: =IF($C63<>"",OFFSET(Participant_Database!$I$3,Participant_Database!$Z64,0),"") ->  | J63: =IF($C63<>"",OFFSET(Participant_Database!$J$3,Participant_Database!$Z64,0),"") ->  | K63: =IF($C63<>"",OFFSET(Participant_Database!$K$3,Participant_Database!$Z64,0),"") ->  | L63: =IF($C63<>"",OFFSET(Participant_Database!$L$3,Participant_Database!$Z64,0),"") ->  | M63: =IF($C63<>"",OFFSET(Participant_Database!$M$3,Participant_Database!$Z64,0),"") ->  | N63: =IF($C63<>"",OFFSET(Participant_Database!$N$3,Participant_Database!$Z64,0),"") ->  | O63: =IF($C63<>"",OFFSET(Participant_Database!$O$3,Participant_Database!$Z64,0),"") ->  | P63: =IF($C63<>"",OFFSET(Participant_Database!$P$3,Participant_Database!$Z64,0),"") ->  | Q63: =IF($C63<>"",OFFSET(Participant_Database!$Q$3,Participant_Database!$Z64,0),"") ->  | R63: =IF($C63<>"",OFFSET(Participant_Database!$R$3,Participant_Database!$Z64,0),"") ->  | S63: =IF($C63<>"",OFFSET(Participant_Database!$S$3,Participant_Database!$Z64,0),"") ->  | T63: =IF($C63<>"",OFFSET(Participant_Database!$T$3,Participant_Database!$Z64,0),"") ->  | U63: =IF($C63<>"",OFFSET(Participant_Database!$U$3,Participant_Database!$Z64,0),"") ->  | V63: =IF($C63<>"",OFFSET(Participant_Database!$V$3,Participant_Database!$Z64,0),"") ->  | W63: =IF($C63<>"",OFFSET(Participant_Database!$W$3,Participant_Database!$Z64,0),"") ->  | X63: =IF(C63<>"",Participant_Database!$Z62,"") -> 
A64: =IF($C64<>"",OFFSET(Participant_Database!$A$3,Participant_Database!$Z65,0),"") ->  | B64: =IF($C64<>"",OFFSET(Participant_Database!$B$3,Participant_Database!$Z65,0),"") ->  | C64: =IF(OFFSET(Participant_Database!$C$3,Participant_Database!$Z65,0)<>"",OFFSET(Participant_Database!$C$3,Participant_Database!$Z65,0),"") ->  | D64: =IF($C64<>"",OFFSET(Participant_Database!$D$3,Participant_Database!$Z65,0),"") ->  | E64: =IF($C64<>"",OFFSET(Participant_Database!$E$3,Participant_Database!$Z65,0),"") ->  | F64: =IF($C64<>"",OFFSET(Participant_Database!$F$3,Participant_Database!$Z65,0),"") ->  | G64: =IF($C64<>"",OFFSET(Participant_Database!$G$3,Participant_Database!$Z65,0),"") ->  | H64: =IF($C64<>"",OFFSET(Participant_Database!$H$3,Participant_Database!$Z65,0),"") ->  | I64: =IF($C64<>"",OFFSET(Participant_Database!$I$3,Participant_Database!$Z65,0),"") ->  | J64: =IF($C64<>"",OFFSET(Participant_Database!$J$3,Participant_Database!$Z65,0),"") ->  | K64: =IF($C64<>"",OFFSET(Participant_Database!$K$3,Participant_Database!$Z65,0),"") ->  | L64: =IF($C64<>"",OFFSET(Participant_Database!$L$3,Participant_Database!$Z65,0),"") ->  | M64: =IF($C64<>"",OFFSET(Participant_Database!$M$3,Participant_Database!$Z65,0),"") ->  | N64: =IF($C64<>"",OFFSET(Participant_Database!$N$3,Participant_Database!$Z65,0),"") ->  | O64: =IF($C64<>"",OFFSET(Participant_Database!$O$3,Participant_Database!$Z65,0),"") ->  | P64: =IF($C64<>"",OFFSET(Participant_Database!$P$3,Participant_Database!$Z65,0),"") ->  | Q64: =IF($C64<>"",OFFSET(Participant_Database!$Q$3,Participant_Database!$Z65,0),"") ->  | R64: =IF($C64<>"",OFFSET(Participant_Database!$R$3,Participant_Database!$Z65,0),"") ->  | S64: =IF($C64<>"",OFFSET(Participant_Database!$S$3,Participant_Database!$Z65,0),"") ->  | T64: =IF($C64<>"",OFFSET(Participant_Database!$T$3,Participant_Database!$Z65,0),"") ->  | U64: =IF($C64<>"",OFFSET(Participant_Database!$U$3,Participant_Database!$Z65,0),"") ->  | V64: =IF($C64<>"",OFFSET(Participant_Database!$V$3,Participant_Database!$Z65,0),"") ->  | W64: =IF($C64<>"",OFFSET(Participant_Database!$W$3,Participant_Database!$Z65,0),"") ->  | X64: =IF(C64<>"",Participant_Database!$Z63,"") -> 
A65: =IF($C65<>"",OFFSET(Participant_Database!$A$3,Participant_Database!$Z66,0),"") ->  | B65: =IF($C65<>"",OFFSET(Participant_Database!$B$3,Participant_Database!$Z66,0),"") ->  | C65: =IF(OFFSET(Participant_Database!$C$3,Participant_Database!$Z66,0)<>"",OFFSET(Participant_Database!$C$3,Participant_Database!$Z66,0),"") ->  | D65: =IF($C65<>"",OFFSET(Participant_Database!$D$3,Participant_Database!$Z66,0),"") ->  | E65: =IF($C65<>"",OFFSET(Participant_Database!$E$3,Participant_Database!$Z66,0),"") ->  | F65: =IF($C65<>"",OFFSET(Participant_Database!$F$3,Participant_Database!$Z66,0),"") ->  | G65: =IF($C65<>"",OFFSET(Participant_Database!$G$3,Participant_Database!$Z66,0),"") ->  | H65: =IF($C65<>"",OFFSET(Participant_Database!$H$3,Participant_Database!$Z66,0),"") ->  | I65: =IF($C65<>"",OFFSET(Participant_Database!$I$3,Participant_Database!$Z66,0),"") ->  | J65: =IF($C65<>"",OFFSET(Participant_Database!$J$3,Participant_Database!$Z66,0),"") ->  | K65: =IF($C65<>"",OFFSET(Participant_Database!$K$3,Participant_Database!$Z66,0),"") ->  | L65: =IF($C65<>"",OFFSET(Participant_Database!$L$3,Participant_Database!$Z66,0),"") ->  | M65: =IF($C65<>"",OFFSET(Participant_Database!$M$3,Participant_Database!$Z66,0),"") ->  | N65: =IF($C65<>"",OFFSET(Participant_Database!$N$3,Participant_Database!$Z66,0),"") ->  | O65: =IF($C65<>"",OFFSET(Participant_Database!$O$3,Participant_Database!$Z66,0),"") ->  | P65: =IF($C65<>"",OFFSET(Participant_Database!$P$3,Participant_Database!$Z66,0),"") ->  | Q65: =IF($C65<>"",OFFSET(Participant_Database!$Q$3,Participant_Database!$Z66,0),"") ->  | R65: =IF($C65<>"",OFFSET(Participant_Database!$R$3,Participant_Database!$Z66,0),"") ->  | S65: =IF($C65<>"",OFFSET(Participant_Database!$S$3,Participant_Database!$Z66,0),"") ->  | T65: =IF($C65<>"",OFFSET(Participant_Database!$T$3,Participant_Database!$Z66,0),"") ->  | U65: =IF($C65<>"",OFFSET(Participant_Database!$U$3,Participant_Database!$Z66,0),"") ->  | V65: =IF($C65<>"",OFFSET(Participant_Database!$V$3,Participant_Database!$Z66,0),"") ->  | W65: =IF($C65<>"",OFFSET(Participant_Database!$W$3,Participant_Database!$Z66,0),"") ->  | X65: =IF(C65<>"",Participant_Database!$Z64,"") -> 
A66: =IF($C66<>"",OFFSET(Participant_Database!$A$3,Participant_Database!$Z67,0),"") ->  | B66: =IF($C66<>"",OFFSET(Participant_Database!$B$3,Participant_Database!$Z67,0),"") ->  | C66: =IF(OFFSET(Participant_Database!$C$3,Participant_Database!$Z67,0)<>"",OFFSET(Participant_Database!$C$3,Participant_Database!$Z67,0),"") ->  | D66: =IF($C66<>"",OFFSET(Participant_Database!$D$3,Participant_Database!$Z67,0),"") ->  | E66: =IF($C66<>"",OFFSET(Participant_Database!$E$3,Participant_Database!$Z67,0),"") ->  | F66: =IF($C66<>"",OFFSET(Participant_Database!$F$3,Participant_Database!$Z67,0),"") ->  | G66: =IF($C66<>"",OFFSET(Participant_Database!$G$3,Participant_Database!$Z67,0),"") ->  | H66: =IF($C66<>"",OFFSET(Participant_Database!$H$3,Participant_Database!$Z67,0),"") ->  | I66: =IF($C66<>"",OFFSET(Participant_Database!$I$3,Participant_Database!$Z67,0),"") ->  | J66: =IF($C66<>"",OFFSET(Participant_Database!$J$3,Participant_Database!$Z67,0),"") ->  | K66: =IF($C66<>"",OFFSET(Participant_Database!$K$3,Participant_Database!$Z67,0),"") ->  | L66: =IF($C66<>"",OFFSET(Participant_Database!$L$3,Participant_Database!$Z67,0),"") ->  | M66: =IF($C66<>"",OFFSET(Participant_Database!$M$3,Participant_Database!$Z67,0),"") ->  | N66: =IF($C66<>"",OFFSET(Participant_Database!$N$3,Participant_Database!$Z67,0),"") ->  | O66: =IF($C66<>"",OFFSET(Participant_Database!$O$3,Participant_Database!$Z67,0),"") ->  | P66: =IF($C66<>"",OFFSET(Participant_Database!$P$3,Participant_Database!$Z67,0),"") ->  | Q66: =IF($C66<>"",OFFSET(Participant_Database!$Q$3,Participant_Database!$Z67,0),"") ->  | R66: =IF($C66<>"",OFFSET(Participant_Database!$R$3,Participant_Database!$Z67,0),"") ->  | S66: =IF($C66<>"",OFFSET(Participant_Database!$S$3,Participant_Database!$Z67,0),"") ->  | T66: =IF($C66<>"",OFFSET(Participant_Database!$T$3,Participant_Database!$Z67,0),"") ->  | U66: =IF($C66<>"",OFFSET(Participant_Database!$U$3,Participant_Database!$Z67,0),"") ->  | V66: =IF($C66<>"",OFFSET(Participant_Database!$V$3,Participant_Database!$Z67,0),"") ->  | W66: =IF($C66<>"",OFFSET(Participant_Database!$W$3,Participant_Database!$Z67,0),"") ->  | X66: =IF(C66<>"",Participant_Database!$Z65,"") -> 
A67: =IF($C67<>"",OFFSET(Participant_Database!$A$3,Participant_Database!$Z68,0),"") ->  | B67: =IF($C67<>"",OFFSET(Participant_Database!$B$3,Participant_Database!$Z68,0),"") ->  | C67: =IF(OFFSET(Participant_Database!$C$3,Participant_Database!$Z68,0)<>"",OFFSET(Participant_Database!$C$3,Participant_Database!$Z68,0),"") ->  | D67: =IF($C67<>"",OFFSET(Participant_Database!$D$3,Participant_Database!$Z68,0),"") ->  | E67: =IF($C67<>"",OFFSET(Participant_Database!$E$3,Participant_Database!$Z68,0),"") ->  | F67: =IF($C67<>"",OFFSET(Participant_Database!$F$3,Participant_Database!$Z68,0),"") ->  | G67: =IF($C67<>"",OFFSET(Participant_Database!$G$3,Participant_Database!$Z68,0),"") ->  | H67: =IF($C67<>"",OFFSET(Participant_Database!$H$3,Participant_Database!$Z68,0),"") ->  | I67: =IF($C67<>"",OFFSET(Participant_Database!$I$3,Participant_Database!$Z68,0),"") ->  | J67: =IF($C67<>"",OFFSET(Participant_Database!$J$3,Participant_Database!$Z68,0),"") ->  | K67: =IF($C67<>"",OFFSET(Participant_Database!$K$3,Participant_Database!$Z68,0),"") ->  | L67: =IF($C67<>"",OFFSET(Participant_Database!$L$3,Participant_Database!$Z68,0),"") ->  | M67: =IF($C67<>"",OFFSET(Participant_Database!$M$3,Participant_Database!$Z68,0),"") ->  | N67: =IF($C67<>"",OFFSET(Participant_Database!$N$3,Participant_Database!$Z68,0),"") ->  | O67: =IF($C67<>"",OFFSET(Participant_Database!$O$3,Participant_Database!$Z68,0),"") ->  | P67: =IF($C67<>"",OFFSET(Participant_Database!$P$3,Participant_Database!$Z68,0),"") ->  | Q67: =IF($C67<>"",OFFSET(Participant_Database!$Q$3,Participant_Database!$Z68,0),"") ->  | R67: =IF($C67<>"",OFFSET(Participant_Database!$R$3,Participant_Database!$Z68,0),"") ->  | S67: =IF($C67<>"",OFFSET(Participant_Database!$S$3,Participant_Database!$Z68,0),"") ->  | T67: =IF($C67<>"",OFFSET(Participant_Database!$T$3,Participant_Database!$Z68,0),"") ->  | U67: =IF($C67<>"",OFFSET(Participant_Database!$U$3,Participant_Database!$Z68,0),"") ->  | V67: =IF($C67<>"",OFFSET(Participant_Database!$V$3,Participant_Database!$Z68,0),"") ->  | W67: =IF($C67<>"",OFFSET(Participant_Database!$W$3,Participant_Database!$Z68,0),"") ->  | X67: =IF(C67<>"",Participant_Database!$Z66,"") -> 
A68: =IF($C68<>"",OFFSET(Participant_Database!$A$3,Participant_Database!$Z69,0),"") ->  | B68: =IF($C68<>"",OFFSET(Participant_Database!$B$3,Participant_Database!$Z69,0),"") ->  | C68: =IF(OFFSET(Participant_Database!$C$3,Participant_Database!$Z69,0)<>"",OFFSET(Participant_Database!$C$3,Participant_Database!$Z69,0),"") ->  | D68: =IF($C68<>"",OFFSET(Participant_Database!$D$3,Participant_Database!$Z69,0),"") ->  | E68: =IF($C68<>"",OFFSET(Participant_Database!$E$3,Participant_Database!$Z69,0),"") ->  | F68: =IF($C68<>"",OFFSET(Participant_Database!$F$3,Participant_Database!$Z69,0),"") ->  | G68: =IF($C68<>"",OFFSET(Participant_Database!$G$3,Participant_Database!$Z69,0),"") ->  | H68: =IF($C68<>"",OFFSET(Participant_Database!$H$3,Participant_Database!$Z69,0),"") ->  | I68: =IF($C68<>"",OFFSET(Participant_Database!$I$3,Participant_Database!$Z69,0),"") ->  | J68: =IF($C68<>"",OFFSET(Participant_Database!$J$3,Participant_Database!$Z69,0),"") ->  | K68: =IF($C68<>"",OFFSET(Participant_Database!$K$3,Participant_Database!$Z69,0),"") ->  | L68: =IF($C68<>"",OFFSET(Participant_Database!$L$3,Participant_Database!$Z69,0),"") ->  | M68: =IF($C68<>"",OFFSET(Participant_Database!$M$3,Participant_Database!$Z69,0),"") ->  | N68: =IF($C68<>"",OFFSET(Participant_Database!$N$3,Participant_Database!$Z69,0),"") ->  | O68: =IF($C68<>"",OFFSET(Participant_Database!$O$3,Participant_Database!$Z69,0),"") ->  | P68: =IF($C68<>"",OFFSET(Participant_Database!$P$3,Participant_Database!$Z69,0),"") ->  | Q68: =IF($C68<>"",OFFSET(Participant_Database!$Q$3,Participant_Database!$Z69,0),"") ->  | R68: =IF($C68<>"",OFFSET(Participant_Database!$R$3,Participant_Database!$Z69,0),"") ->  | S68: =IF($C68<>"",OFFSET(Participant_Database!$S$3,Participant_Database!$Z69,0),"") ->  | T68: =IF($C68<>"",OFFSET(Participant_Database!$T$3,Participant_Database!$Z69,0),"") ->  | U68: =IF($C68<>"",OFFSET(Participant_Database!$U$3,Participant_Database!$Z69,0),"") ->  | V68: =IF($C68<>"",OFFSET(Participant_Database!$V$3,Participant_Database!$Z69,0),"") ->  | W68: =IF($C68<>"",OFFSET(Participant_Database!$W$3,Participant_Database!$Z69,0),"") ->  | X68: =IF(C68<>"",Participant_Database!$Z67,"") -> 
A69: =IF($C69<>"",OFFSET(Participant_Database!$A$3,Participant_Database!$Z70,0),"") ->  | B69: =IF($C69<>"",OFFSET(Participant_Database!$B$3,Participant_Database!$Z70,0),"") ->  | C69: =IF(OFFSET(Participant_Database!$C$3,Participant_Database!$Z70,0)<>"",OFFSET(Participant_Database!$C$3,Participant_Database!$Z70,0),"") ->  | D69: =IF($C69<>"",OFFSET(Participant_Database!$D$3,Participant_Database!$Z70,0),"") ->  | E69: =IF($C69<>"",OFFSET(Participant_Database!$E$3,Participant_Database!$Z70,0),"") ->  | F69: =IF($C69<>"",OFFSET(Participant_Database!$F$3,Participant_Database!$Z70,0),"") ->  | G69: =IF($C69<>"",OFFSET(Participant_Database!$G$3,Participant_Database!$Z70,0),"") ->  | H69: =IF($C69<>"",OFFSET(Participant_Database!$H$3,Participant_Database!$Z70,0),"") ->  | I69: =IF($C69<>"",OFFSET(Participant_Database!$I$3,Participant_Database!$Z70,0),"") ->  | J69: =IF($C69<>"",OFFSET(Participant_Database!$J$3,Participant_Database!$Z70,0),"") ->  | K69: =IF($C69<>"",OFFSET(Participant_Database!$K$3,Participant_Database!$Z70,0),"") ->  | L69: =IF($C69<>"",OFFSET(Participant_Database!$L$3,Participant_Database!$Z70,0),"") ->  | M69: =IF($C69<>"",OFFSET(Participant_Database!$M$3,Participant_Database!$Z70,0),"") ->  | N69: =IF($C69<>"",OFFSET(Participant_Database!$N$3,Participant_Database!$Z70,0),"") ->  | O69: =IF($C69<>"",OFFSET(Participant_Database!$O$3,Participant_Database!$Z70,0),"") ->  | P69: =IF($C69<>"",OFFSET(Participant_Database!$P$3,Participant_Database!$Z70,0),"") ->  | Q69: =IF($C69<>"",OFFSET(Participant_Database!$Q$3,Participant_Database!$Z70,0),"") ->  | R69: =IF($C69<>"",OFFSET(Participant_Database!$R$3,Participant_Database!$Z70,0),"") ->  | S69: =IF($C69<>"",OFFSET(Participant_Database!$S$3,Participant_Database!$Z70,0),"") ->  | T69: =IF($C69<>"",OFFSET(Participant_Database!$T$3,Participant_Database!$Z70,0),"") ->  | U69: =IF($C69<>"",OFFSET(Participant_Database!$U$3,Participant_Database!$Z70,0),"") ->  | V69: =IF($C69<>"",OFFSET(Participant_Database!$V$3,Participant_Database!$Z70,0),"") ->  | W69: =IF($C69<>"",OFFSET(Participant_Database!$W$3,Participant_Database!$Z70,0),"") ->  | X69: =IF(C69<>"",Participant_Database!$Z68,"") -> 
A70: =IF($C70<>"",OFFSET(Participant_Database!$A$3,Participant_Database!$Z71,0),"") ->  | B70: =IF($C70<>"",OFFSET(Participant_Database!$B$3,Participant_Database!$Z71,0),"") ->  | C70: =IF(OFFSET(Participant_Database!$C$3,Participant_Database!$Z71,0)<>"",OFFSET(Participant_Database!$C$3,Participant_Database!$Z71,0),"") ->  | D70: =IF($C70<>"",OFFSET(Participant_Database!$D$3,Participant_Database!$Z71,0),"") ->  | E70: =IF($C70<>"",OFFSET(Participant_Database!$E$3,Participant_Database!$Z71,0),"") ->  | F70: =IF($C70<>"",OFFSET(Participant_Database!$F$3,Participant_Database!$Z71,0),"") ->  | G70: =IF($C70<>"",OFFSET(Participant_Database!$G$3,Participant_Database!$Z71,0),"") ->  | H70: =IF($C70<>"",OFFSET(Participant_Database!$H$3,Participant_Database!$Z71,0),"") ->  | I70: =IF($C70<>"",OFFSET(Participant_Database!$I$3,Participant_Database!$Z71,0),"") ->  | J70: =IF($C70<>"",OFFSET(Participant_Database!$J$3,Participant_Database!$Z71,0),"") ->  | K70: =IF($C70<>"",OFFSET(Participant_Database!$K$3,Participant_Database!$Z71,0),"") ->  | L70: =IF($C70<>"",OFFSET(Participant_Database!$L$3,Participant_Database!$Z71,0),"") ->  | M70: =IF($C70<>"",OFFSET(Participant_Database!$M$3,Participant_Database!$Z71,0),"") ->  | N70: =IF($C70<>"",OFFSET(Participant_Database!$N$3,Participant_Database!$Z71,0),"") ->  | O70: =IF($C70<>"",OFFSET(Participant_Database!$O$3,Participant_Database!$Z71,0),"") ->  | P70: =IF($C70<>"",OFFSET(Participant_Database!$P$3,Participant_Database!$Z71,0),"") ->  | Q70: =IF($C70<>"",OFFSET(Participant_Database!$Q$3,Participant_Database!$Z71,0),"") ->  | R70: =IF($C70<>"",OFFSET(Participant_Database!$R$3,Participant_Database!$Z71,0),"") ->  | S70: =IF($C70<>"",OFFSET(Participant_Database!$S$3,Participant_Database!$Z71,0),"") ->  | T70: =IF($C70<>"",OFFSET(Participant_Database!$T$3,Participant_Database!$Z71,0),"") ->  | U70: =IF($C70<>"",OFFSET(Participant_Database!$U$3,Participant_Database!$Z71,0),"") ->  | V70: =IF($C70<>"",OFFSET(Participant_Database!$V$3,Participant_Database!$Z71,0),"") ->  | W70: =IF($C70<>"",OFFSET(Participant_Database!$W$3,Participant_Database!$Z71,0),"") ->  | X70: =IF(C70<>"",Participant_Database!$Z69,"") -> 
A71: =IF($C71<>"",OFFSET(Participant_Database!$A$3,Participant_Database!$Z72,0),"") ->  | B71: =IF($C71<>"",OFFSET(Participant_Database!$B$3,Participant_Database!$Z72,0),"") ->  | C71: =IF(OFFSET(Participant_Database!$C$3,Participant_Database!$Z72,0)<>"",OFFSET(Participant_Database!$C$3,Participant_Database!$Z72,0),"") ->  | D71: =IF($C71<>"",OFFSET(Participant_Database!$D$3,Participant_Database!$Z72,0),"") ->  | E71: =IF($C71<>"",OFFSET(Participant_Database!$E$3,Participant_Database!$Z72,0),"") ->  | F71: =IF($C71<>"",OFFSET(Participant_Database!$F$3,Participant_Database!$Z72,0),"") ->  | G71: =IF($C71<>"",OFFSET(Participant_Database!$G$3,Participant_Database!$Z72,0),"") ->  | H71: =IF($C71<>"",OFFSET(Participant_Database!$H$3,Participant_Database!$Z72,0),"") ->  | I71: =IF($C71<>"",OFFSET(Participant_Database!$I$3,Participant_Database!$Z72,0),"") ->  | J71: =IF($C71<>"",OFFSET(Participant_Database!$J$3,Participant_Database!$Z72,0),"") ->  | K71: =IF($C71<>"",OFFSET(Participant_Database!$K$3,Participant_Database!$Z72,0),"") ->  | L71: =IF($C71<>"",OFFSET(Participant_Database!$L$3,Participant_Database!$Z72,0),"") ->  | M71: =IF($C71<>"",OFFSET(Participant_Database!$M$3,Participant_Database!$Z72,0),"") ->  | N71: =IF($C71<>"",OFFSET(Participant_Database!$N$3,Participant_Database!$Z72,0),"") ->  | O71: =IF($C71<>"",OFFSET(Participant_Database!$O$3,Participant_Database!$Z72,0),"") ->  | P71: =IF($C71<>"",OFFSET(Participant_Database!$P$3,Participant_Database!$Z72,0),"") ->  | Q71: =IF($C71<>"",OFFSET(Participant_Database!$Q$3,Participant_Database!$Z72,0),"") ->  | R71: =IF($C71<>"",OFFSET(Participant_Database!$R$3,Participant_Database!$Z72,0),"") ->  | S71: =IF($C71<>"",OFFSET(Participant_Database!$S$3,Participant_Database!$Z72,0),"") ->  | T71: =IF($C71<>"",OFFSET(Participant_Database!$T$3,Participant_Database!$Z72,0),"") ->  | U71: =IF($C71<>"",OFFSET(Participant_Database!$U$3,Participant_Database!$Z72,0),"") ->  | V71: =IF($C71<>"",OFFSET(Participant_Database!$V$3,Participant_Database!$Z72,0),"") ->  | W71: =IF($C71<>"",OFFSET(Participant_Database!$W$3,Participant_Database!$Z72,0),"") ->  | X71: =IF(C71<>"",Participant_Database!$Z70,"") -> 
A72: =IF($C72<>"",OFFSET(Participant_Database!$A$3,Participant_Database!$Z73,0),"") ->  | B72: =IF($C72<>"",OFFSET(Participant_Database!$B$3,Participant_Database!$Z73,0),"") ->  | C72: =IF(OFFSET(Participant_Database!$C$3,Participant_Database!$Z73,0)<>"",OFFSET(Participant_Database!$C$3,Participant_Database!$Z73,0),"") ->  | D72: =IF($C72<>"",OFFSET(Participant_Database!$D$3,Participant_Database!$Z73,0),"") ->  | E72: =IF($C72<>"",OFFSET(Participant_Database!$E$3,Participant_Database!$Z73,0),"") ->  | F72: =IF($C72<>"",OFFSET(Participant_Database!$F$3,Participant_Database!$Z73,0),"") ->  | G72: =IF($C72<>"",OFFSET(Participant_Database!$G$3,Participant_Database!$Z73,0),"") ->  | H72: =IF($C72<>"",OFFSET(Participant_Database!$H$3,Participant_Database!$Z73,0),"") ->  | I72: =IF($C72<>"",OFFSET(Participant_Database!$I$3,Participant_Database!$Z73,0),"") ->  | J72: =IF($C72<>"",OFFSET(Participant_Database!$J$3,Participant_Database!$Z73,0),"") ->  | K72: =IF($C72<>"",OFFSET(Participant_Database!$K$3,Participant_Database!$Z73,0),"") ->  | L72: =IF($C72<>"",OFFSET(Participant_Database!$L$3,Participant_Database!$Z73,0),"") ->  | M72: =IF($C72<>"",OFFSET(Participant_Database!$M$3,Participant_Database!$Z73,0),"") ->  | N72: =IF($C72<>"",OFFSET(Participant_Database!$N$3,Participant_Database!$Z73,0),"") ->  | O72: =IF($C72<>"",OFFSET(Participant_Database!$O$3,Participant_Database!$Z73,0),"") ->  | P72: =IF($C72<>"",OFFSET(Participant_Database!$P$3,Participant_Database!$Z73,0),"") ->  | Q72: =IF($C72<>"",OFFSET(Participant_Database!$Q$3,Participant_Database!$Z73,0),"") ->  | R72: =IF($C72<>"",OFFSET(Participant_Database!$R$3,Participant_Database!$Z73,0),"") ->  | S72: =IF($C72<>"",OFFSET(Participant_Database!$S$3,Participant_Database!$Z73,0),"") ->  | T72: =IF($C72<>"",OFFSET(Participant_Database!$T$3,Participant_Database!$Z73,0),"") ->  | U72: =IF($C72<>"",OFFSET(Participant_Database!$U$3,Participant_Database!$Z73,0),"") ->  | V72: =IF($C72<>"",OFFSET(Participant_Database!$V$3,Participant_Database!$Z73,0),"") ->  | W72: =IF($C72<>"",OFFSET(Participant_Database!$W$3,Participant_Database!$Z73,0),"") ->  | X72: =IF(C72<>"",Participant_Database!$Z71,"") -> 
A73: =IF($C73<>"",OFFSET(Participant_Database!$A$3,Participant_Database!$Z74,0),"") ->  | B73: =IF($C73<>"",OFFSET(Participant_Database!$B$3,Participant_Database!$Z74,0),"") ->  | C73: =IF(OFFSET(Participant_Database!$C$3,Participant_Database!$Z74,0)<>"",OFFSET(Participant_Database!$C$3,Participant_Database!$Z74,0),"") ->  | D73: =IF($C73<>"",OFFSET(Participant_Database!$D$3,Participant_Database!$Z74,0),"") ->  | E73: =IF($C73<>"",OFFSET(Participant_Database!$E$3,Participant_Database!$Z74,0),"") ->  | F73: =IF($C73<>"",OFFSET(Participant_Database!$F$3,Participant_Database!$Z74,0),"") ->  | G73: =IF($C73<>"",OFFSET(Participant_Database!$G$3,Participant_Database!$Z74,0),"") ->  | H73: =IF($C73<>"",OFFSET(Participant_Database!$H$3,Participant_Database!$Z74,0),"") ->  | I73: =IF($C73<>"",OFFSET(Participant_Database!$I$3,Participant_Database!$Z74,0),"") ->  | J73: =IF($C73<>"",OFFSET(Participant_Database!$J$3,Participant_Database!$Z74,0),"") ->  | K73: =IF($C73<>"",OFFSET(Participant_Database!$K$3,Participant_Database!$Z74,0),"") ->  | L73: =IF($C73<>"",OFFSET(Participant_Database!$L$3,Participant_Database!$Z74,0),"") ->  | M73: =IF($C73<>"",OFFSET(Participant_Database!$M$3,Participant_Database!$Z74,0),"") ->  | N73: =IF($C73<>"",OFFSET(Participant_Database!$N$3,Participant_Database!$Z74,0),"") ->  | O73: =IF($C73<>"",OFFSET(Participant_Database!$O$3,Participant_Database!$Z74,0),"") ->  | P73: =IF($C73<>"",OFFSET(Participant_Database!$P$3,Participant_Database!$Z74,0),"") ->  | Q73: =IF($C73<>"",OFFSET(Participant_Database!$Q$3,Participant_Database!$Z74,0),"") ->  | R73: =IF($C73<>"",OFFSET(Participant_Database!$R$3,Participant_Database!$Z74,0),"") ->  | S73: =IF($C73<>"",OFFSET(Participant_Database!$S$3,Participant_Database!$Z74,0),"") ->  | T73: =IF($C73<>"",OFFSET(Participant_Database!$T$3,Participant_Database!$Z74,0),"") ->  | U73: =IF($C73<>"",OFFSET(Participant_Database!$U$3,Participant_Database!$Z74,0),"") ->  | V73: =IF($C73<>"",OFFSET(Participant_Database!$V$3,Participant_Database!$Z74,0),"") ->  | W73: =IF($C73<>"",OFFSET(Participant_Database!$W$3,Participant_Database!$Z74,0),"") ->  | X73: =IF(C73<>"",Participant_Database!$Z72,"") -> 
A74: =IF($C74<>"",OFFSET(Participant_Database!$A$3,Participant_Database!$Z75,0),"") ->  | B74: =IF($C74<>"",OFFSET(Participant_Database!$B$3,Participant_Database!$Z75,0),"") ->  | C74: =IF(OFFSET(Participant_Database!$C$3,Participant_Database!$Z75,0)<>"",OFFSET(Participant_Database!$C$3,Participant_Database!$Z75,0),"") ->  | D74: =IF($C74<>"",OFFSET(Participant_Database!$D$3,Participant_Database!$Z75,0),"") ->  | E74: =IF($C74<>"",OFFSET(Participant_Database!$E$3,Participant_Database!$Z75,0),"") ->  | F74: =IF($C74<>"",OFFSET(Participant_Database!$F$3,Participant_Database!$Z75,0),"") ->  | G74: =IF($C74<>"",OFFSET(Participant_Database!$G$3,Participant_Database!$Z75,0),"") ->  | H74: =IF($C74<>"",OFFSET(Participant_Database!$H$3,Participant_Database!$Z75,0),"") ->  | I74: =IF($C74<>"",OFFSET(Participant_Database!$I$3,Participant_Database!$Z75,0),"") ->  | J74: =IF($C74<>"",OFFSET(Participant_Database!$J$3,Participant_Database!$Z75,0),"") ->  | K74: =IF($C74<>"",OFFSET(Participant_Database!$K$3,Participant_Database!$Z75,0),"") ->  | L74: =IF($C74<>"",OFFSET(Participant_Database!$L$3,Participant_Database!$Z75,0),"") ->  | M74: =IF($C74<>"",OFFSET(Participant_Database!$M$3,Participant_Database!$Z75,0),"") ->  | N74: =IF($C74<>"",OFFSET(Participant_Database!$N$3,Participant_Database!$Z75,0),"") ->  | O74: =IF($C74<>"",OFFSET(Participant_Database!$O$3,Participant_Database!$Z75,0),"") ->  | P74: =IF($C74<>"",OFFSET(Participant_Database!$P$3,Participant_Database!$Z75,0),"") ->  | Q74: =IF($C74<>"",OFFSET(Participant_Database!$Q$3,Participant_Database!$Z75,0),"") ->  | R74: =IF($C74<>"",OFFSET(Participant_Database!$R$3,Participant_Database!$Z75,0),"") ->  | S74: =IF($C74<>"",OFFSET(Participant_Database!$S$3,Participant_Database!$Z75,0),"") ->  | T74: =IF($C74<>"",OFFSET(Participant_Database!$T$3,Participant_Database!$Z75,0),"") ->  | U74: =IF($C74<>"",OFFSET(Participant_Database!$U$3,Participant_Database!$Z75,0),"") ->  | V74: =IF($C74<>"",OFFSET(Participant_Database!$V$3,Participant_Database!$Z75,0),"") ->  | W74: =IF($C74<>"",OFFSET(Participant_Database!$W$3,Participant_Database!$Z75,0),"") ->  | X74: =IF(C74<>"",Participant_Database!$Z73,"") -> 
A75: =IF($C75<>"",OFFSET(Participant_Database!$A$3,Participant_Database!$Z76,0),"") ->  | B75: =IF($C75<>"",OFFSET(Participant_Database!$B$3,Participant_Database!$Z76,0),"") ->  | C75: =IF(OFFSET(Participant_Database!$C$3,Participant_Database!$Z76,0)<>"",OFFSET(Participant_Database!$C$3,Participant_Database!$Z76,0),"") ->  | D75: =IF($C75<>"",OFFSET(Participant_Database!$D$3,Participant_Database!$Z76,0),"") ->  | E75: =IF($C75<>"",OFFSET(Participant_Database!$E$3,Participant_Database!$Z76,0),"") ->  | F75: =IF($C75<>"",OFFSET(Participant_Database!$F$3,Participant_Database!$Z76,0),"") ->  | G75: =IF($C75<>"",OFFSET(Participant_Database!$G$3,Participant_Database!$Z76,0),"") ->  | H75: =IF($C75<>"",OFFSET(Participant_Database!$H$3,Participant_Database!$Z76,0),"") ->  | I75: =IF($C75<>"",OFFSET(Participant_Database!$I$3,Participant_Database!$Z76,0),"") ->  | J75: =IF($C75<>"",OFFSET(Participant_Database!$J$3,Participant_Database!$Z76,0),"") ->  | K75: =IF($C75<>"",OFFSET(Participant_Database!$K$3,Participant_Database!$Z76,0),"") ->  | L75: =IF($C75<>"",OFFSET(Participant_Database!$L$3,Participant_Database!$Z76,0),"") ->  | M75: =IF($C75<>"",OFFSET(Participant_Database!$M$3,Participant_Database!$Z76,0),"") ->  | N75: =IF($C75<>"",OFFSET(Participant_Database!$N$3,Participant_Database!$Z76,0),"") ->  | O75: =IF($C75<>"",OFFSET(Participant_Database!$O$3,Participant_Database!$Z76,0),"") ->  | P75: =IF($C75<>"",OFFSET(Participant_Database!$P$3,Participant_Database!$Z76,0),"") ->  | Q75: =IF($C75<>"",OFFSET(Participant_Database!$Q$3,Participant_Database!$Z76,0),"") ->  | R75: =IF($C75<>"",OFFSET(Participant_Database!$R$3,Participant_Database!$Z76,0),"") ->  | S75: =IF($C75<>"",OFFSET(Participant_Database!$S$3,Participant_Database!$Z76,0),"") ->  | T75: =IF($C75<>"",OFFSET(Participant_Database!$T$3,Participant_Database!$Z76,0),"") ->  | U75: =IF($C75<>"",OFFSET(Participant_Database!$U$3,Participant_Database!$Z76,0),"") ->  | V75: =IF($C75<>"",OFFSET(Participant_Database!$V$3,Participant_Database!$Z76,0),"") ->  | W75: =IF($C75<>"",OFFSET(Participant_Database!$W$3,Participant_Database!$Z76,0),"") ->  | X75: =IF(C75<>"",Participant_Database!$Z74,"") -> 
A76: =IF($C76<>"",OFFSET(Participant_Database!$A$3,Participant_Database!$Z77,0),"") ->  | B76: =IF($C76<>"",OFFSET(Participant_Database!$B$3,Participant_Database!$Z77,0),"") ->  | C76: =IF(OFFSET(Participant_Database!$C$3,Participant_Database!$Z77,0)<>"",OFFSET(Participant_Database!$C$3,Participant_Database!$Z77,0),"") ->  | D76: =IF($C76<>"",OFFSET(Participant_Database!$D$3,Participant_Database!$Z77,0),"") ->  | E76: =IF($C76<>"",OFFSET(Participant_Database!$E$3,Participant_Database!$Z77,0),"") ->  | F76: =IF($C76<>"",OFFSET(Participant_Database!$F$3,Participant_Database!$Z77,0),"") ->  | G76: =IF($C76<>"",OFFSET(Participant_Database!$G$3,Participant_Database!$Z77,0),"") ->  | H76: =IF($C76<>"",OFFSET(Participant_Database!$H$3,Participant_Database!$Z77,0),"") ->  | I76: =IF($C76<>"",OFFSET(Participant_Database!$I$3,Participant_Database!$Z77,0),"") ->  | J76: =IF($C76<>"",OFFSET(Participant_Database!$J$3,Participant_Database!$Z77,0),"") ->  | K76: =IF($C76<>"",OFFSET(Participant_Database!$K$3,Participant_Database!$Z77,0),"") ->  | L76: =IF($C76<>"",OFFSET(Participant_Database!$L$3,Participant_Database!$Z77,0),"") ->  | M76: =IF($C76<>"",OFFSET(Participant_Database!$M$3,Participant_Database!$Z77,0),"") ->  | N76: =IF($C76<>"",OFFSET(Participant_Database!$N$3,Participant_Database!$Z77,0),"") ->  | O76: =IF($C76<>"",OFFSET(Participant_Database!$O$3,Participant_Database!$Z77,0),"") ->  | P76: =IF($C76<>"",OFFSET(Participant_Database!$P$3,Participant_Database!$Z77,0),"") ->  | Q76: =IF($C76<>"",OFFSET(Participant_Database!$Q$3,Participant_Database!$Z77,0),"") ->  | R76: =IF($C76<>"",OFFSET(Participant_Database!$R$3,Participant_Database!$Z77,0),"") ->  | S76: =IF($C76<>"",OFFSET(Participant_Database!$S$3,Participant_Database!$Z77,0),"") ->  | T76: =IF($C76<>"",OFFSET(Participant_Database!$T$3,Participant_Database!$Z77,0),"") ->  | U76: =IF($C76<>"",OFFSET(Participant_Database!$U$3,Participant_Database!$Z77,0),"") ->  | V76: =IF($C76<>"",OFFSET(Participant_Database!$V$3,Participant_Database!$Z77,0),"") ->  | W76: =IF($C76<>"",OFFSET(Participant_Database!$W$3,Participant_Database!$Z77,0),"") ->  | X76: =IF(C76<>"",Participant_Database!$Z75,"") -> 
A77: =IF($C77<>"",OFFSET(Participant_Database!$A$3,Participant_Database!$Z78,0),"") ->  | B77: =IF($C77<>"",OFFSET(Participant_Database!$B$3,Participant_Database!$Z78,0),"") ->  | C77: =IF(OFFSET(Participant_Database!$C$3,Participant_Database!$Z78,0)<>"",OFFSET(Participant_Database!$C$3,Participant_Database!$Z78,0),"") ->  | D77: =IF($C77<>"",OFFSET(Participant_Database!$D$3,Participant_Database!$Z78,0),"") ->  | E77: =IF($C77<>"",OFFSET(Participant_Database!$E$3,Participant_Database!$Z78,0),"") ->  | F77: =IF($C77<>"",OFFSET(Participant_Database!$F$3,Participant_Database!$Z78,0),"") ->  | G77: =IF($C77<>"",OFFSET(Participant_Database!$G$3,Participant_Database!$Z78,0),"") ->  | H77: =IF($C77<>"",OFFSET(Participant_Database!$H$3,Participant_Database!$Z78,0),"") ->  | I77: =IF($C77<>"",OFFSET(Participant_Database!$I$3,Participant_Database!$Z78,0),"") ->  | J77: =IF($C77<>"",OFFSET(Participant_Database!$J$3,Participant_Database!$Z78,0),"") ->  | K77: =IF($C77<>"",OFFSET(Participant_Database!$K$3,Participant_Database!$Z78,0),"") ->  | L77: =IF($C77<>"",OFFSET(Participant_Database!$L$3,Participant_Database!$Z78,0),"") ->  | M77: =IF($C77<>"",OFFSET(Participant_Database!$M$3,Participant_Database!$Z78,0),"") ->  | N77: =IF($C77<>"",OFFSET(Participant_Database!$N$3,Participant_Database!$Z78,0),"") ->  | O77: =IF($C77<>"",OFFSET(Participant_Database!$O$3,Participant_Database!$Z78,0),"") ->  | P77: =IF($C77<>"",OFFSET(Participant_Database!$P$3,Participant_Database!$Z78,0),"") ->  | Q77: =IF($C77<>"",OFFSET(Participant_Database!$Q$3,Participant_Database!$Z78,0),"") ->  | R77: =IF($C77<>"",OFFSET(Participant_Database!$R$3,Participant_Database!$Z78,0),"") ->  | S77: =IF($C77<>"",OFFSET(Participant_Database!$S$3,Participant_Database!$Z78,0),"") ->  | T77: =IF($C77<>"",OFFSET(Participant_Database!$T$3,Participant_Database!$Z78,0),"") ->  | U77: =IF($C77<>"",OFFSET(Participant_Database!$U$3,Participant_Database!$Z78,0),"") ->  | V77: =IF($C77<>"",OFFSET(Participant_Database!$V$3,Participant_Database!$Z78,0),"") ->  | W77: =IF($C77<>"",OFFSET(Participant_Database!$W$3,Participant_Database!$Z78,0),"") ->  | X77: =IF(C77<>"",Participant_Database!$Z76,"") -> 
A78: =IF($C78<>"",OFFSET(Participant_Database!$A$3,Participant_Database!$Z79,0),"") ->  | B78: =IF($C78<>"",OFFSET(Participant_Database!$B$3,Participant_Database!$Z79,0),"") ->  | C78: =IF(OFFSET(Participant_Database!$C$3,Participant_Database!$Z79,0)<>"",OFFSET(Participant_Database!$C$3,Participant_Database!$Z79,0),"") ->  | D78: =IF($C78<>"",OFFSET(Participant_Database!$D$3,Participant_Database!$Z79,0),"") ->  | E78: =IF($C78<>"",OFFSET(Participant_Database!$E$3,Participant_Database!$Z79,0),"") ->  | F78: =IF($C78<>"",OFFSET(Participant_Database!$F$3,Participant_Database!$Z79,0),"") ->  | G78: =IF($C78<>"",OFFSET(Participant_Database!$G$3,Participant_Database!$Z79,0),"") ->  | H78: =IF($C78<>"",OFFSET(Participant_Database!$H$3,Participant_Database!$Z79,0),"") ->  | I78: =IF($C78<>"",OFFSET(Participant_Database!$I$3,Participant_Database!$Z79,0),"") ->  | J78: =IF($C78<>"",OFFSET(Participant_Database!$J$3,Participant_Database!$Z79,0),"") ->  | K78: =IF($C78<>"",OFFSET(Participant_Database!$K$3,Participant_Database!$Z79,0),"") ->  | L78: =IF($C78<>"",OFFSET(Participant_Database!$L$3,Participant_Database!$Z79,0),"") ->  | M78: =IF($C78<>"",OFFSET(Participant_Database!$M$3,Participant_Database!$Z79,0),"") ->  | N78: =IF($C78<>"",OFFSET(Participant_Database!$N$3,Participant_Database!$Z79,0),"") ->  | O78: =IF($C78<>"",OFFSET(Participant_Database!$O$3,Participant_Database!$Z79,0),"") ->  | P78: =IF($C78<>"",OFFSET(Participant_Database!$P$3,Participant_Database!$Z79,0),"") ->  | Q78: =IF($C78<>"",OFFSET(Participant_Database!$Q$3,Participant_Database!$Z79,0),"") ->  | R78: =IF($C78<>"",OFFSET(Participant_Database!$R$3,Participant_Database!$Z79,0),"") ->  | S78: =IF($C78<>"",OFFSET(Participant_Database!$S$3,Participant_Database!$Z79,0),"") ->  | T78: =IF($C78<>"",OFFSET(Participant_Database!$T$3,Participant_Database!$Z79,0),"") ->  | U78: =IF($C78<>"",OFFSET(Participant_Database!$U$3,Participant_Database!$Z79,0),"") ->  | V78: =IF($C78<>"",OFFSET(Participant_Database!$V$3,Participant_Database!$Z79,0),"") ->  | W78: =IF($C78<>"",OFFSET(Participant_Database!$W$3,Participant_Database!$Z79,0),"") ->  | X78: =IF(C78<>"",Participant_Database!$Z77,"") -> 
A79: =IF($C79<>"",OFFSET(Participant_Database!$A$3,Participant_Database!$Z80,0),"") ->  | B79: =IF($C79<>"",OFFSET(Participant_Database!$B$3,Participant_Database!$Z80,0),"") ->  | C79: =IF(OFFSET(Participant_Database!$C$3,Participant_Database!$Z80,0)<>"",OFFSET(Participant_Database!$C$3,Participant_Database!$Z80,0),"") ->  | D79: =IF($C79<>"",OFFSET(Participant_Database!$D$3,Participant_Database!$Z80,0),"") ->  | E79: =IF($C79<>"",OFFSET(Participant_Database!$E$3,Participant_Database!$Z80,0),"") ->  | F79: =IF($C79<>"",OFFSET(Participant_Database!$F$3,Participant_Database!$Z80,0),"") ->  | G79: =IF($C79<>"",OFFSET(Participant_Database!$G$3,Participant_Database!$Z80,0),"") ->  | H79: =IF($C79<>"",OFFSET(Participant_Database!$H$3,Participant_Database!$Z80,0),"") ->  | I79: =IF($C79<>"",OFFSET(Participant_Database!$I$3,Participant_Database!$Z80,0),"") ->  | J79: =IF($C79<>"",OFFSET(Participant_Database!$J$3,Participant_Database!$Z80,0),"") ->  | K79: =IF($C79<>"",OFFSET(Participant_Database!$K$3,Participant_Database!$Z80,0),"") ->  | L79: =IF($C79<>"",OFFSET(Participant_Database!$L$3,Participant_Database!$Z80,0),"") ->  | M79: =IF($C79<>"",OFFSET(Participant_Database!$M$3,Participant_Database!$Z80,0),"") ->  | N79: =IF($C79<>"",OFFSET(Participant_Database!$N$3,Participant_Database!$Z80,0),"") ->  | O79: =IF($C79<>"",OFFSET(Participant_Database!$O$3,Participant_Database!$Z80,0),"") ->  | P79: =IF($C79<>"",OFFSET(Participant_Database!$P$3,Participant_Database!$Z80,0),"") ->  | Q79: =IF($C79<>"",OFFSET(Participant_Database!$Q$3,Participant_Database!$Z80,0),"") ->  | R79: =IF($C79<>"",OFFSET(Participant_Database!$R$3,Participant_Database!$Z80,0),"") ->  | S79: =IF($C79<>"",OFFSET(Participant_Database!$S$3,Participant_Database!$Z80,0),"") ->  | T79: =IF($C79<>"",OFFSET(Participant_Database!$T$3,Participant_Database!$Z80,0),"") ->  | U79: =IF($C79<>"",OFFSET(Participant_Database!$U$3,Participant_Database!$Z80,0),"") ->  | V79: =IF($C79<>"",OFFSET(Participant_Database!$V$3,Participant_Database!$Z80,0),"") ->  | W79: =IF($C79<>"",OFFSET(Participant_Database!$W$3,Participant_Database!$Z80,0),"") ->  | X79: =IF(C79<>"",Participant_Database!$Z78,"") -> 
A80: =IF($C80<>"",OFFSET(Participant_Database!$A$3,Participant_Database!$Z81,0),"") ->  | B80: =IF($C80<>"",OFFSET(Participant_Database!$B$3,Participant_Database!$Z81,0),"") ->  | C80: =IF(OFFSET(Participant_Database!$C$3,Participant_Database!$Z81,0)<>"",OFFSET(Participant_Database!$C$3,Participant_Database!$Z81,0),"") ->  | D80: =IF($C80<>"",OFFSET(Participant_Database!$D$3,Participant_Database!$Z81,0),"") ->  | E80: =IF($C80<>"",OFFSET(Participant_Database!$E$3,Participant_Database!$Z81,0),"") ->  | F80: =IF($C80<>"",OFFSET(Participant_Database!$F$3,Participant_Database!$Z81,0),"") ->  | G80: =IF($C80<>"",OFFSET(Participant_Database!$G$3,Participant_Database!$Z81,0),"") ->  | H80: =IF($C80<>"",OFFSET(Participant_Database!$H$3,Participant_Database!$Z81,0),"") ->  | I80: =IF($C80<>"",OFFSET(Participant_Database!$I$3,Participant_Database!$Z81,0),"") ->  | J80: =IF($C80<>"",OFFSET(Participant_Database!$J$3,Participant_Database!$Z81,0),"") ->  | K80: =IF($C80<>"",OFFSET(Participant_Database!$K$3,Participant_Database!$Z81,0),"") ->  | L80: =IF($C80<>"",OFFSET(Participant_Database!$L$3,Participant_Database!$Z81,0),"") ->  | M80: =IF($C80<>"",OFFSET(Participant_Database!$M$3,Participant_Database!$Z81,0),"") ->  | N80: =IF($C80<>"",OFFSET(Participant_Database!$N$3,Participant_Database!$Z81,0),"") ->  | O80: =IF($C80<>"",OFFSET(Participant_Database!$O$3,Participant_Database!$Z81,0),"") ->  | P80: =IF($C80<>"",OFFSET(Participant_Database!$P$3,Participant_Database!$Z81,0),"") ->  | Q80: =IF($C80<>"",OFFSET(Participant_Database!$Q$3,Participant_Database!$Z81,0),"") ->  | R80: =IF($C80<>"",OFFSET(Participant_Database!$R$3,Participant_Database!$Z81,0),"") ->  | S80: =IF($C80<>"",OFFSET(Participant_Database!$S$3,Participant_Database!$Z81,0),"") ->  | T80: =IF($C80<>"",OFFSET(Participant_Database!$T$3,Participant_Database!$Z81,0),"") ->  | U80: =IF($C80<>"",OFFSET(Participant_Database!$U$3,Participant_Database!$Z81,0),"") ->  | V80: =IF($C80<>"",OFFSET(Participant_Database!$V$3,Participant_Database!$Z81,0),"") ->  | W80: =IF($C80<>"",OFFSET(Participant_Database!$W$3,Participant_Database!$Z81,0),"") ->  | X80: =IF(C80<>"",Participant_Database!$Z79,"") -> 
A81: =IF($C81<>"",OFFSET(Participant_Database!$A$3,Participant_Database!$Z82,0),"") ->  | B81: =IF($C81<>"",OFFSET(Participant_Database!$B$3,Participant_Database!$Z82,0),"") ->  | C81: =IF(OFFSET(Participant_Database!$C$3,Participant_Database!$Z82,0)<>"",OFFSET(Participant_Database!$C$3,Participant_Database!$Z82,0),"") ->  | D81: =IF($C81<>"",OFFSET(Participant_Database!$D$3,Participant_Database!$Z82,0),"") ->  | E81: =IF($C81<>"",OFFSET(Participant_Database!$E$3,Participant_Database!$Z82,0),"") ->  | F81: =IF($C81<>"",OFFSET(Participant_Database!$F$3,Participant_Database!$Z82,0),"") ->  | G81: =IF($C81<>"",OFFSET(Participant_Database!$G$3,Participant_Database!$Z82,0),"") ->  | H81: =IF($C81<>"",OFFSET(Participant_Database!$H$3,Participant_Database!$Z82,0),"") ->  | I81: =IF($C81<>"",OFFSET(Participant_Database!$I$3,Participant_Database!$Z82,0),"") ->  | J81: =IF($C81<>"",OFFSET(Participant_Database!$J$3,Participant_Database!$Z82,0),"") ->  | K81: =IF($C81<>"",OFFSET(Participant_Database!$K$3,Participant_Database!$Z82,0),"") ->  | L81: =IF($C81<>"",OFFSET(Participant_Database!$L$3,Participant_Database!$Z82,0),"") ->  | M81: =IF($C81<>"",OFFSET(Participant_Database!$M$3,Participant_Database!$Z82,0),"") ->  | N81: =IF($C81<>"",OFFSET(Participant_Database!$N$3,Participant_Database!$Z82,0),"") ->  | O81: =IF($C81<>"",OFFSET(Participant_Database!$O$3,Participant_Database!$Z82,0),"") ->  | P81: =IF($C81<>"",OFFSET(Participant_Database!$P$3,Participant_Database!$Z82,0),"") ->  | Q81: =IF($C81<>"",OFFSET(Participant_Database!$Q$3,Participant_Database!$Z82,0),"") ->  | R81: =IF($C81<>"",OFFSET(Participant_Database!$R$3,Participant_Database!$Z82,0),"") ->  | S81: =IF($C81<>"",OFFSET(Participant_Database!$S$3,Participant_Database!$Z82,0),"") ->  | T81: =IF($C81<>"",OFFSET(Participant_Database!$T$3,Participant_Database!$Z82,0),"") ->  | U81: =IF($C81<>"",OFFSET(Participant_Database!$U$3,Participant_Database!$Z82,0),"") ->  | V81: =IF($C81<>"",OFFSET(Participant_Database!$V$3,Participant_Database!$Z82,0),"") ->  | W81: =IF($C81<>"",OFFSET(Participant_Database!$W$3,Participant_Database!$Z82,0),"") ->  | X81: =IF(C81<>"",Participant_Database!$Z80,"") -> 
A82: =IF($C82<>"",OFFSET(Participant_Database!$A$3,Participant_Database!$Z83,0),"") ->  | B82: =IF($C82<>"",OFFSET(Participant_Database!$B$3,Participant_Database!$Z83,0),"") ->  | C82: =IF(OFFSET(Participant_Database!$C$3,Participant_Database!$Z83,0)<>"",OFFSET(Participant_Database!$C$3,Participant_Database!$Z83,0),"") ->  | D82: =IF($C82<>"",OFFSET(Participant_Database!$D$3,Participant_Database!$Z83,0),"") ->  | E82: =IF($C82<>"",OFFSET(Participant_Database!$E$3,Participant_Database!$Z83,0),"") ->  | F82: =IF($C82<>"",OFFSET(Participant_Database!$F$3,Participant_Database!$Z83,0),"") ->  | G82: =IF($C82<>"",OFFSET(Participant_Database!$G$3,Participant_Database!$Z83,0),"") ->  | H82: =IF($C82<>"",OFFSET(Participant_Database!$H$3,Participant_Database!$Z83,0),"") ->  | I82: =IF($C82<>"",OFFSET(Participant_Database!$I$3,Participant_Database!$Z83,0),"") ->  | J82: =IF($C82<>"",OFFSET(Participant_Database!$J$3,Participant_Database!$Z83,0),"") ->  | K82: =IF($C82<>"",OFFSET(Participant_Database!$K$3,Participant_Database!$Z83,0),"") ->  | L82: =IF($C82<>"",OFFSET(Participant_Database!$L$3,Participant_Database!$Z83,0),"") ->  | M82: =IF($C82<>"",OFFSET(Participant_Database!$M$3,Participant_Database!$Z83,0),"") ->  | N82: =IF($C82<>"",OFFSET(Participant_Database!$N$3,Participant_Database!$Z83,0),"") ->  | O82: =IF($C82<>"",OFFSET(Participant_Database!$O$3,Participant_Database!$Z83,0),"") ->  | P82: =IF($C82<>"",OFFSET(Participant_Database!$P$3,Participant_Database!$Z83,0),"") ->  | Q82: =IF($C82<>"",OFFSET(Participant_Database!$Q$3,Participant_Database!$Z83,0),"") ->  | R82: =IF($C82<>"",OFFSET(Participant_Database!$R$3,Participant_Database!$Z83,0),"") ->  | S82: =IF($C82<>"",OFFSET(Participant_Database!$S$3,Participant_Database!$Z83,0),"") ->  | T82: =IF($C82<>"",OFFSET(Participant_Database!$T$3,Participant_Database!$Z83,0),"") ->  | U82: =IF($C82<>"",OFFSET(Participant_Database!$U$3,Participant_Database!$Z83,0),"") ->  | V82: =IF($C82<>"",OFFSET(Participant_Database!$V$3,Participant_Database!$Z83,0),"") ->  | W82: =IF($C82<>"",OFFSET(Participant_Database!$W$3,Participant_Database!$Z83,0),"") ->  | X82: =IF(C82<>"",Participant_Database!$Z81,"") -> 
A83: =IF($C83<>"",OFFSET(Participant_Database!$A$3,Participant_Database!$Z84,0),"") ->  | B83: =IF($C83<>"",OFFSET(Participant_Database!$B$3,Participant_Database!$Z84,0),"") ->  | C83: =IF(OFFSET(Participant_Database!$C$3,Participant_Database!$Z84,0)<>"",OFFSET(Participant_Database!$C$3,Participant_Database!$Z84,0),"") ->  | D83: =IF($C83<>"",OFFSET(Participant_Database!$D$3,Participant_Database!$Z84,0),"") ->  | E83: =IF($C83<>"",OFFSET(Participant_Database!$E$3,Participant_Database!$Z84,0),"") ->  | F83: =IF($C83<>"",OFFSET(Participant_Database!$F$3,Participant_Database!$Z84,0),"") ->  | G83: =IF($C83<>"",OFFSET(Participant_Database!$G$3,Participant_Database!$Z84,0),"") ->  | H83: =IF($C83<>"",OFFSET(Participant_Database!$H$3,Participant_Database!$Z84,0),"") ->  | I83: =IF($C83<>"",OFFSET(Participant_Database!$I$3,Participant_Database!$Z84,0),"") ->  | J83: =IF($C83<>"",OFFSET(Participant_Database!$J$3,Participant_Database!$Z84,0),"") ->  | K83: =IF($C83<>"",OFFSET(Participant_Database!$K$3,Participant_Database!$Z84,0),"") ->  | L83: =IF($C83<>"",OFFSET(Participant_Database!$L$3,Participant_Database!$Z84,0),"") ->  | M83: =IF($C83<>"",OFFSET(Participant_Database!$M$3,Participant_Database!$Z84,0),"") ->  | N83: =IF($C83<>"",OFFSET(Participant_Database!$N$3,Participant_Database!$Z84,0),"") ->  | O83: =IF($C83<>"",OFFSET(Participant_Database!$O$3,Participant_Database!$Z84,0),"") ->  | P83: =IF($C83<>"",OFFSET(Participant_Database!$P$3,Participant_Database!$Z84,0),"") ->  | Q83: =IF($C83<>"",OFFSET(Participant_Database!$Q$3,Participant_Database!$Z84,0),"") ->  | R83: =IF($C83<>"",OFFSET(Participant_Database!$R$3,Participant_Database!$Z84,0),"") ->  | S83: =IF($C83<>"",OFFSET(Participant_Database!$S$3,Participant_Database!$Z84,0),"") ->  | T83: =IF($C83<>"",OFFSET(Participant_Database!$T$3,Participant_Database!$Z84,0),"") ->  | U83: =IF($C83<>"",OFFSET(Participant_Database!$U$3,Participant_Database!$Z84,0),"") ->  | V83: =IF($C83<>"",OFFSET(Participant_Database!$V$3,Participant_Database!$Z84,0),"") ->  | W83: =IF($C83<>"",OFFSET(Participant_Database!$W$3,Participant_Database!$Z84,0),"") ->  | X83: =IF(C83<>"",Participant_Database!$Z82,"") -> 
A84: =IF($C84<>"",OFFSET(Participant_Database!$A$3,Participant_Database!$Z85,0),"") ->  | B84: =IF($C84<>"",OFFSET(Participant_Database!$B$3,Participant_Database!$Z85,0),"") ->  | C84: =IF(OFFSET(Participant_Database!$C$3,Participant_Database!$Z85,0)<>"",OFFSET(Participant_Database!$C$3,Participant_Database!$Z85,0),"") ->  | D84: =IF($C84<>"",OFFSET(Participant_Database!$D$3,Participant_Database!$Z85,0),"") ->  | E84: =IF($C84<>"",OFFSET(Participant_Database!$E$3,Participant_Database!$Z85,0),"") ->  | F84: =IF($C84<>"",OFFSET(Participant_Database!$F$3,Participant_Database!$Z85,0),"") ->  | G84: =IF($C84<>"",OFFSET(Participant_Database!$G$3,Participant_Database!$Z85,0),"") ->  | H84: =IF($C84<>"",OFFSET(Participant_Database!$H$3,Participant_Database!$Z85,0),"") ->  | I84: =IF($C84<>"",OFFSET(Participant_Database!$I$3,Participant_Database!$Z85,0),"") ->  | J84: =IF($C84<>"",OFFSET(Participant_Database!$J$3,Participant_Database!$Z85,0),"") ->  | K84: =IF($C84<>"",OFFSET(Participant_Database!$K$3,Participant_Database!$Z85,0),"") ->  | L84: =IF($C84<>"",OFFSET(Participant_Database!$L$3,Participant_Database!$Z85,0),"") ->  | M84: =IF($C84<>"",OFFSET(Participant_Database!$M$3,Participant_Database!$Z85,0),"") ->  | N84: =IF($C84<>"",OFFSET(Participant_Database!$N$3,Participant_Database!$Z85,0),"") ->  | O84: =IF($C84<>"",OFFSET(Participant_Database!$O$3,Participant_Database!$Z85,0),"") ->  | P84: =IF($C84<>"",OFFSET(Participant_Database!$P$3,Participant_Database!$Z85,0),"") ->  | Q84: =IF($C84<>"",OFFSET(Participant_Database!$Q$3,Participant_Database!$Z85,0),"") ->  | R84: =IF($C84<>"",OFFSET(Participant_Database!$R$3,Participant_Database!$Z85,0),"") ->  | S84: =IF($C84<>"",OFFSET(Participant_Database!$S$3,Participant_Database!$Z85,0),"") ->  | T84: =IF($C84<>"",OFFSET(Participant_Database!$T$3,Participant_Database!$Z85,0),"") ->  | U84: =IF($C84<>"",OFFSET(Participant_Database!$U$3,Participant_Database!$Z85,0),"") ->  | V84: =IF($C84<>"",OFFSET(Participant_Database!$V$3,Participant_Database!$Z85,0),"") ->  | W84: =IF($C84<>"",OFFSET(Participant_Database!$W$3,Participant_Database!$Z85,0),"") ->  | X84: =IF(C84<>"",Participant_Database!$Z83,"") -> 
A85: =IF($C85<>"",OFFSET(Participant_Database!$A$3,Participant_Database!$Z86,0),"") ->  | B85: =IF($C85<>"",OFFSET(Participant_Database!$B$3,Participant_Database!$Z86,0),"") ->  | C85: =IF(OFFSET(Participant_Database!$C$3,Participant_Database!$Z86,0)<>"",OFFSET(Participant_Database!$C$3,Participant_Database!$Z86,0),"") ->  | D85: =IF($C85<>"",OFFSET(Participant_Database!$D$3,Participant_Database!$Z86,0),"") ->  | E85: =IF($C85<>"",OFFSET(Participant_Database!$E$3,Participant_Database!$Z86,0),"") ->  | F85: =IF($C85<>"",OFFSET(Participant_Database!$F$3,Participant_Database!$Z86,0),"") ->  | G85: =IF($C85<>"",OFFSET(Participant_Database!$G$3,Participant_Database!$Z86,0),"") ->  | H85: =IF($C85<>"",OFFSET(Participant_Database!$H$3,Participant_Database!$Z86,0),"") ->  | I85: =IF($C85<>"",OFFSET(Participant_Database!$I$3,Participant_Database!$Z86,0),"") ->  | J85: =IF($C85<>"",OFFSET(Participant_Database!$J$3,Participant_Database!$Z86,0),"") ->  | K85: =IF($C85<>"",OFFSET(Participant_Database!$K$3,Participant_Database!$Z86,0),"") ->  | L85: =IF($C85<>"",OFFSET(Participant_Database!$L$3,Participant_Database!$Z86,0),"") ->  | M85: =IF($C85<>"",OFFSET(Participant_Database!$M$3,Participant_Database!$Z86,0),"") ->  | N85: =IF($C85<>"",OFFSET(Participant_Database!$N$3,Participant_Database!$Z86,0),"") ->  | O85: =IF($C85<>"",OFFSET(Participant_Database!$O$3,Participant_Database!$Z86,0),"") ->  | P85: =IF($C85<>"",OFFSET(Participant_Database!$P$3,Participant_Database!$Z86,0),"") ->  | Q85: =IF($C85<>"",OFFSET(Participant_Database!$Q$3,Participant_Database!$Z86,0),"") ->  | R85: =IF($C85<>"",OFFSET(Participant_Database!$R$3,Participant_Database!$Z86,0),"") ->  | S85: =IF($C85<>"",OFFSET(Participant_Database!$S$3,Participant_Database!$Z86,0),"") ->  | T85: =IF($C85<>"",OFFSET(Participant_Database!$T$3,Participant_Database!$Z86,0),"") ->  | U85: =IF($C85<>"",OFFSET(Participant_Database!$U$3,Participant_Database!$Z86,0),"") ->  | V85: =IF($C85<>"",OFFSET(Participant_Database!$V$3,Participant_Database!$Z86,0),"") ->  | W85: =IF($C85<>"",OFFSET(Participant_Database!$W$3,Participant_Database!$Z86,0),"") ->  | X85: =IF(C85<>"",Participant_Database!$Z84,"") -> 
A86: =IF($C86<>"",OFFSET(Participant_Database!$A$3,Participant_Database!$Z87,0),"") ->  | B86: =IF($C86<>"",OFFSET(Participant_Database!$B$3,Participant_Database!$Z87,0),"") ->  | C86: =IF(OFFSET(Participant_Database!$C$3,Participant_Database!$Z87,0)<>"",OFFSET(Participant_Database!$C$3,Participant_Database!$Z87,0),"") ->  | D86: =IF($C86<>"",OFFSET(Participant_Database!$D$3,Participant_Database!$Z87,0),"") ->  | E86: =IF($C86<>"",OFFSET(Participant_Database!$E$3,Participant_Database!$Z87,0),"") ->  | F86: =IF($C86<>"",OFFSET(Participant_Database!$F$3,Participant_Database!$Z87,0),"") ->  | G86: =IF($C86<>"",OFFSET(Participant_Database!$G$3,Participant_Database!$Z87,0),"") ->  | H86: =IF($C86<>"",OFFSET(Participant_Database!$H$3,Participant_Database!$Z87,0),"") ->  | I86: =IF($C86<>"",OFFSET(Participant_Database!$I$3,Participant_Database!$Z87,0),"") ->  | J86: =IF($C86<>"",OFFSET(Participant_Database!$J$3,Participant_Database!$Z87,0),"") ->  | K86: =IF($C86<>"",OFFSET(Participant_Database!$K$3,Participant_Database!$Z87,0),"") ->  | L86: =IF($C86<>"",OFFSET(Participant_Database!$L$3,Participant_Database!$Z87,0),"") ->  | M86: =IF($C86<>"",OFFSET(Participant_Database!$M$3,Participant_Database!$Z87,0),"") ->  | N86: =IF($C86<>"",OFFSET(Participant_Database!$N$3,Participant_Database!$Z87,0),"") ->  | O86: =IF($C86<>"",OFFSET(Participant_Database!$O$3,Participant_Database!$Z87,0),"") ->  | P86: =IF($C86<>"",OFFSET(Participant_Database!$P$3,Participant_Database!$Z87,0),"") ->  | Q86: =IF($C86<>"",OFFSET(Participant_Database!$Q$3,Participant_Database!$Z87,0),"") ->  | R86: =IF($C86<>"",OFFSET(Participant_Database!$R$3,Participant_Database!$Z87,0),"") ->  | S86: =IF($C86<>"",OFFSET(Participant_Database!$S$3,Participant_Database!$Z87,0),"") ->  | T86: =IF($C86<>"",OFFSET(Participant_Database!$T$3,Participant_Database!$Z87,0),"") ->  | U86: =IF($C86<>"",OFFSET(Participant_Database!$U$3,Participant_Database!$Z87,0),"") ->  | V86: =IF($C86<>"",OFFSET(Participant_Database!$V$3,Participant_Database!$Z87,0),"") ->  | W86: =IF($C86<>"",OFFSET(Participant_Database!$W$3,Participant_Database!$Z87,0),"") ->  | X86: =IF(C86<>"",Participant_Database!$Z85,"") -> 
A87: =IF($C87<>"",OFFSET(Participant_Database!$A$3,Participant_Database!$Z88,0),"") ->  | B87: =IF($C87<>"",OFFSET(Participant_Database!$B$3,Participant_Database!$Z88,0),"") ->  | C87: =IF(OFFSET(Participant_Database!$C$3,Participant_Database!$Z88,0)<>"",OFFSET(Participant_Database!$C$3,Participant_Database!$Z88,0),"") ->  | D87: =IF($C87<>"",OFFSET(Participant_Database!$D$3,Participant_Database!$Z88,0),"") ->  | E87: =IF($C87<>"",OFFSET(Participant_Database!$E$3,Participant_Database!$Z88,0),"") ->  | F87: =IF($C87<>"",OFFSET(Participant_Database!$F$3,Participant_Database!$Z88,0),"") ->  | G87: =IF($C87<>"",OFFSET(Participant_Database!$G$3,Participant_Database!$Z88,0),"") ->  | H87: =IF($C87<>"",OFFSET(Participant_Database!$H$3,Participant_Database!$Z88,0),"") ->  | I87: =IF($C87<>"",OFFSET(Participant_Database!$I$3,Participant_Database!$Z88,0),"") ->  | J87: =IF($C87<>"",OFFSET(Participant_Database!$J$3,Participant_Database!$Z88,0),"") ->  | K87: =IF($C87<>"",OFFSET(Participant_Database!$K$3,Participant_Database!$Z88,0),"") ->  | L87: =IF($C87<>"",OFFSET(Participant_Database!$L$3,Participant_Database!$Z88,0),"") ->  | M87: =IF($C87<>"",OFFSET(Participant_Database!$M$3,Participant_Database!$Z88,0),"") ->  | N87: =IF($C87<>"",OFFSET(Participant_Database!$N$3,Participant_Database!$Z88,0),"") ->  | O87: =IF($C87<>"",OFFSET(Participant_Database!$O$3,Participant_Database!$Z88,0),"") ->  | P87: =IF($C87<>"",OFFSET(Participant_Database!$P$3,Participant_Database!$Z88,0),"") ->  | Q87: =IF($C87<>"",OFFSET(Participant_Database!$Q$3,Participant_Database!$Z88,0),"") ->  | R87: =IF($C87<>"",OFFSET(Participant_Database!$R$3,Participant_Database!$Z88,0),"") ->  | S87: =IF($C87<>"",OFFSET(Participant_Database!$S$3,Participant_Database!$Z88,0),"") ->  | T87: =IF($C87<>"",OFFSET(Participant_Database!$T$3,Participant_Database!$Z88,0),"") ->  | U87: =IF($C87<>"",OFFSET(Participant_Database!$U$3,Participant_Database!$Z88,0),"") ->  | V87: =IF($C87<>"",OFFSET(Participant_Database!$V$3,Participant_Database!$Z88,0),"") ->  | W87: =IF($C87<>"",OFFSET(Participant_Database!$W$3,Participant_Database!$Z88,0),"") ->  | X87: =IF(C87<>"",Participant_Database!$Z86,"") -> 
A88: =IF($C88<>"",OFFSET(Participant_Database!$A$3,Participant_Database!$Z89,0),"") ->  | B88: =IF($C88<>"",OFFSET(Participant_Database!$B$3,Participant_Database!$Z89,0),"") ->  | C88: =IF(OFFSET(Participant_Database!$C$3,Participant_Database!$Z89,0)<>"",OFFSET(Participant_Database!$C$3,Participant_Database!$Z89,0),"") ->  | D88: =IF($C88<>"",OFFSET(Participant_Database!$D$3,Participant_Database!$Z89,0),"") ->  | E88: =IF($C88<>"",OFFSET(Participant_Database!$E$3,Participant_Database!$Z89,0),"") ->  | F88: =IF($C88<>"",OFFSET(Participant_Database!$F$3,Participant_Database!$Z89,0),"") ->  | G88: =IF($C88<>"",OFFSET(Participant_Database!$G$3,Participant_Database!$Z89,0),"") ->  | H88: =IF($C88<>"",OFFSET(Participant_Database!$H$3,Participant_Database!$Z89,0),"") ->  | I88: =IF($C88<>"",OFFSET(Participant_Database!$I$3,Participant_Database!$Z89,0),"") ->  | J88: =IF($C88<>"",OFFSET(Participant_Database!$J$3,Participant_Database!$Z89,0),"") ->  | K88: =IF($C88<>"",OFFSET(Participant_Database!$K$3,Participant_Database!$Z89,0),"") ->  | L88: =IF($C88<>"",OFFSET(Participant_Database!$L$3,Participant_Database!$Z89,0),"") ->  | M88: =IF($C88<>"",OFFSET(Participant_Database!$M$3,Participant_Database!$Z89,0),"") ->  | N88: =IF($C88<>"",OFFSET(Participant_Database!$N$3,Participant_Database!$Z89,0),"") ->  | O88: =IF($C88<>"",OFFSET(Participant_Database!$O$3,Participant_Database!$Z89,0),"") ->  | P88: =IF($C88<>"",OFFSET(Participant_Database!$P$3,Participant_Database!$Z89,0),"") ->  | Q88: =IF($C88<>"",OFFSET(Participant_Database!$Q$3,Participant_Database!$Z89,0),"") ->  | R88: =IF($C88<>"",OFFSET(Participant_Database!$R$3,Participant_Database!$Z89,0),"") ->  | S88: =IF($C88<>"",OFFSET(Participant_Database!$S$3,Participant_Database!$Z89,0),"") ->  | T88: =IF($C88<>"",OFFSET(Participant_Database!$T$3,Participant_Database!$Z89,0),"") ->  | U88: =IF($C88<>"",OFFSET(Participant_Database!$U$3,Participant_Database!$Z89,0),"") ->  | V88: =IF($C88<>"",OFFSET(Participant_Database!$V$3,Participant_Database!$Z89,0),"") ->  | W88: =IF($C88<>"",OFFSET(Participant_Database!$W$3,Participant_Database!$Z89,0),"") ->  | X88: =IF(C88<>"",Participant_Database!$Z87,"") -> 
A89: =IF($C89<>"",OFFSET(Participant_Database!$A$3,Participant_Database!$Z90,0),"") ->  | B89: =IF($C89<>"",OFFSET(Participant_Database!$B$3,Participant_Database!$Z90,0),"") ->  | C89: =IF(OFFSET(Participant_Database!$C$3,Participant_Database!$Z90,0)<>"",OFFSET(Participant_Database!$C$3,Participant_Database!$Z90,0),"") ->  | D89: =IF($C89<>"",OFFSET(Participant_Database!$D$3,Participant_Database!$Z90,0),"") ->  | E89: =IF($C89<>"",OFFSET(Participant_Database!$E$3,Participant_Database!$Z90,0),"") ->  | F89: =IF($C89<>"",OFFSET(Participant_Database!$F$3,Participant_Database!$Z90,0),"") ->  | G89: =IF($C89<>"",OFFSET(Participant_Database!$G$3,Participant_Database!$Z90,0),"") ->  | H89: =IF($C89<>"",OFFSET(Participant_Database!$H$3,Participant_Database!$Z90,0),"") ->  | I89: =IF($C89<>"",OFFSET(Participant_Database!$I$3,Participant_Database!$Z90,0),"") ->  | J89: =IF($C89<>"",OFFSET(Participant_Database!$J$3,Participant_Database!$Z90,0),"") ->  | K89: =IF($C89<>"",OFFSET(Participant_Database!$K$3,Participant_Database!$Z90,0),"") ->  | L89: =IF($C89<>"",OFFSET(Participant_Database!$L$3,Participant_Database!$Z90,0),"") ->  | M89: =IF($C89<>"",OFFSET(Participant_Database!$M$3,Participant_Database!$Z90,0),"") ->  | N89: =IF($C89<>"",OFFSET(Participant_Database!$N$3,Participant_Database!$Z90,0),"") ->  | O89: =IF($C89<>"",OFFSET(Participant_Database!$O$3,Participant_Database!$Z90,0),"") ->  | P89: =IF($C89<>"",OFFSET(Participant_Database!$P$3,Participant_Database!$Z90,0),"") ->  | Q89: =IF($C89<>"",OFFSET(Participant_Database!$Q$3,Participant_Database!$Z90,0),"") ->  | R89: =IF($C89<>"",OFFSET(Participant_Database!$R$3,Participant_Database!$Z90,0),"") ->  | S89: =IF($C89<>"",OFFSET(Participant_Database!$S$3,Participant_Database!$Z90,0),"") ->  | T89: =IF($C89<>"",OFFSET(Participant_Database!$T$3,Participant_Database!$Z90,0),"") ->  | U89: =IF($C89<>"",OFFSET(Participant_Database!$U$3,Participant_Database!$Z90,0),"") ->  | V89: =IF($C89<>"",OFFSET(Participant_Database!$V$3,Participant_Database!$Z90,0),"") ->  | W89: =IF($C89<>"",OFFSET(Participant_Database!$W$3,Participant_Database!$Z90,0),"") ->  | X89: =IF(C89<>"",Participant_Database!$Z88,"") -> 
A90: =IF($C90<>"",OFFSET(Participant_Database!$A$3,Participant_Database!$Z91,0),"") ->  | B90: =IF($C90<>"",OFFSET(Participant_Database!$B$3,Participant_Database!$Z91,0),"") ->  | C90: =IF(OFFSET(Participant_Database!$C$3,Participant_Database!$Z91,0)<>"",OFFSET(Participant_Database!$C$3,Participant_Database!$Z91,0),"") ->  | D90: =IF($C90<>"",OFFSET(Participant_Database!$D$3,Participant_Database!$Z91,0),"") ->  | E90: =IF($C90<>"",OFFSET(Participant_Database!$E$3,Participant_Database!$Z91,0),"") ->  | F90: =IF($C90<>"",OFFSET(Participant_Database!$F$3,Participant_Database!$Z91,0),"") ->  | G90: =IF($C90<>"",OFFSET(Participant_Database!$G$3,Participant_Database!$Z91,0),"") ->  | H90: =IF($C90<>"",OFFSET(Participant_Database!$H$3,Participant_Database!$Z91,0),"") ->  | I90: =IF($C90<>"",OFFSET(Participant_Database!$I$3,Participant_Database!$Z91,0),"") ->  | J90: =IF($C90<>"",OFFSET(Participant_Database!$J$3,Participant_Database!$Z91,0),"") ->  | K90: =IF($C90<>"",OFFSET(Participant_Database!$K$3,Participant_Database!$Z91,0),"") ->  | L90: =IF($C90<>"",OFFSET(Participant_Database!$L$3,Participant_Database!$Z91,0),"") ->  | M90: =IF($C90<>"",OFFSET(Participant_Database!$M$3,Participant_Database!$Z91,0),"") ->  | N90: =IF($C90<>"",OFFSET(Participant_Database!$N$3,Participant_Database!$Z91,0),"") ->  | O90: =IF($C90<>"",OFFSET(Participant_Database!$O$3,Participant_Database!$Z91,0),"") ->  | P90: =IF($C90<>"",OFFSET(Participant_Database!$P$3,Participant_Database!$Z91,0),"") ->  | Q90: =IF($C90<>"",OFFSET(Participant_Database!$Q$3,Participant_Database!$Z91,0),"") ->  | R90: =IF($C90<>"",OFFSET(Participant_Database!$R$3,Participant_Database!$Z91,0),"") ->  | S90: =IF($C90<>"",OFFSET(Participant_Database!$S$3,Participant_Database!$Z91,0),"") ->  | T90: =IF($C90<>"",OFFSET(Participant_Database!$T$3,Participant_Database!$Z91,0),"") ->  | U90: =IF($C90<>"",OFFSET(Participant_Database!$U$3,Participant_Database!$Z91,0),"") ->  | V90: =IF($C90<>"",OFFSET(Participant_Database!$V$3,Participant_Database!$Z91,0),"") ->  | W90: =IF($C90<>"",OFFSET(Participant_Database!$W$3,Participant_Database!$Z91,0),"") ->  | X90: =IF(C90<>"",Participant_Database!$Z89,"") -> 
A91: =IF($C91<>"",OFFSET(Participant_Database!$A$3,Participant_Database!$Z92,0),"") ->  | B91: =IF($C91<>"",OFFSET(Participant_Database!$B$3,Participant_Database!$Z92,0),"") ->  | C91: =IF(OFFSET(Participant_Database!$C$3,Participant_Database!$Z92,0)<>"",OFFSET(Participant_Database!$C$3,Participant_Database!$Z92,0),"") ->  | D91: =IF($C91<>"",OFFSET(Participant_Database!$D$3,Participant_Database!$Z92,0),"") ->  | E91: =IF($C91<>"",OFFSET(Participant_Database!$E$3,Participant_Database!$Z92,0),"") ->  | F91: =IF($C91<>"",OFFSET(Participant_Database!$F$3,Participant_Database!$Z92,0),"") ->  | G91: =IF($C91<>"",OFFSET(Participant_Database!$G$3,Participant_Database!$Z92,0),"") ->  | H91: =IF($C91<>"",OFFSET(Participant_Database!$H$3,Participant_Database!$Z92,0),"") ->  | I91: =IF($C91<>"",OFFSET(Participant_Database!$I$3,Participant_Database!$Z92,0),"") ->  | J91: =IF($C91<>"",OFFSET(Participant_Database!$J$3,Participant_Database!$Z92,0),"") ->  | K91: =IF($C91<>"",OFFSET(Participant_Database!$K$3,Participant_Database!$Z92,0),"") ->  | L91: =IF($C91<>"",OFFSET(Participant_Database!$L$3,Participant_Database!$Z92,0),"") ->  | M91: =IF($C91<>"",OFFSET(Participant_Database!$M$3,Participant_Database!$Z92,0),"") ->  | N91: =IF($C91<>"",OFFSET(Participant_Database!$N$3,Participant_Database!$Z92,0),"") ->  | O91: =IF($C91<>"",OFFSET(Participant_Database!$O$3,Participant_Database!$Z92,0),"") ->  | P91: =IF($C91<>"",OFFSET(Participant_Database!$P$3,Participant_Database!$Z92,0),"") ->  | Q91: =IF($C91<>"",OFFSET(Participant_Database!$Q$3,Participant_Database!$Z92,0),"") ->  | R91: =IF($C91<>"",OFFSET(Participant_Database!$R$3,Participant_Database!$Z92,0),"") ->  | S91: =IF($C91<>"",OFFSET(Participant_Database!$S$3,Participant_Database!$Z92,0),"") ->  | T91: =IF($C91<>"",OFFSET(Participant_Database!$T$3,Participant_Database!$Z92,0),"") ->  | U91: =IF($C91<>"",OFFSET(Participant_Database!$U$3,Participant_Database!$Z92,0),"") ->  | V91: =IF($C91<>"",OFFSET(Participant_Database!$V$3,Participant_Database!$Z92,0),"") ->  | W91: =IF($C91<>"",OFFSET(Participant_Database!$W$3,Participant_Database!$Z92,0),"") ->  | X91: =IF(C91<>"",Participant_Database!$Z90,"") -> 
A92: =IF($C92<>"",OFFSET(Participant_Database!$A$3,Participant_Database!$Z93,0),"") ->  | B92: =IF($C92<>"",OFFSET(Participant_Database!$B$3,Participant_Database!$Z93,0),"") ->  | C92: =IF(OFFSET(Participant_Database!$C$3,Participant_Database!$Z93,0)<>"",OFFSET(Participant_Database!$C$3,Participant_Database!$Z93,0),"") ->  | D92: =IF($C92<>"",OFFSET(Participant_Database!$D$3,Participant_Database!$Z93,0),"") ->  | E92: =IF($C92<>"",OFFSET(Participant_Database!$E$3,Participant_Database!$Z93,0),"") ->  | F92: =IF($C92<>"",OFFSET(Participant_Database!$F$3,Participant_Database!$Z93,0),"") ->  | G92: =IF($C92<>"",OFFSET(Participant_Database!$G$3,Participant_Database!$Z93,0),"") ->  | H92: =IF($C92<>"",OFFSET(Participant_Database!$H$3,Participant_Database!$Z93,0),"") ->  | I92: =IF($C92<>"",OFFSET(Participant_Database!$I$3,Participant_Database!$Z93,0),"") ->  | J92: =IF($C92<>"",OFFSET(Participant_Database!$J$3,Participant_Database!$Z93,0),"") ->  | K92: =IF($C92<>"",OFFSET(Participant_Database!$K$3,Participant_Database!$Z93,0),"") ->  | L92: =IF($C92<>"",OFFSET(Participant_Database!$L$3,Participant_Database!$Z93,0),"") ->  | M92: =IF($C92<>"",OFFSET(Participant_Database!$M$3,Participant_Database!$Z93,0),"") ->  | N92: =IF($C92<>"",OFFSET(Participant_Database!$N$3,Participant_Database!$Z93,0),"") ->  | O92: =IF($C92<>"",OFFSET(Participant_Database!$O$3,Participant_Database!$Z93,0),"") ->  | P92: =IF($C92<>"",OFFSET(Participant_Database!$P$3,Participant_Database!$Z93,0),"") ->  | Q92: =IF($C92<>"",OFFSET(Participant_Database!$Q$3,Participant_Database!$Z93,0),"") ->  | R92: =IF($C92<>"",OFFSET(Participant_Database!$R$3,Participant_Database!$Z93,0),"") ->  | S92: =IF($C92<>"",OFFSET(Participant_Database!$S$3,Participant_Database!$Z93,0),"") ->  | T92: =IF($C92<>"",OFFSET(Participant_Database!$T$3,Participant_Database!$Z93,0),"") ->  | U92: =IF($C92<>"",OFFSET(Participant_Database!$U$3,Participant_Database!$Z93,0),"") ->  | V92: =IF($C92<>"",OFFSET(Participant_Database!$V$3,Participant_Database!$Z93,0),"") ->  | W92: =IF($C92<>"",OFFSET(Participant_Database!$W$3,Participant_Database!$Z93,0),"") ->  | X92: =IF(C92<>"",Participant_Database!$Z91,"") -> 
A93: =IF($C93<>"",OFFSET(Participant_Database!$A$3,Participant_Database!$Z94,0),"") ->  | B93: =IF($C93<>"",OFFSET(Participant_Database!$B$3,Participant_Database!$Z94,0),"") ->  | C93: =IF(OFFSET(Participant_Database!$C$3,Participant_Database!$Z94,0)<>"",OFFSET(Participant_Database!$C$3,Participant_Database!$Z94,0),"") ->  | D93: =IF($C93<>"",OFFSET(Participant_Database!$D$3,Participant_Database!$Z94,0),"") ->  | E93: =IF($C93<>"",OFFSET(Participant_Database!$E$3,Participant_Database!$Z94,0),"") ->  | F93: =IF($C93<>"",OFFSET(Participant_Database!$F$3,Participant_Database!$Z94,0),"") ->  | G93: =IF($C93<>"",OFFSET(Participant_Database!$G$3,Participant_Database!$Z94,0),"") ->  | H93: =IF($C93<>"",OFFSET(Participant_Database!$H$3,Participant_Database!$Z94,0),"") ->  | I93: =IF($C93<>"",OFFSET(Participant_Database!$I$3,Participant_Database!$Z94,0),"") ->  | J93: =IF($C93<>"",OFFSET(Participant_Database!$J$3,Participant_Database!$Z94,0),"") ->  | K93: =IF($C93<>"",OFFSET(Participant_Database!$K$3,Participant_Database!$Z94,0),"") ->  | L93: =IF($C93<>"",OFFSET(Participant_Database!$L$3,Participant_Database!$Z94,0),"") ->  | M93: =IF($C93<>"",OFFSET(Participant_Database!$M$3,Participant_Database!$Z94,0),"") ->  | N93: =IF($C93<>"",OFFSET(Participant_Database!$N$3,Participant_Database!$Z94,0),"") ->  | O93: =IF($C93<>"",OFFSET(Participant_Database!$O$3,Participant_Database!$Z94,0),"") ->  | P93: =IF($C93<>"",OFFSET(Participant_Database!$P$3,Participant_Database!$Z94,0),"") ->  | Q93: =IF($C93<>"",OFFSET(Participant_Database!$Q$3,Participant_Database!$Z94,0),"") ->  | R93: =IF($C93<>"",OFFSET(Participant_Database!$R$3,Participant_Database!$Z94,0),"") ->  | S93: =IF($C93<>"",OFFSET(Participant_Database!$S$3,Participant_Database!$Z94,0),"") ->  | T93: =IF($C93<>"",OFFSET(Participant_Database!$T$3,Participant_Database!$Z94,0),"") ->  | U93: =IF($C93<>"",OFFSET(Participant_Database!$U$3,Participant_Database!$Z94,0),"") ->  | V93: =IF($C93<>"",OFFSET(Participant_Database!$V$3,Participant_Database!$Z94,0),"") ->  | W93: =IF($C93<>"",OFFSET(Participant_Database!$W$3,Participant_Database!$Z94,0),"") ->  | X93: =IF(C93<>"",Participant_Database!$Z92,"") -> 
A94: =IF($C94<>"",OFFSET(Participant_Database!$A$3,Participant_Database!$Z95,0),"") ->  | B94: =IF($C94<>"",OFFSET(Participant_Database!$B$3,Participant_Database!$Z95,0),"") ->  | C94: =IF(OFFSET(Participant_Database!$C$3,Participant_Database!$Z95,0)<>"",OFFSET(Participant_Database!$C$3,Participant_Database!$Z95,0),"") ->  | D94: =IF($C94<>"",OFFSET(Participant_Database!$D$3,Participant_Database!$Z95,0),"") ->  | E94: =IF($C94<>"",OFFSET(Participant_Database!$E$3,Participant_Database!$Z95,0),"") ->  | F94: =IF($C94<>"",OFFSET(Participant_Database!$F$3,Participant_Database!$Z95,0),"") ->  | G94: =IF($C94<>"",OFFSET(Participant_Database!$G$3,Participant_Database!$Z95,0),"") ->  | H94: =IF($C94<>"",OFFSET(Participant_Database!$H$3,Participant_Database!$Z95,0),"") ->  | I94: =IF($C94<>"",OFFSET(Participant_Database!$I$3,Participant_Database!$Z95,0),"") ->  | J94: =IF($C94<>"",OFFSET(Participant_Database!$J$3,Participant_Database!$Z95,0),"") ->  | K94: =IF($C94<>"",OFFSET(Participant_Database!$K$3,Participant_Database!$Z95,0),"") ->  | L94: =IF($C94<>"",OFFSET(Participant_Database!$L$3,Participant_Database!$Z95,0),"") ->  | M94: =IF($C94<>"",OFFSET(Participant_Database!$M$3,Participant_Database!$Z95,0),"") ->  | N94: =IF($C94<>"",OFFSET(Participant_Database!$N$3,Participant_Database!$Z95,0),"") ->  | O94: =IF($C94<>"",OFFSET(Participant_Database!$O$3,Participant_Database!$Z95,0),"") ->  | P94: =IF($C94<>"",OFFSET(Participant_Database!$P$3,Participant_Database!$Z95,0),"") ->  | Q94: =IF($C94<>"",OFFSET(Participant_Database!$Q$3,Participant_Database!$Z95,0),"") ->  | R94: =IF($C94<>"",OFFSET(Participant_Database!$R$3,Participant_Database!$Z95,0),"") ->  | S94: =IF($C94<>"",OFFSET(Participant_Database!$S$3,Participant_Database!$Z95,0),"") ->  | T94: =IF($C94<>"",OFFSET(Participant_Database!$T$3,Participant_Database!$Z95,0),"") ->  | U94: =IF($C94<>"",OFFSET(Participant_Database!$U$3,Participant_Database!$Z95,0),"") ->  | V94: =IF($C94<>"",OFFSET(Participant_Database!$V$3,Participant_Database!$Z95,0),"") ->  | W94: =IF($C94<>"",OFFSET(Participant_Database!$W$3,Participant_Database!$Z95,0),"") ->  | X94: =IF(C94<>"",Participant_Database!$Z93,"") -> 
A95: =IF($C95<>"",OFFSET(Participant_Database!$A$3,Participant_Database!$Z96,0),"") ->  | B95: =IF($C95<>"",OFFSET(Participant_Database!$B$3,Participant_Database!$Z96,0),"") ->  | C95: =IF(OFFSET(Participant_Database!$C$3,Participant_Database!$Z96,0)<>"",OFFSET(Participant_Database!$C$3,Participant_Database!$Z96,0),"") ->  | D95: =IF($C95<>"",OFFSET(Participant_Database!$D$3,Participant_Database!$Z96,0),"") ->  | E95: =IF($C95<>"",OFFSET(Participant_Database!$E$3,Participant_Database!$Z96,0),"") ->  | F95: =IF($C95<>"",OFFSET(Participant_Database!$F$3,Participant_Database!$Z96,0),"") ->  | G95: =IF($C95<>"",OFFSET(Participant_Database!$G$3,Participant_Database!$Z96,0),"") ->  | H95: =IF($C95<>"",OFFSET(Participant_Database!$H$3,Participant_Database!$Z96,0),"") ->  | I95: =IF($C95<>"",OFFSET(Participant_Database!$I$3,Participant_Database!$Z96,0),"") ->  | J95: =IF($C95<>"",OFFSET(Participant_Database!$J$3,Participant_Database!$Z96,0),"") ->  | K95: =IF($C95<>"",OFFSET(Participant_Database!$K$3,Participant_Database!$Z96,0),"") ->  | L95: =IF($C95<>"",OFFSET(Participant_Database!$L$3,Participant_Database!$Z96,0),"") ->  | M95: =IF($C95<>"",OFFSET(Participant_Database!$M$3,Participant_Database!$Z96,0),"") ->  | N95: =IF($C95<>"",OFFSET(Participant_Database!$N$3,Participant_Database!$Z96,0),"") ->  | O95: =IF($C95<>"",OFFSET(Participant_Database!$O$3,Participant_Database!$Z96,0),"") ->  | P95: =IF($C95<>"",OFFSET(Participant_Database!$P$3,Participant_Database!$Z96,0),"") ->  | Q95: =IF($C95<>"",OFFSET(Participant_Database!$Q$3,Participant_Database!$Z96,0),"") ->  | R95: =IF($C95<>"",OFFSET(Participant_Database!$R$3,Participant_Database!$Z96,0),"") ->  | S95: =IF($C95<>"",OFFSET(Participant_Database!$S$3,Participant_Database!$Z96,0),"") ->  | T95: =IF($C95<>"",OFFSET(Participant_Database!$T$3,Participant_Database!$Z96,0),"") ->  | U95: =IF($C95<>"",OFFSET(Participant_Database!$U$3,Participant_Database!$Z96,0),"") ->  | V95: =IF($C95<>"",OFFSET(Participant_Database!$V$3,Participant_Database!$Z96,0),"") ->  | W95: =IF($C95<>"",OFFSET(Participant_Database!$W$3,Participant_Database!$Z96,0),"") ->  | X95: =IF(C95<>"",Participant_Database!$Z94,"") -> 
A96: =IF($C96<>"",OFFSET(Participant_Database!$A$3,Participant_Database!$Z97,0),"") ->  | B96: =IF($C96<>"",OFFSET(Participant_Database!$B$3,Participant_Database!$Z97,0),"") ->  | C96: =IF(OFFSET(Participant_Database!$C$3,Participant_Database!$Z97,0)<>"",OFFSET(Participant_Database!$C$3,Participant_Database!$Z97,0),"") ->  | D96: =IF($C96<>"",OFFSET(Participant_Database!$D$3,Participant_Database!$Z97,0),"") ->  | E96: =IF($C96<>"",OFFSET(Participant_Database!$E$3,Participant_Database!$Z97,0),"") ->  | F96: =IF($C96<>"",OFFSET(Participant_Database!$F$3,Participant_Database!$Z97,0),"") ->  | G96: =IF($C96<>"",OFFSET(Participant_Database!$G$3,Participant_Database!$Z97,0),"") ->  | H96: =IF($C96<>"",OFFSET(Participant_Database!$H$3,Participant_Database!$Z97,0),"") ->  | I96: =IF($C96<>"",OFFSET(Participant_Database!$I$3,Participant_Database!$Z97,0),"") ->  | J96: =IF($C96<>"",OFFSET(Participant_Database!$J$3,Participant_Database!$Z97,0),"") ->  | K96: =IF($C96<>"",OFFSET(Participant_Database!$K$3,Participant_Database!$Z97,0),"") ->  | L96: =IF($C96<>"",OFFSET(Participant_Database!$L$3,Participant_Database!$Z97,0),"") ->  | M96: =IF($C96<>"",OFFSET(Participant_Database!$M$3,Participant_Database!$Z97,0),"") ->  | N96: =IF($C96<>"",OFFSET(Participant_Database!$N$3,Participant_Database!$Z97,0),"") ->  | O96: =IF($C96<>"",OFFSET(Participant_Database!$O$3,Participant_Database!$Z97,0),"") ->  | P96: =IF($C96<>"",OFFSET(Participant_Database!$P$3,Participant_Database!$Z97,0),"") ->  | Q96: =IF($C96<>"",OFFSET(Participant_Database!$Q$3,Participant_Database!$Z97,0),"") ->  | R96: =IF($C96<>"",OFFSET(Participant_Database!$R$3,Participant_Database!$Z97,0),"") ->  | S96: =IF($C96<>"",OFFSET(Participant_Database!$S$3,Participant_Database!$Z97,0),"") ->  | T96: =IF($C96<>"",OFFSET(Participant_Database!$T$3,Participant_Database!$Z97,0),"") ->  | U96: =IF($C96<>"",OFFSET(Participant_Database!$U$3,Participant_Database!$Z97,0),"") ->  | V96: =IF($C96<>"",OFFSET(Participant_Database!$V$3,Participant_Database!$Z97,0),"") ->  | W96: =IF($C96<>"",OFFSET(Participant_Database!$W$3,Participant_Database!$Z97,0),"") ->  | X96: =IF(C96<>"",Participant_Database!$Z95,"") -> 
A97: =IF($C97<>"",OFFSET(Participant_Database!$A$3,Participant_Database!$Z98,0),"") ->  | B97: =IF($C97<>"",OFFSET(Participant_Database!$B$3,Participant_Database!$Z98,0),"") ->  | C97: =IF(OFFSET(Participant_Database!$C$3,Participant_Database!$Z98,0)<>"",OFFSET(Participant_Database!$C$3,Participant_Database!$Z98,0),"") ->  | D97: =IF($C97<>"",OFFSET(Participant_Database!$D$3,Participant_Database!$Z98,0),"") ->  | E97: =IF($C97<>"",OFFSET(Participant_Database!$E$3,Participant_Database!$Z98,0),"") ->  | F97: =IF($C97<>"",OFFSET(Participant_Database!$F$3,Participant_Database!$Z98,0),"") ->  | G97: =IF($C97<>"",OFFSET(Participant_Database!$G$3,Participant_Database!$Z98,0),"") ->  | H97: =IF($C97<>"",OFFSET(Participant_Database!$H$3,Participant_Database!$Z98,0),"") ->  | I97: =IF($C97<>"",OFFSET(Participant_Database!$I$3,Participant_Database!$Z98,0),"") ->  | J97: =IF($C97<>"",OFFSET(Participant_Database!$J$3,Participant_Database!$Z98,0),"") ->  | K97: =IF($C97<>"",OFFSET(Participant_Database!$K$3,Participant_Database!$Z98,0),"") ->  | L97: =IF($C97<>"",OFFSET(Participant_Database!$L$3,Participant_Database!$Z98,0),"") ->  | M97: =IF($C97<>"",OFFSET(Participant_Database!$M$3,Participant_Database!$Z98,0),"") ->  | N97: =IF($C97<>"",OFFSET(Participant_Database!$N$3,Participant_Database!$Z98,0),"") ->  | O97: =IF($C97<>"",OFFSET(Participant_Database!$O$3,Participant_Database!$Z98,0),"") ->  | P97: =IF($C97<>"",OFFSET(Participant_Database!$P$3,Participant_Database!$Z98,0),"") ->  | Q97: =IF($C97<>"",OFFSET(Participant_Database!$Q$3,Participant_Database!$Z98,0),"") ->  | R97: =IF($C97<>"",OFFSET(Participant_Database!$R$3,Participant_Database!$Z98,0),"") ->  | S97: =IF($C97<>"",OFFSET(Participant_Database!$S$3,Participant_Database!$Z98,0),"") ->  | T97: =IF($C97<>"",OFFSET(Participant_Database!$T$3,Participant_Database!$Z98,0),"") ->  | U97: =IF($C97<>"",OFFSET(Participant_Database!$U$3,Participant_Database!$Z98,0),"") ->  | V97: =IF($C97<>"",OFFSET(Participant_Database!$V$3,Participant_Database!$Z98,0),"") ->  | W97: =IF($C97<>"",OFFSET(Participant_Database!$W$3,Participant_Database!$Z98,0),"") ->  | X97: =IF(C97<>"",Participant_Database!$Z96,"") -> 
A98: =IF($C98<>"",OFFSET(Participant_Database!$A$3,Participant_Database!$Z99,0),"") ->  | B98: =IF($C98<>"",OFFSET(Participant_Database!$B$3,Participant_Database!$Z99,0),"") ->  | C98: =IF(OFFSET(Participant_Database!$C$3,Participant_Database!$Z99,0)<>"",OFFSET(Participant_Database!$C$3,Participant_Database!$Z99,0),"") ->  | D98: =IF($C98<>"",OFFSET(Participant_Database!$D$3,Participant_Database!$Z99,0),"") ->  | E98: =IF($C98<>"",OFFSET(Participant_Database!$E$3,Participant_Database!$Z99,0),"") ->  | F98: =IF($C98<>"",OFFSET(Participant_Database!$F$3,Participant_Database!$Z99,0),"") ->  | G98: =IF($C98<>"",OFFSET(Participant_Database!$G$3,Participant_Database!$Z99,0),"") ->  | H98: =IF($C98<>"",OFFSET(Participant_Database!$H$3,Participant_Database!$Z99,0),"") ->  | I98: =IF($C98<>"",OFFSET(Participant_Database!$I$3,Participant_Database!$Z99,0),"") ->  | J98: =IF($C98<>"",OFFSET(Participant_Database!$J$3,Participant_Database!$Z99,0),"") ->  | K98: =IF($C98<>"",OFFSET(Participant_Database!$K$3,Participant_Database!$Z99,0),"") ->  | L98: =IF($C98<>"",OFFSET(Participant_Database!$L$3,Participant_Database!$Z99,0),"") ->  | M98: =IF($C98<>"",OFFSET(Participant_Database!$M$3,Participant_Database!$Z99,0),"") ->  | N98: =IF($C98<>"",OFFSET(Participant_Database!$N$3,Participant_Database!$Z99,0),"") ->  | O98: =IF($C98<>"",OFFSET(Participant_Database!$O$3,Participant_Database!$Z99,0),"") ->  | P98: =IF($C98<>"",OFFSET(Participant_Database!$P$3,Participant_Database!$Z99,0),"") ->  | Q98: =IF($C98<>"",OFFSET(Participant_Database!$Q$3,Participant_Database!$Z99,0),"") ->  | R98: =IF($C98<>"",OFFSET(Participant_Database!$R$3,Participant_Database!$Z99,0),"") ->  | S98: =IF($C98<>"",OFFSET(Participant_Database!$S$3,Participant_Database!$Z99,0),"") ->  | T98: =IF($C98<>"",OFFSET(Participant_Database!$T$3,Participant_Database!$Z99,0),"") ->  | U98: =IF($C98<>"",OFFSET(Participant_Database!$U$3,Participant_Database!$Z99,0),"") ->  | V98: =IF($C98<>"",OFFSET(Participant_Database!$V$3,Participant_Database!$Z99,0),"") ->  | W98: =IF($C98<>"",OFFSET(Participant_Database!$W$3,Participant_Database!$Z99,0),"") ->  | X98: =IF(C98<>"",Participant_Database!$Z97,"") -> 
A99: =IF($C99<>"",OFFSET(Participant_Database!$A$3,Participant_Database!$Z100,0),"") ->  | B99: =IF($C99<>"",OFFSET(Participant_Database!$B$3,Participant_Database!$Z100,0),"") ->  | C99: =IF(OFFSET(Participant_Database!$C$3,Participant_Database!$Z100,0)<>"",OFFSET(Participant_Database!$C$3,Participant_Database!$Z100,0),"") ->  | D99: =IF($C99<>"",OFFSET(Participant_Database!$D$3,Participant_Database!$Z100,0),"") ->  | E99: =IF($C99<>"",OFFSET(Participant_Database!$E$3,Participant_Database!$Z100,0),"") ->  | F99: =IF($C99<>"",OFFSET(Participant_Database!$F$3,Participant_Database!$Z100,0),"") ->  | G99: =IF($C99<>"",OFFSET(Participant_Database!$G$3,Participant_Database!$Z100,0),"") ->  | H99: =IF($C99<>"",OFFSET(Participant_Database!$H$3,Participant_Database!$Z100,0),"") ->  | I99: =IF($C99<>"",OFFSET(Participant_Database!$I$3,Participant_Database!$Z100,0),"") ->  | J99: =IF($C99<>"",OFFSET(Participant_Database!$J$3,Participant_Database!$Z100,0),"") ->  | K99: =IF($C99<>"",OFFSET(Participant_Database!$K$3,Participant_Database!$Z100,0),"") ->  | L99: =IF($C99<>"",OFFSET(Participant_Database!$L$3,Participant_Database!$Z100,0),"") ->  | M99: =IF($C99<>"",OFFSET(Participant_Database!$M$3,Participant_Database!$Z100,0),"") ->  | N99: =IF($C99<>"",OFFSET(Participant_Database!$N$3,Participant_Database!$Z100,0),"") ->  | O99: =IF($C99<>"",OFFSET(Participant_Database!$O$3,Participant_Database!$Z100,0),"") ->  | P99: =IF($C99<>"",OFFSET(Participant_Database!$P$3,Participant_Database!$Z100,0),"") ->  | Q99: =IF($C99<>"",OFFSET(Participant_Database!$Q$3,Participant_Database!$Z100,0),"") ->  | R99: =IF($C99<>"",OFFSET(Participant_Database!$R$3,Participant_Database!$Z100,0),"") ->  | S99: =IF($C99<>"",OFFSET(Participant_Database!$S$3,Participant_Database!$Z100,0),"") ->  | T99: =IF($C99<>"",OFFSET(Participant_Database!$T$3,Participant_Database!$Z100,0),"") ->  | U99: =IF($C99<>"",OFFSET(Participant_Database!$U$3,Participant_Database!$Z100,0),"") ->  | V99: =IF($C99<>"",OFFSET(Participant_Database!$V$3,Participant_Database!$Z100,0),"") ->  | W99: =IF($C99<>"",OFFSET(Participant_Database!$W$3,Participant_Database!$Z100,0),"") ->  | X99: =IF(C99<>"",Participant_Database!$Z98,"") -> 
A100: =IF($C100<>"",OFFSET(Participant_Database!$A$3,Participant_Database!$Z101,0),"") ->  | B100: =IF($C100<>"",OFFSET(Participant_Database!$B$3,Participant_Database!$Z101,0),"") ->  | C100: =IF(OFFSET(Participant_Database!$C$3,Participant_Database!$Z101,0)<>"",OFFSET(Participant_Database!$C$3,Participant_Database!$Z101,0),"") ->  | D100: =IF($C100<>"",OFFSET(Participant_Database!$D$3,Participant_Database!$Z101,0),"") ->  | E100: =IF($C100<>"",OFFSET(Participant_Database!$E$3,Participant_Database!$Z101,0),"") ->  | F100: =IF($C100<>"",OFFSET(Participant_Database!$F$3,Participant_Database!$Z101,0),"") ->  | G100: =IF($C100<>"",OFFSET(Participant_Database!$G$3,Participant_Database!$Z101,0),"") ->  | H100: =IF($C100<>"",OFFSET(Participant_Database!$H$3,Participant_Database!$Z101,0),"") ->  | I100: =IF($C100<>"",OFFSET(Participant_Database!$I$3,Participant_Database!$Z101,0),"") ->  | J100: =IF($C100<>"",OFFSET(Participant_Database!$J$3,Participant_Database!$Z101,0),"") ->  | K100: =IF($C100<>"",OFFSET(Participant_Database!$K$3,Participant_Database!$Z101,0),"") ->  | L100: =IF($C100<>"",OFFSET(Participant_Database!$L$3,Participant_Database!$Z101,0),"") ->  | M100: =IF($C100<>"",OFFSET(Participant_Database!$M$3,Participant_Database!$Z101,0),"") ->  | N100: =IF($C100<>"",OFFSET(Participant_Database!$N$3,Participant_Database!$Z101,0),"") ->  | O100: =IF($C100<>"",OFFSET(Participant_Database!$O$3,Participant_Database!$Z101,0),"") ->  | P100: =IF($C100<>"",OFFSET(Participant_Database!$P$3,Participant_Database!$Z101,0),"") ->  | Q100: =IF($C100<>"",OFFSET(Participant_Database!$Q$3,Participant_Database!$Z101,0),"") ->  | R100: =IF($C100<>"",OFFSET(Participant_Database!$R$3,Participant_Database!$Z101,0),"") ->  | S100: =IF($C100<>"",OFFSET(Participant_Database!$S$3,Participant_Database!$Z101,0),"") ->  | T100: =IF($C100<>"",OFFSET(Participant_Database!$T$3,Participant_Database!$Z101,0),"") ->  | U100: =IF($C100<>"",OFFSET(Participant_Database!$U$3,Participant_Database!$Z101,0),"") ->  | V100: =IF($C100<>"",OFFSET(Participant_Database!$V$3,Participant_Database!$Z101,0),"") ->  | W100: =IF($C100<>"",OFFSET(Participant_Database!$W$3,Participant_Database!$Z101,0),"") ->  | X100: =IF(C100<>"",Participant_Database!$Z99,"") -> 
A101: =IF($C101<>"",OFFSET(Participant_Database!$A$3,Participant_Database!$Z102,0),"") ->  | B101: =IF($C101<>"",OFFSET(Participant_Database!$B$3,Participant_Database!$Z102,0),"") ->  | C101: =IF(OFFSET(Participant_Database!$C$3,Participant_Database!$Z102,0)<>"",OFFSET(Participant_Database!$C$3,Participant_Database!$Z102,0),"") ->  | D101: =IF($C101<>"",OFFSET(Participant_Database!$D$3,Participant_Database!$Z102,0),"") ->  | E101: =IF($C101<>"",OFFSET(Participant_Database!$E$3,Participant_Database!$Z102,0),"") ->  | F101: =IF($C101<>"",OFFSET(Participant_Database!$F$3,Participant_Database!$Z102,0),"") ->  | G101: =IF($C101<>"",OFFSET(Participant_Database!$G$3,Participant_Database!$Z102,0),"") ->  | H101: =IF($C101<>"",OFFSET(Participant_Database!$H$3,Participant_Database!$Z102,0),"") ->  | I101: =IF($C101<>"",OFFSET(Participant_Database!$I$3,Participant_Database!$Z102,0),"") ->  | J101: =IF($C101<>"",OFFSET(Participant_Database!$J$3,Participant_Database!$Z102,0),"") ->  | K101: =IF($C101<>"",OFFSET(Participant_Database!$K$3,Participant_Database!$Z102,0),"") ->  | L101: =IF($C101<>"",OFFSET(Participant_Database!$L$3,Participant_Database!$Z102,0),"") ->  | M101: =IF($C101<>"",OFFSET(Participant_Database!$M$3,Participant_Database!$Z102,0),"") ->  | N101: =IF($C101<>"",OFFSET(Participant_Database!$N$3,Participant_Database!$Z102,0),"") ->  | O101: =IF($C101<>"",OFFSET(Participant_Database!$O$3,Participant_Database!$Z102,0),"") ->  | P101: =IF($C101<>"",OFFSET(Participant_Database!$P$3,Participant_Database!$Z102,0),"") ->  | Q101: =IF($C101<>"",OFFSET(Participant_Database!$Q$3,Participant_Database!$Z102,0),"") ->  | R101: =IF($C101<>"",OFFSET(Participant_Database!$R$3,Participant_Database!$Z102,0),"") ->  | S101: =IF($C101<>"",OFFSET(Participant_Database!$S$3,Participant_Database!$Z102,0),"") ->  | T101: =IF($C101<>"",OFFSET(Participant_Database!$T$3,Participant_Database!$Z102,0),"") ->  | U101: =IF($C101<>"",OFFSET(Participant_Database!$U$3,Participant_Database!$Z102,0),"") ->  | V101: =IF($C101<>"",OFFSET(Participant_Database!$V$3,Participant_Database!$Z102,0),"") ->  | W101: =IF($C101<>"",OFFSET(Participant_Database!$W$3,Participant_Database!$Z102,0),"") ->  | X101: =IF(C101<>"",Participant_Database!$Z100,"") -> 
A102: =IF($C102<>"",OFFSET(Participant_Database!$A$3,Participant_Database!$Z103,0),"") ->  | B102: =IF($C102<>"",OFFSET(Participant_Database!$B$3,Participant_Database!$Z103,0),"") ->  | C102: =IF(OFFSET(Participant_Database!$C$3,Participant_Database!$Z103,0)<>"",OFFSET(Participant_Database!$C$3,Participant_Database!$Z103,0),"") ->  | D102: =IF($C102<>"",OFFSET(Participant_Database!$D$3,Participant_Database!$Z103,0),"") ->  | E102: =IF($C102<>"",OFFSET(Participant_Database!$E$3,Participant_Database!$Z103,0),"") ->  | F102: =IF($C102<>"",OFFSET(Participant_Database!$F$3,Participant_Database!$Z103,0),"") ->  | G102: =IF($C102<>"",OFFSET(Participant_Database!$G$3,Participant_Database!$Z103,0),"") ->  | H102: =IF($C102<>"",OFFSET(Participant_Database!$H$3,Participant_Database!$Z103,0),"") ->  | I102: =IF($C102<>"",OFFSET(Participant_Database!$I$3,Participant_Database!$Z103,0),"") ->  | J102: =IF($C102<>"",OFFSET(Participant_Database!$J$3,Participant_Database!$Z103,0),"") ->  | K102: =IF($C102<>"",OFFSET(Participant_Database!$K$3,Participant_Database!$Z103,0),"") ->  | L102: =IF($C102<>"",OFFSET(Participant_Database!$L$3,Participant_Database!$Z103,0),"") ->  | M102: =IF($C102<>"",OFFSET(Participant_Database!$M$3,Participant_Database!$Z103,0),"") ->  | N102: =IF($C102<>"",OFFSET(Participant_Database!$N$3,Participant_Database!$Z103,0),"") ->  | O102: =IF($C102<>"",OFFSET(Participant_Database!$O$3,Participant_Database!$Z103,0),"") ->  | P102: =IF($C102<>"",OFFSET(Participant_Database!$P$3,Participant_Database!$Z103,0),"") ->  | Q102: =IF($C102<>"",OFFSET(Participant_Database!$Q$3,Participant_Database!$Z103,0),"") ->  | R102: =IF($C102<>"",OFFSET(Participant_Database!$R$3,Participant_Database!$Z103,0),"") ->  | S102: =IF($C102<>"",OFFSET(Participant_Database!$S$3,Participant_Database!$Z103,0),"") ->  | T102: =IF($C102<>"",OFFSET(Participant_Database!$T$3,Participant_Database!$Z103,0),"") ->  | U102: =IF($C102<>"",OFFSET(Participant_Database!$U$3,Participant_Database!$Z103,0),"") ->  | V102: =IF($C102<>"",OFFSET(Participant_Database!$V$3,Participant_Database!$Z103,0),"") ->  | W102: =IF($C102<>"",OFFSET(Participant_Database!$W$3,Participant_Database!$Z103,0),"") ->  | X102: =IF(C102<>"",Participant_Database!$Z101,"") -> 
A103: =IF($C103<>"",OFFSET(Participant_Database!$A$3,Participant_Database!$Z104,0),"") ->  | B103: =IF($C103<>"",OFFSET(Participant_Database!$B$3,Participant_Database!$Z104,0),"") ->  | C103: =IF(OFFSET(Participant_Database!$C$3,Participant_Database!$Z104,0)<>"",OFFSET(Participant_Database!$C$3,Participant_Database!$Z104,0),"") ->  | D103: =IF($C103<>"",OFFSET(Participant_Database!$D$3,Participant_Database!$Z104,0),"") ->  | E103: =IF($C103<>"",OFFSET(Participant_Database!$E$3,Participant_Database!$Z104,0),"") ->  | F103: =IF($C103<>"",OFFSET(Participant_Database!$F$3,Participant_Database!$Z104,0),"") ->  | G103: =IF($C103<>"",OFFSET(Participant_Database!$G$3,Participant_Database!$Z104,0),"") ->  | H103: =IF($C103<>"",OFFSET(Participant_Database!$H$3,Participant_Database!$Z104,0),"") ->  | I103: =IF($C103<>"",OFFSET(Participant_Database!$I$3,Participant_Database!$Z104,0),"") ->  | J103: =IF($C103<>"",OFFSET(Participant_Database!$J$3,Participant_Database!$Z104,0),"") ->  | K103: =IF($C103<>"",OFFSET(Participant_Database!$K$3,Participant_Database!$Z104,0),"") ->  | L103: =IF($C103<>"",OFFSET(Participant_Database!$L$3,Participant_Database!$Z104,0),"") ->  | M103: =IF($C103<>"",OFFSET(Participant_Database!$M$3,Participant_Database!$Z104,0),"") ->  | N103: =IF($C103<>"",OFFSET(Participant_Database!$N$3,Participant_Database!$Z104,0),"") ->  | O103: =IF($C103<>"",OFFSET(Participant_Database!$O$3,Participant_Database!$Z104,0),"") ->  | P103: =IF($C103<>"",OFFSET(Participant_Database!$P$3,Participant_Database!$Z104,0),"") ->  | Q103: =IF($C103<>"",OFFSET(Participant_Database!$Q$3,Participant_Database!$Z104,0),"") ->  | R103: =IF($C103<>"",OFFSET(Participant_Database!$R$3,Participant_Database!$Z104,0),"") ->  | S103: =IF($C103<>"",OFFSET(Participant_Database!$S$3,Participant_Database!$Z104,0),"") ->  | T103: =IF($C103<>"",OFFSET(Participant_Database!$T$3,Participant_Database!$Z104,0),"") ->  | U103: =IF($C103<>"",OFFSET(Participant_Database!$U$3,Participant_Database!$Z104,0),"") ->  | V103: =IF($C103<>"",OFFSET(Participant_Database!$V$3,Participant_Database!$Z104,0),"") ->  | W103: =IF($C103<>"",OFFSET(Participant_Database!$W$3,Participant_Database!$Z104,0),"") ->  | X103: =IF(C103<>"",Participant_Database!$Z102,"") -> 
A104: =IF($C104<>"",OFFSET(Participant_Database!$A$3,Participant_Database!$Z105,0),"") ->  | B104: =IF($C104<>"",OFFSET(Participant_Database!$B$3,Participant_Database!$Z105,0),"") ->  | C104: =IF(OFFSET(Participant_Database!$C$3,Participant_Database!$Z105,0)<>"",OFFSET(Participant_Database!$C$3,Participant_Database!$Z105,0),"") ->  | D104: =IF($C104<>"",OFFSET(Participant_Database!$D$3,Participant_Database!$Z105,0),"") ->  | E104: =IF($C104<>"",OFFSET(Participant_Database!$E$3,Participant_Database!$Z105,0),"") ->  | F104: =IF($C104<>"",OFFSET(Participant_Database!$F$3,Participant_Database!$Z105,0),"") ->  | G104: =IF($C104<>"",OFFSET(Participant_Database!$G$3,Participant_Database!$Z105,0),"") ->  | H104: =IF($C104<>"",OFFSET(Participant_Database!$H$3,Participant_Database!$Z105,0),"") ->  | I104: =IF($C104<>"",OFFSET(Participant_Database!$I$3,Participant_Database!$Z105,0),"") ->  | J104: =IF($C104<>"",OFFSET(Participant_Database!$J$3,Participant_Database!$Z105,0),"") ->  | K104: =IF($C104<>"",OFFSET(Participant_Database!$K$3,Participant_Database!$Z105,0),"") ->  | L104: =IF($C104<>"",OFFSET(Participant_Database!$L$3,Participant_Database!$Z105,0),"") ->  | M104: =IF($C104<>"",OFFSET(Participant_Database!$M$3,Participant_Database!$Z105,0),"") ->  | N104: =IF($C104<>"",OFFSET(Participant_Database!$N$3,Participant_Database!$Z105,0),"") ->  | O104: =IF($C104<>"",OFFSET(Participant_Database!$O$3,Participant_Database!$Z105,0),"") ->  | P104: =IF($C104<>"",OFFSET(Participant_Database!$P$3,Participant_Database!$Z105,0),"") ->  | Q104: =IF($C104<>"",OFFSET(Participant_Database!$Q$3,Participant_Database!$Z105,0),"") ->  | R104: =IF($C104<>"",OFFSET(Participant_Database!$R$3,Participant_Database!$Z105,0),"") ->  | S104: =IF($C104<>"",OFFSET(Participant_Database!$S$3,Participant_Database!$Z105,0),"") ->  | T104: =IF($C104<>"",OFFSET(Participant_Database!$T$3,Participant_Database!$Z105,0),"") ->  | U104: =IF($C104<>"",OFFSET(Participant_Database!$U$3,Participant_Database!$Z105,0),"") ->  | V104: =IF($C104<>"",OFFSET(Participant_Database!$V$3,Participant_Database!$Z105,0),"") ->  | W104: =IF($C104<>"",OFFSET(Participant_Database!$W$3,Participant_Database!$Z105,0),"") ->  | X104: =IF(C104<>"",Participant_Database!$Z103,"") -> 
A105: =IF($C105<>"",OFFSET(Participant_Database!$A$3,Participant_Database!$Z106,0),"") ->  | B105: =IF($C105<>"",OFFSET(Participant_Database!$B$3,Participant_Database!$Z106,0),"") ->  | C105: =IF(OFFSET(Participant_Database!$C$3,Participant_Database!$Z106,0)<>"",OFFSET(Participant_Database!$C$3,Participant_Database!$Z106,0),"") ->  | D105: =IF($C105<>"",OFFSET(Participant_Database!$D$3,Participant_Database!$Z106,0),"") ->  | E105: =IF($C105<>"",OFFSET(Participant_Database!$E$3,Participant_Database!$Z106,0),"") ->  | F105: =IF($C105<>"",OFFSET(Participant_Database!$F$3,Participant_Database!$Z106,0),"") ->  | G105: =IF($C105<>"",OFFSET(Participant_Database!$G$3,Participant_Database!$Z106,0),"") ->  | H105: =IF($C105<>"",OFFSET(Participant_Database!$H$3,Participant_Database!$Z106,0),"") ->  | I105: =IF($C105<>"",OFFSET(Participant_Database!$I$3,Participant_Database!$Z106,0),"") ->  | J105: =IF($C105<>"",OFFSET(Participant_Database!$J$3,Participant_Database!$Z106,0),"") ->  | K105: =IF($C105<>"",OFFSET(Participant_Database!$K$3,Participant_Database!$Z106,0),"") ->  | L105: =IF($C105<>"",OFFSET(Participant_Database!$L$3,Participant_Database!$Z106,0),"") ->  | M105: =IF($C105<>"",OFFSET(Participant_Database!$M$3,Participant_Database!$Z106,0),"") ->  | N105: =IF($C105<>"",OFFSET(Participant_Database!$N$3,Participant_Database!$Z106,0),"") ->  | O105: =IF($C105<>"",OFFSET(Participant_Database!$O$3,Participant_Database!$Z106,0),"") ->  | P105: =IF($C105<>"",OFFSET(Participant_Database!$P$3,Participant_Database!$Z106,0),"") ->  | Q105: =IF($C105<>"",OFFSET(Participant_Database!$Q$3,Participant_Database!$Z106,0),"") ->  | R105: =IF($C105<>"",OFFSET(Participant_Database!$R$3,Participant_Database!$Z106,0),"") ->  | S105: =IF($C105<>"",OFFSET(Participant_Database!$S$3,Participant_Database!$Z106,0),"") ->  | T105: =IF($C105<>"",OFFSET(Participant_Database!$T$3,Participant_Database!$Z106,0),"") ->  | U105: =IF($C105<>"",OFFSET(Participant_Database!$U$3,Participant_Database!$Z106,0),"") ->  | V105: =IF($C105<>"",OFFSET(Participant_Database!$V$3,Participant_Database!$Z106,0),"") ->  | W105: =IF($C105<>"",OFFSET(Participant_Database!$W$3,Participant_Database!$Z106,0),"") ->  | X105: =IF(C105<>"",Participant_Database!$Z104,"") -> 
A106: =IF($C106<>"",OFFSET(Participant_Database!$A$3,Participant_Database!$Z107,0),"") ->  | B106: =IF($C106<>"",OFFSET(Participant_Database!$B$3,Participant_Database!$Z107,0),"") ->  | C106: =IF(OFFSET(Participant_Database!$C$3,Participant_Database!$Z107,0)<>"",OFFSET(Participant_Database!$C$3,Participant_Database!$Z107,0),"") ->  | D106: =IF($C106<>"",OFFSET(Participant_Database!$D$3,Participant_Database!$Z107,0),"") ->  | E106: =IF($C106<>"",OFFSET(Participant_Database!$E$3,Participant_Database!$Z107,0),"") ->  | F106: =IF($C106<>"",OFFSET(Participant_Database!$F$3,Participant_Database!$Z107,0),"") ->  | G106: =IF($C106<>"",OFFSET(Participant_Database!$G$3,Participant_Database!$Z107,0),"") ->  | H106: =IF($C106<>"",OFFSET(Participant_Database!$H$3,Participant_Database!$Z107,0),"") ->  | I106: =IF($C106<>"",OFFSET(Participant_Database!$I$3,Participant_Database!$Z107,0),"") ->  | J106: =IF($C106<>"",OFFSET(Participant_Database!$J$3,Participant_Database!$Z107,0),"") ->  | K106: =IF($C106<>"",OFFSET(Participant_Database!$K$3,Participant_Database!$Z107,0),"") ->  | L106: =IF($C106<>"",OFFSET(Participant_Database!$L$3,Participant_Database!$Z107,0),"") ->  | M106: =IF($C106<>"",OFFSET(Participant_Database!$M$3,Participant_Database!$Z107,0),"") ->  | N106: =IF($C106<>"",OFFSET(Participant_Database!$N$3,Participant_Database!$Z107,0),"") ->  | O106: =IF($C106<>"",OFFSET(Participant_Database!$O$3,Participant_Database!$Z107,0),"") ->  | P106: =IF($C106<>"",OFFSET(Participant_Database!$P$3,Participant_Database!$Z107,0),"") ->  | Q106: =IF($C106<>"",OFFSET(Participant_Database!$Q$3,Participant_Database!$Z107,0),"") ->  | R106: =IF($C106<>"",OFFSET(Participant_Database!$R$3,Participant_Database!$Z107,0),"") ->  | S106: =IF($C106<>"",OFFSET(Participant_Database!$S$3,Participant_Database!$Z107,0),"") ->  | T106: =IF($C106<>"",OFFSET(Participant_Database!$T$3,Participant_Database!$Z107,0),"") ->  | U106: =IF($C106<>"",OFFSET(Participant_Database!$U$3,Participant_Database!$Z107,0),"") ->  | V106: =IF($C106<>"",OFFSET(Participant_Database!$V$3,Participant_Database!$Z107,0),"") ->  | W106: =IF($C106<>"",OFFSET(Participant_Database!$W$3,Participant_Database!$Z107,0),"") ->  | X106: =IF(C106<>"",Participant_Database!$Z105,"") -> 
A107: =IF($C107<>"",OFFSET(Participant_Database!$A$3,Participant_Database!$Z108,0),"") ->  | B107: =IF($C107<>"",OFFSET(Participant_Database!$B$3,Participant_Database!$Z108,0),"") ->  | C107: =IF(OFFSET(Participant_Database!$C$3,Participant_Database!$Z108,0)<>"",OFFSET(Participant_Database!$C$3,Participant_Database!$Z108,0),"") ->  | D107: =IF($C107<>"",OFFSET(Participant_Database!$D$3,Participant_Database!$Z108,0),"") ->  | E107: =IF($C107<>"",OFFSET(Participant_Database!$E$3,Participant_Database!$Z108,0),"") ->  | F107: =IF($C107<>"",OFFSET(Participant_Database!$F$3,Participant_Database!$Z108,0),"") ->  | G107: =IF($C107<>"",OFFSET(Participant_Database!$G$3,Participant_Database!$Z108,0),"") ->  | H107: =IF($C107<>"",OFFSET(Participant_Database!$H$3,Participant_Database!$Z108,0),"") ->  | I107: =IF($C107<>"",OFFSET(Participant_Database!$I$3,Participant_Database!$Z108,0),"") ->  | J107: =IF($C107<>"",OFFSET(Participant_Database!$J$3,Participant_Database!$Z108,0),"") ->  | K107: =IF($C107<>"",OFFSET(Participant_Database!$K$3,Participant_Database!$Z108,0),"") ->  | L107: =IF($C107<>"",OFFSET(Participant_Database!$L$3,Participant_Database!$Z108,0),"") ->  | M107: =IF($C107<>"",OFFSET(Participant_Database!$M$3,Participant_Database!$Z108,0),"") ->  | N107: =IF($C107<>"",OFFSET(Participant_Database!$N$3,Participant_Database!$Z108,0),"") ->  | O107: =IF($C107<>"",OFFSET(Participant_Database!$O$3,Participant_Database!$Z108,0),"") ->  | P107: =IF($C107<>"",OFFSET(Participant_Database!$P$3,Participant_Database!$Z108,0),"") ->  | Q107: =IF($C107<>"",OFFSET(Participant_Database!$Q$3,Participant_Database!$Z108,0),"") ->  | R107: =IF($C107<>"",OFFSET(Participant_Database!$R$3,Participant_Database!$Z108,0),"") ->  | S107: =IF($C107<>"",OFFSET(Participant_Database!$S$3,Participant_Database!$Z108,0),"") ->  | T107: =IF($C107<>"",OFFSET(Participant_Database!$T$3,Participant_Database!$Z108,0),"") ->  | U107: =IF($C107<>"",OFFSET(Participant_Database!$U$3,Participant_Database!$Z108,0),"") ->  | V107: =IF($C107<>"",OFFSET(Participant_Database!$V$3,Participant_Database!$Z108,0),"") ->  | W107: =IF($C107<>"",OFFSET(Participant_Database!$W$3,Participant_Database!$Z108,0),"") ->  | X107: =IF(C107<>"",Participant_Database!$Z106,"") -> 
A108: =IF($C108<>"",OFFSET(Participant_Database!$A$3,Participant_Database!$Z109,0),"") ->  | B108: =IF($C108<>"",OFFSET(Participant_Database!$B$3,Participant_Database!$Z109,0),"") ->  | C108: =IF(OFFSET(Participant_Database!$C$3,Participant_Database!$Z109,0)<>"",OFFSET(Participant_Database!$C$3,Participant_Database!$Z109,0),"") ->  | D108: =IF($C108<>"",OFFSET(Participant_Database!$D$3,Participant_Database!$Z109,0),"") ->  | E108: =IF($C108<>"",OFFSET(Participant_Database!$E$3,Participant_Database!$Z109,0),"") ->  | F108: =IF($C108<>"",OFFSET(Participant_Database!$F$3,Participant_Database!$Z109,0),"") ->  | G108: =IF($C108<>"",OFFSET(Participant_Database!$G$3,Participant_Database!$Z109,0),"") ->  | H108: =IF($C108<>"",OFFSET(Participant_Database!$H$3,Participant_Database!$Z109,0),"") ->  | I108: =IF($C108<>"",OFFSET(Participant_Database!$I$3,Participant_Database!$Z109,0),"") ->  | J108: =IF($C108<>"",OFFSET(Participant_Database!$J$3,Participant_Database!$Z109,0),"") ->  | K108: =IF($C108<>"",OFFSET(Participant_Database!$K$3,Participant_Database!$Z109,0),"") ->  | L108: =IF($C108<>"",OFFSET(Participant_Database!$L$3,Participant_Database!$Z109,0),"") ->  | M108: =IF($C108<>"",OFFSET(Participant_Database!$M$3,Participant_Database!$Z109,0),"") ->  | N108: =IF($C108<>"",OFFSET(Participant_Database!$N$3,Participant_Database!$Z109,0),"") ->  | O108: =IF($C108<>"",OFFSET(Participant_Database!$O$3,Participant_Database!$Z109,0),"") ->  | P108: =IF($C108<>"",OFFSET(Participant_Database!$P$3,Participant_Database!$Z109,0),"") ->  | Q108: =IF($C108<>"",OFFSET(Participant_Database!$Q$3,Participant_Database!$Z109,0),"") ->  | R108: =IF($C108<>"",OFFSET(Participant_Database!$R$3,Participant_Database!$Z109,0),"") ->  | S108: =IF($C108<>"",OFFSET(Participant_Database!$S$3,Participant_Database!$Z109,0),"") ->  | T108: =IF($C108<>"",OFFSET(Participant_Database!$T$3,Participant_Database!$Z109,0),"") ->  | U108: =IF($C108<>"",OFFSET(Participant_Database!$U$3,Participant_Database!$Z109,0),"") ->  | V108: =IF($C108<>"",OFFSET(Participant_Database!$V$3,Participant_Database!$Z109,0),"") ->  | W108: =IF($C108<>"",OFFSET(Participant_Database!$W$3,Participant_Database!$Z109,0),"") ->  | X108: =IF(C108<>"",Participant_Database!$Z107,"") -> 
A109: =IF($C109<>"",OFFSET(Participant_Database!$A$3,Participant_Database!$Z110,0),"") ->  | B109: =IF($C109<>"",OFFSET(Participant_Database!$B$3,Participant_Database!$Z110,0),"") ->  | C109: =IF(OFFSET(Participant_Database!$C$3,Participant_Database!$Z110,0)<>"",OFFSET(Participant_Database!$C$3,Participant_Database!$Z110,0),"") ->  | D109: =IF($C109<>"",OFFSET(Participant_Database!$D$3,Participant_Database!$Z110,0),"") ->  | E109: =IF($C109<>"",OFFSET(Participant_Database!$E$3,Participant_Database!$Z110,0),"") ->  | F109: =IF($C109<>"",OFFSET(Participant_Database!$F$3,Participant_Database!$Z110,0),"") ->  | G109: =IF($C109<>"",OFFSET(Participant_Database!$G$3,Participant_Database!$Z110,0),"") ->  | H109: =IF($C109<>"",OFFSET(Participant_Database!$H$3,Participant_Database!$Z110,0),"") ->  | I109: =IF($C109<>"",OFFSET(Participant_Database!$I$3,Participant_Database!$Z110,0),"") ->  | J109: =IF($C109<>"",OFFSET(Participant_Database!$J$3,Participant_Database!$Z110,0),"") ->  | K109: =IF($C109<>"",OFFSET(Participant_Database!$K$3,Participant_Database!$Z110,0),"") ->  | L109: =IF($C109<>"",OFFSET(Participant_Database!$L$3,Participant_Database!$Z110,0),"") ->  | M109: =IF($C109<>"",OFFSET(Participant_Database!$M$3,Participant_Database!$Z110,0),"") ->  | N109: =IF($C109<>"",OFFSET(Participant_Database!$N$3,Participant_Database!$Z110,0),"") ->  | O109: =IF($C109<>"",OFFSET(Participant_Database!$O$3,Participant_Database!$Z110,0),"") ->  | P109: =IF($C109<>"",OFFSET(Participant_Database!$P$3,Participant_Database!$Z110,0),"") ->  | Q109: =IF($C109<>"",OFFSET(Participant_Database!$Q$3,Participant_Database!$Z110,0),"") ->  | R109: =IF($C109<>"",OFFSET(Participant_Database!$R$3,Participant_Database!$Z110,0),"") ->  | S109: =IF($C109<>"",OFFSET(Participant_Database!$S$3,Participant_Database!$Z110,0),"") ->  | T109: =IF($C109<>"",OFFSET(Participant_Database!$T$3,Participant_Database!$Z110,0),"") ->  | U109: =IF($C109<>"",OFFSET(Participant_Database!$U$3,Participant_Database!$Z110,0),"") ->  | V109: =IF($C109<>"",OFFSET(Participant_Database!$V$3,Participant_Database!$Z110,0),"") ->  | W109: =IF($C109<>"",OFFSET(Participant_Database!$W$3,Participant_Database!$Z110,0),"") ->  | X109: =IF(C109<>"",Participant_Database!$Z108,"") -> 
A110: =IF($C110<>"",OFFSET(Participant_Database!$A$3,Participant_Database!$Z111,0),"") ->  | B110: =IF($C110<>"",OFFSET(Participant_Database!$B$3,Participant_Database!$Z111,0),"") ->  | C110: =IF(OFFSET(Participant_Database!$C$3,Participant_Database!$Z111,0)<>"",OFFSET(Participant_Database!$C$3,Participant_Database!$Z111,0),"") ->  | D110: =IF($C110<>"",OFFSET(Participant_Database!$D$3,Participant_Database!$Z111,0),"") ->  | E110: =IF($C110<>"",OFFSET(Participant_Database!$E$3,Participant_Database!$Z111,0),"") ->  | F110: =IF($C110<>"",OFFSET(Participant_Database!$F$3,Participant_Database!$Z111,0),"") ->  | G110: =IF($C110<>"",OFFSET(Participant_Database!$G$3,Participant_Database!$Z111,0),"") ->  | H110: =IF($C110<>"",OFFSET(Participant_Database!$H$3,Participant_Database!$Z111,0),"") ->  | I110: =IF($C110<>"",OFFSET(Participant_Database!$I$3,Participant_Database!$Z111,0),"") ->  | J110: =IF($C110<>"",OFFSET(Participant_Database!$J$3,Participant_Database!$Z111,0),"") ->  | K110: =IF($C110<>"",OFFSET(Participant_Database!$K$3,Participant_Database!$Z111,0),"") ->  | L110: =IF($C110<>"",OFFSET(Participant_Database!$L$3,Participant_Database!$Z111,0),"") ->  | M110: =IF($C110<>"",OFFSET(Participant_Database!$M$3,Participant_Database!$Z111,0),"") ->  | N110: =IF($C110<>"",OFFSET(Participant_Database!$N$3,Participant_Database!$Z111,0),"") ->  | O110: =IF($C110<>"",OFFSET(Participant_Database!$O$3,Participant_Database!$Z111,0),"") ->  | P110: =IF($C110<>"",OFFSET(Participant_Database!$P$3,Participant_Database!$Z111,0),"") ->  | Q110: =IF($C110<>"",OFFSET(Participant_Database!$Q$3,Participant_Database!$Z111,0),"") ->  | R110: =IF($C110<>"",OFFSET(Participant_Database!$R$3,Participant_Database!$Z111,0),"") ->  | S110: =IF($C110<>"",OFFSET(Participant_Database!$S$3,Participant_Database!$Z111,0),"") ->  | T110: =IF($C110<>"",OFFSET(Participant_Database!$T$3,Participant_Database!$Z111,0),"") ->  | U110: =IF($C110<>"",OFFSET(Participant_Database!$U$3,Participant_Database!$Z111,0),"") ->  | V110: =IF($C110<>"",OFFSET(Participant_Database!$V$3,Participant_Database!$Z111,0),"") ->  | W110: =IF($C110<>"",OFFSET(Participant_Database!$W$3,Participant_Database!$Z111,0),"") ->  | X110: =IF(C110<>"",Participant_Database!$Z109,"") -> 
A111: =IF($C111<>"",OFFSET(Participant_Database!$A$3,Participant_Database!$Z112,0),"") ->  | B111: =IF($C111<>"",OFFSET(Participant_Database!$B$3,Participant_Database!$Z112,0),"") ->  | C111: =IF(OFFSET(Participant_Database!$C$3,Participant_Database!$Z112,0)<>"",OFFSET(Participant_Database!$C$3,Participant_Database!$Z112,0),"") ->  | D111: =IF($C111<>"",OFFSET(Participant_Database!$D$3,Participant_Database!$Z112,0),"") ->  | E111: =IF($C111<>"",OFFSET(Participant_Database!$E$3,Participant_Database!$Z112,0),"") ->  | F111: =IF($C111<>"",OFFSET(Participant_Database!$F$3,Participant_Database!$Z112,0),"") ->  | G111: =IF($C111<>"",OFFSET(Participant_Database!$G$3,Participant_Database!$Z112,0),"") ->  | H111: =IF($C111<>"",OFFSET(Participant_Database!$H$3,Participant_Database!$Z112,0),"") ->  | I111: =IF($C111<>"",OFFSET(Participant_Database!$I$3,Participant_Database!$Z112,0),"") ->  | J111: =IF($C111<>"",OFFSET(Participant_Database!$J$3,Participant_Database!$Z112,0),"") ->  | K111: =IF($C111<>"",OFFSET(Participant_Database!$K$3,Participant_Database!$Z112,0),"") ->  | L111: =IF($C111<>"",OFFSET(Participant_Database!$L$3,Participant_Database!$Z112,0),"") ->  | M111: =IF($C111<>"",OFFSET(Participant_Database!$M$3,Participant_Database!$Z112,0),"") ->  | N111: =IF($C111<>"",OFFSET(Participant_Database!$N$3,Participant_Database!$Z112,0),"") ->  | O111: =IF($C111<>"",OFFSET(Participant_Database!$O$3,Participant_Database!$Z112,0),"") ->  | P111: =IF($C111<>"",OFFSET(Participant_Database!$P$3,Participant_Database!$Z112,0),"") ->  | Q111: =IF($C111<>"",OFFSET(Participant_Database!$Q$3,Participant_Database!$Z112,0),"") ->  | R111: =IF($C111<>"",OFFSET(Participant_Database!$R$3,Participant_Database!$Z112,0),"") ->  | S111: =IF($C111<>"",OFFSET(Participant_Database!$S$3,Participant_Database!$Z112,0),"") ->  | T111: =IF($C111<>"",OFFSET(Participant_Database!$T$3,Participant_Database!$Z112,0),"") ->  | U111: =IF($C111<>"",OFFSET(Participant_Database!$U$3,Participant_Database!$Z112,0),"") ->  | V111: =IF($C111<>"",OFFSET(Participant_Database!$V$3,Participant_Database!$Z112,0),"") ->  | W111: =IF($C111<>"",OFFSET(Participant_Database!$W$3,Participant_Database!$Z112,0),"") ->  | X111: =IF(C111<>"",Participant_Database!$Z110,"") -> 
A112: =IF($C112<>"",OFFSET(Participant_Database!$A$3,Participant_Database!$Z113,0),"") ->  | B112: =IF($C112<>"",OFFSET(Participant_Database!$B$3,Participant_Database!$Z113,0),"") ->  | C112: =IF(OFFSET(Participant_Database!$C$3,Participant_Database!$Z113,0)<>"",OFFSET(Participant_Database!$C$3,Participant_Database!$Z113,0),"") ->  | D112: =IF($C112<>"",OFFSET(Participant_Database!$D$3,Participant_Database!$Z113,0),"") ->  | E112: =IF($C112<>"",OFFSET(Participant_Database!$E$3,Participant_Database!$Z113,0),"") ->  | F112: =IF($C112<>"",OFFSET(Participant_Database!$F$3,Participant_Database!$Z113,0),"") ->  | G112: =IF($C112<>"",OFFSET(Participant_Database!$G$3,Participant_Database!$Z113,0),"") ->  | H112: =IF($C112<>"",OFFSET(Participant_Database!$H$3,Participant_Database!$Z113,0),"") ->  | I112: =IF($C112<>"",OFFSET(Participant_Database!$I$3,Participant_Database!$Z113,0),"") ->  | J112: =IF($C112<>"",OFFSET(Participant_Database!$J$3,Participant_Database!$Z113,0),"") ->  | K112: =IF($C112<>"",OFFSET(Participant_Database!$K$3,Participant_Database!$Z113,0),"") ->  | L112: =IF($C112<>"",OFFSET(Participant_Database!$L$3,Participant_Database!$Z113,0),"") ->  | M112: =IF($C112<>"",OFFSET(Participant_Database!$M$3,Participant_Database!$Z113,0),"") ->  | N112: =IF($C112<>"",OFFSET(Participant_Database!$N$3,Participant_Database!$Z113,0),"") ->  | O112: =IF($C112<>"",OFFSET(Participant_Database!$O$3,Participant_Database!$Z113,0),"") ->  | P112: =IF($C112<>"",OFFSET(Participant_Database!$P$3,Participant_Database!$Z113,0),"") ->  | Q112: =IF($C112<>"",OFFSET(Participant_Database!$Q$3,Participant_Database!$Z113,0),"") ->  | R112: =IF($C112<>"",OFFSET(Participant_Database!$R$3,Participant_Database!$Z113,0),"") ->  | S112: =IF($C112<>"",OFFSET(Participant_Database!$S$3,Participant_Database!$Z113,0),"") ->  | T112: =IF($C112<>"",OFFSET(Participant_Database!$T$3,Participant_Database!$Z113,0),"") ->  | U112: =IF($C112<>"",OFFSET(Participant_Database!$U$3,Participant_Database!$Z113,0),"") ->  | V112: =IF($C112<>"",OFFSET(Participant_Database!$V$3,Participant_Database!$Z113,0),"") ->  | W112: =IF($C112<>"",OFFSET(Participant_Database!$W$3,Participant_Database!$Z113,0),"") ->  | X112: =IF(C112<>"",Participant_Database!$Z111,"") -> 
A113: =IF($C113<>"",OFFSET(Participant_Database!$A$3,Participant_Database!$Z114,0),"") ->  | B113: =IF($C113<>"",OFFSET(Participant_Database!$B$3,Participant_Database!$Z114,0),"") ->  | C113: =IF(OFFSET(Participant_Database!$C$3,Participant_Database!$Z114,0)<>"",OFFSET(Participant_Database!$C$3,Participant_Database!$Z114,0),"") ->  | D113: =IF($C113<>"",OFFSET(Participant_Database!$D$3,Participant_Database!$Z114,0),"") ->  | E113: =IF($C113<>"",OFFSET(Participant_Database!$E$3,Participant_Database!$Z114,0),"") ->  | F113: =IF($C113<>"",OFFSET(Participant_Database!$F$3,Participant_Database!$Z114,0),"") ->  | G113: =IF($C113<>"",OFFSET(Participant_Database!$G$3,Participant_Database!$Z114,0),"") ->  | H113: =IF($C113<>"",OFFSET(Participant_Database!$H$3,Participant_Database!$Z114,0),"") ->  | I113: =IF($C113<>"",OFFSET(Participant_Database!$I$3,Participant_Database!$Z114,0),"") ->  | J113: =IF($C113<>"",OFFSET(Participant_Database!$J$3,Participant_Database!$Z114,0),"") ->  | K113: =IF($C113<>"",OFFSET(Participant_Database!$K$3,Participant_Database!$Z114,0),"") ->  | L113: =IF($C113<>"",OFFSET(Participant_Database!$L$3,Participant_Database!$Z114,0),"") ->  | M113: =IF($C113<>"",OFFSET(Participant_Database!$M$3,Participant_Database!$Z114,0),"") ->  | N113: =IF($C113<>"",OFFSET(Participant_Database!$N$3,Participant_Database!$Z114,0),"") ->  | O113: =IF($C113<>"",OFFSET(Participant_Database!$O$3,Participant_Database!$Z114,0),"") ->  | P113: =IF($C113<>"",OFFSET(Participant_Database!$P$3,Participant_Database!$Z114,0),"") ->  | Q113: =IF($C113<>"",OFFSET(Participant_Database!$Q$3,Participant_Database!$Z114,0),"") ->  | R113: =IF($C113<>"",OFFSET(Participant_Database!$R$3,Participant_Database!$Z114,0),"") ->  | S113: =IF($C113<>"",OFFSET(Participant_Database!$S$3,Participant_Database!$Z114,0),"") ->  | T113: =IF($C113<>"",OFFSET(Participant_Database!$T$3,Participant_Database!$Z114,0),"") ->  | U113: =IF($C113<>"",OFFSET(Participant_Database!$U$3,Participant_Database!$Z114,0),"") ->  | V113: =IF($C113<>"",OFFSET(Participant_Database!$V$3,Participant_Database!$Z114,0),"") ->  | W113: =IF($C113<>"",OFFSET(Participant_Database!$W$3,Participant_Database!$Z114,0),"") ->  | X113: =IF(C113<>"",Participant_Database!$Z112,"") -> 
A114: =IF($C114<>"",OFFSET(Participant_Database!$A$3,Participant_Database!$Z115,0),"") ->  | B114: =IF($C114<>"",OFFSET(Participant_Database!$B$3,Participant_Database!$Z115,0),"") ->  | C114: =IF(OFFSET(Participant_Database!$C$3,Participant_Database!$Z115,0)<>"",OFFSET(Participant_Database!$C$3,Participant_Database!$Z115,0),"") ->  | D114: =IF($C114<>"",OFFSET(Participant_Database!$D$3,Participant_Database!$Z115,0),"") ->  | E114: =IF($C114<>"",OFFSET(Participant_Database!$E$3,Participant_Database!$Z115,0),"") ->  | F114: =IF($C114<>"",OFFSET(Participant_Database!$F$3,Participant_Database!$Z115,0),"") ->  | G114: =IF($C114<>"",OFFSET(Participant_Database!$G$3,Participant_Database!$Z115,0),"") ->  | H114: =IF($C114<>"",OFFSET(Participant_Database!$H$3,Participant_Database!$Z115,0),"") ->  | I114: =IF($C114<>"",OFFSET(Participant_Database!$I$3,Participant_Database!$Z115,0),"") ->  | J114: =IF($C114<>"",OFFSET(Participant_Database!$J$3,Participant_Database!$Z115,0),"") ->  | K114: =IF($C114<>"",OFFSET(Participant_Database!$K$3,Participant_Database!$Z115,0),"") ->  | L114: =IF($C114<>"",OFFSET(Participant_Database!$L$3,Participant_Database!$Z115,0),"") ->  | M114: =IF($C114<>"",OFFSET(Participant_Database!$M$3,Participant_Database!$Z115,0),"") ->  | N114: =IF($C114<>"",OFFSET(Participant_Database!$N$3,Participant_Database!$Z115,0),"") ->  | O114: =IF($C114<>"",OFFSET(Participant_Database!$O$3,Participant_Database!$Z115,0),"") ->  | P114: =IF($C114<>"",OFFSET(Participant_Database!$P$3,Participant_Database!$Z115,0),"") ->  | Q114: =IF($C114<>"",OFFSET(Participant_Database!$Q$3,Participant_Database!$Z115,0),"") ->  | R114: =IF($C114<>"",OFFSET(Participant_Database!$R$3,Participant_Database!$Z115,0),"") ->  | S114: =IF($C114<>"",OFFSET(Participant_Database!$S$3,Participant_Database!$Z115,0),"") ->  | T114: =IF($C114<>"",OFFSET(Participant_Database!$T$3,Participant_Database!$Z115,0),"") ->  | U114: =IF($C114<>"",OFFSET(Participant_Database!$U$3,Participant_Database!$Z115,0),"") ->  | V114: =IF($C114<>"",OFFSET(Participant_Database!$V$3,Participant_Database!$Z115,0),"") ->  | W114: =IF($C114<>"",OFFSET(Participant_Database!$W$3,Participant_Database!$Z115,0),"") ->  | X114: =IF(C114<>"",Participant_Database!$Z113,"") -> 
A115: =IF($C115<>"",OFFSET(Participant_Database!$A$3,Participant_Database!$Z116,0),"") ->  | B115: =IF($C115<>"",OFFSET(Participant_Database!$B$3,Participant_Database!$Z116,0),"") ->  | C115: =IF(OFFSET(Participant_Database!$C$3,Participant_Database!$Z116,0)<>"",OFFSET(Participant_Database!$C$3,Participant_Database!$Z116,0),"") ->  | D115: =IF($C115<>"",OFFSET(Participant_Database!$D$3,Participant_Database!$Z116,0),"") ->  | E115: =IF($C115<>"",OFFSET(Participant_Database!$E$3,Participant_Database!$Z116,0),"") ->  | F115: =IF($C115<>"",OFFSET(Participant_Database!$F$3,Participant_Database!$Z116,0),"") ->  | G115: =IF($C115<>"",OFFSET(Participant_Database!$G$3,Participant_Database!$Z116,0),"") ->  | H115: =IF($C115<>"",OFFSET(Participant_Database!$H$3,Participant_Database!$Z116,0),"") ->  | I115: =IF($C115<>"",OFFSET(Participant_Database!$I$3,Participant_Database!$Z116,0),"") ->  | J115: =IF($C115<>"",OFFSET(Participant_Database!$J$3,Participant_Database!$Z116,0),"") ->  | K115: =IF($C115<>"",OFFSET(Participant_Database!$K$3,Participant_Database!$Z116,0),"") ->  | L115: =IF($C115<>"",OFFSET(Participant_Database!$L$3,Participant_Database!$Z116,0),"") ->  | M115: =IF($C115<>"",OFFSET(Participant_Database!$M$3,Participant_Database!$Z116,0),"") ->  | N115: =IF($C115<>"",OFFSET(Participant_Database!$N$3,Participant_Database!$Z116,0),"") ->  | O115: =IF($C115<>"",OFFSET(Participant_Database!$O$3,Participant_Database!$Z116,0),"") ->  | P115: =IF($C115<>"",OFFSET(Participant_Database!$P$3,Participant_Database!$Z116,0),"") ->  | Q115: =IF($C115<>"",OFFSET(Participant_Database!$Q$3,Participant_Database!$Z116,0),"") ->  | R115: =IF($C115<>"",OFFSET(Participant_Database!$R$3,Participant_Database!$Z116,0),"") ->  | S115: =IF($C115<>"",OFFSET(Participant_Database!$S$3,Participant_Database!$Z116,0),"") ->  | T115: =IF($C115<>"",OFFSET(Participant_Database!$T$3,Participant_Database!$Z116,0),"") ->  | U115: =IF($C115<>"",OFFSET(Participant_Database!$U$3,Participant_Database!$Z116,0),"") ->  | V115: =IF($C115<>"",OFFSET(Participant_Database!$V$3,Participant_Database!$Z116,0),"") ->  | W115: =IF($C115<>"",OFFSET(Participant_Database!$W$3,Participant_Database!$Z116,0),"") ->  | X115: =IF(C115<>"",Participant_Database!$Z114,"") -> 
A116: =IF($C116<>"",OFFSET(Participant_Database!$A$3,Participant_Database!$Z117,0),"") ->  | B116: =IF($C116<>"",OFFSET(Participant_Database!$B$3,Participant_Database!$Z117,0),"") ->  | C116: =IF(OFFSET(Participant_Database!$C$3,Participant_Database!$Z117,0)<>"",OFFSET(Participant_Database!$C$3,Participant_Database!$Z117,0),"") ->  | D116: =IF($C116<>"",OFFSET(Participant_Database!$D$3,Participant_Database!$Z117,0),"") ->  | E116: =IF($C116<>"",OFFSET(Participant_Database!$E$3,Participant_Database!$Z117,0),"") ->  | F116: =IF($C116<>"",OFFSET(Participant_Database!$F$3,Participant_Database!$Z117,0),"") ->  | G116: =IF($C116<>"",OFFSET(Participant_Database!$G$3,Participant_Database!$Z117,0),"") ->  | H116: =IF($C116<>"",OFFSET(Participant_Database!$H$3,Participant_Database!$Z117,0),"") ->  | I116: =IF($C116<>"",OFFSET(Participant_Database!$I$3,Participant_Database!$Z117,0),"") ->  | J116: =IF($C116<>"",OFFSET(Participant_Database!$J$3,Participant_Database!$Z117,0),"") ->  | K116: =IF($C116<>"",OFFSET(Participant_Database!$K$3,Participant_Database!$Z117,0),"") ->  | L116: =IF($C116<>"",OFFSET(Participant_Database!$L$3,Participant_Database!$Z117,0),"") ->  | M116: =IF($C116<>"",OFFSET(Participant_Database!$M$3,Participant_Database!$Z117,0),"") ->  | N116: =IF($C116<>"",OFFSET(Participant_Database!$N$3,Participant_Database!$Z117,0),"") ->  | O116: =IF($C116<>"",OFFSET(Participant_Database!$O$3,Participant_Database!$Z117,0),"") ->  | P116: =IF($C116<>"",OFFSET(Participant_Database!$P$3,Participant_Database!$Z117,0),"") ->  | Q116: =IF($C116<>"",OFFSET(Participant_Database!$Q$3,Participant_Database!$Z117,0),"") ->  | R116: =IF($C116<>"",OFFSET(Participant_Database!$R$3,Participant_Database!$Z117,0),"") ->  | S116: =IF($C116<>"",OFFSET(Participant_Database!$S$3,Participant_Database!$Z117,0),"") ->  | T116: =IF($C116<>"",OFFSET(Participant_Database!$T$3,Participant_Database!$Z117,0),"") ->  | U116: =IF($C116<>"",OFFSET(Participant_Database!$U$3,Participant_Database!$Z117,0),"") ->  | V116: =IF($C116<>"",OFFSET(Participant_Database!$V$3,Participant_Database!$Z117,0),"") ->  | W116: =IF($C116<>"",OFFSET(Participant_Database!$W$3,Participant_Database!$Z117,0),"") ->  | X116: =IF(C116<>"",Participant_Database!$Z115,"") -> 
A117: =IF($C117<>"",OFFSET(Participant_Database!$A$3,Participant_Database!$Z118,0),"") ->  | B117: =IF($C117<>"",OFFSET(Participant_Database!$B$3,Participant_Database!$Z118,0),"") ->  | C117: =IF(OFFSET(Participant_Database!$C$3,Participant_Database!$Z118,0)<>"",OFFSET(Participant_Database!$C$3,Participant_Database!$Z118,0),"") ->  | D117: =IF($C117<>"",OFFSET(Participant_Database!$D$3,Participant_Database!$Z118,0),"") ->  | E117: =IF($C117<>"",OFFSET(Participant_Database!$E$3,Participant_Database!$Z118,0),"") ->  | F117: =IF($C117<>"",OFFSET(Participant_Database!$F$3,Participant_Database!$Z118,0),"") ->  | G117: =IF($C117<>"",OFFSET(Participant_Database!$G$3,Participant_Database!$Z118,0),"") ->  | H117: =IF($C117<>"",OFFSET(Participant_Database!$H$3,Participant_Database!$Z118,0),"") ->  | I117: =IF($C117<>"",OFFSET(Participant_Database!$I$3,Participant_Database!$Z118,0),"") ->  | J117: =IF($C117<>"",OFFSET(Participant_Database!$J$3,Participant_Database!$Z118,0),"") ->  | K117: =IF($C117<>"",OFFSET(Participant_Database!$K$3,Participant_Database!$Z118,0),"") ->  | L117: =IF($C117<>"",OFFSET(Participant_Database!$L$3,Participant_Database!$Z118,0),"") ->  | M117: =IF($C117<>"",OFFSET(Participant_Database!$M$3,Participant_Database!$Z118,0),"") ->  | N117: =IF($C117<>"",OFFSET(Participant_Database!$N$3,Participant_Database!$Z118,0),"") ->  | O117: =IF($C117<>"",OFFSET(Participant_Database!$O$3,Participant_Database!$Z118,0),"") ->  | P117: =IF($C117<>"",OFFSET(Participant_Database!$P$3,Participant_Database!$Z118,0),"") ->  | Q117: =IF($C117<>"",OFFSET(Participant_Database!$Q$3,Participant_Database!$Z118,0),"") ->  | R117: =IF($C117<>"",OFFSET(Participant_Database!$R$3,Participant_Database!$Z118,0),"") ->  | S117: =IF($C117<>"",OFFSET(Participant_Database!$S$3,Participant_Database!$Z118,0),"") ->  | T117: =IF($C117<>"",OFFSET(Participant_Database!$T$3,Participant_Database!$Z118,0),"") ->  | U117: =IF($C117<>"",OFFSET(Participant_Database!$U$3,Participant_Database!$Z118,0),"") ->  | V117: =IF($C117<>"",OFFSET(Participant_Database!$V$3,Participant_Database!$Z118,0),"") ->  | W117: =IF($C117<>"",OFFSET(Participant_Database!$W$3,Participant_Database!$Z118,0),"") ->  | X117: =IF(C117<>"",Participant_Database!$Z116,"") -> 
A118: =IF($C118<>"",OFFSET(Participant_Database!$A$3,Participant_Database!$Z119,0),"") ->  | B118: =IF($C118<>"",OFFSET(Participant_Database!$B$3,Participant_Database!$Z119,0),"") ->  | C118: =IF(OFFSET(Participant_Database!$C$3,Participant_Database!$Z119,0)<>"",OFFSET(Participant_Database!$C$3,Participant_Database!$Z119,0),"") ->  | D118: =IF($C118<>"",OFFSET(Participant_Database!$D$3,Participant_Database!$Z119,0),"") ->  | E118: =IF($C118<>"",OFFSET(Participant_Database!$E$3,Participant_Database!$Z119,0),"") ->  | F118: =IF($C118<>"",OFFSET(Participant_Database!$F$3,Participant_Database!$Z119,0),"") ->  | G118: =IF($C118<>"",OFFSET(Participant_Database!$G$3,Participant_Database!$Z119,0),"") ->  | H118: =IF($C118<>"",OFFSET(Participant_Database!$H$3,Participant_Database!$Z119,0),"") ->  | I118: =IF($C118<>"",OFFSET(Participant_Database!$I$3,Participant_Database!$Z119,0),"") ->  | J118: =IF($C118<>"",OFFSET(Participant_Database!$J$3,Participant_Database!$Z119,0),"") ->  | K118: =IF($C118<>"",OFFSET(Participant_Database!$K$3,Participant_Database!$Z119,0),"") ->  | L118: =IF($C118<>"",OFFSET(Participant_Database!$L$3,Participant_Database!$Z119,0),"") ->  | M118: =IF($C118<>"",OFFSET(Participant_Database!$M$3,Participant_Database!$Z119,0),"") ->  | N118: =IF($C118<>"",OFFSET(Participant_Database!$N$3,Participant_Database!$Z119,0),"") ->  | O118: =IF($C118<>"",OFFSET(Participant_Database!$O$3,Participant_Database!$Z119,0),"") ->  | P118: =IF($C118<>"",OFFSET(Participant_Database!$P$3,Participant_Database!$Z119,0),"") ->  | Q118: =IF($C118<>"",OFFSET(Participant_Database!$Q$3,Participant_Database!$Z119,0),"") ->  | R118: =IF($C118<>"",OFFSET(Participant_Database!$R$3,Participant_Database!$Z119,0),"") ->  | S118: =IF($C118<>"",OFFSET(Participant_Database!$S$3,Participant_Database!$Z119,0),"") ->  | T118: =IF($C118<>"",OFFSET(Participant_Database!$T$3,Participant_Database!$Z119,0),"") ->  | U118: =IF($C118<>"",OFFSET(Participant_Database!$U$3,Participant_Database!$Z119,0),"") ->  | V118: =IF($C118<>"",OFFSET(Participant_Database!$V$3,Participant_Database!$Z119,0),"") ->  | W118: =IF($C118<>"",OFFSET(Participant_Database!$W$3,Participant_Database!$Z119,0),"") ->  | X118: =IF(C118<>"",Participant_Database!$Z117,"") -> 
A119: =IF($C119<>"",OFFSET(Participant_Database!$A$3,Participant_Database!$Z120,0),"") ->  | B119: =IF($C119<>"",OFFSET(Participant_Database!$B$3,Participant_Database!$Z120,0),"") ->  | C119: =IF(OFFSET(Participant_Database!$C$3,Participant_Database!$Z120,0)<>"",OFFSET(Participant_Database!$C$3,Participant_Database!$Z120,0),"") ->  | D119: =IF($C119<>"",OFFSET(Participant_Database!$D$3,Participant_Database!$Z120,0),"") ->  | E119: =IF($C119<>"",OFFSET(Participant_Database!$E$3,Participant_Database!$Z120,0),"") ->  | F119: =IF($C119<>"",OFFSET(Participant_Database!$F$3,Participant_Database!$Z120,0),"") ->  | G119: =IF($C119<>"",OFFSET(Participant_Database!$G$3,Participant_Database!$Z120,0),"") ->  | H119: =IF($C119<>"",OFFSET(Participant_Database!$H$3,Participant_Database!$Z120,0),"") ->  | I119: =IF($C119<>"",OFFSET(Participant_Database!$I$3,Participant_Database!$Z120,0),"") ->  | J119: =IF($C119<>"",OFFSET(Participant_Database!$J$3,Participant_Database!$Z120,0),"") ->  | K119: =IF($C119<>"",OFFSET(Participant_Database!$K$3,Participant_Database!$Z120,0),"") ->  | L119: =IF($C119<>"",OFFSET(Participant_Database!$L$3,Participant_Database!$Z120,0),"") ->  | M119: =IF($C119<>"",OFFSET(Participant_Database!$M$3,Participant_Database!$Z120,0),"") ->  | N119: =IF($C119<>"",OFFSET(Participant_Database!$N$3,Participant_Database!$Z120,0),"") ->  | O119: =IF($C119<>"",OFFSET(Participant_Database!$O$3,Participant_Database!$Z120,0),"") ->  | P119: =IF($C119<>"",OFFSET(Participant_Database!$P$3,Participant_Database!$Z120,0),"") ->  | Q119: =IF($C119<>"",OFFSET(Participant_Database!$Q$3,Participant_Database!$Z120,0),"") ->  | R119: =IF($C119<>"",OFFSET(Participant_Database!$R$3,Participant_Database!$Z120,0),"") ->  | S119: =IF($C119<>"",OFFSET(Participant_Database!$S$3,Participant_Database!$Z120,0),"") ->  | T119: =IF($C119<>"",OFFSET(Participant_Database!$T$3,Participant_Database!$Z120,0),"") ->  | U119: =IF($C119<>"",OFFSET(Participant_Database!$U$3,Participant_Database!$Z120,0),"") ->  | V119: =IF($C119<>"",OFFSET(Participant_Database!$V$3,Participant_Database!$Z120,0),"") ->  | W119: =IF($C119<>"",OFFSET(Participant_Database!$W$3,Participant_Database!$Z120,0),"") ->  | X119: =IF(C119<>"",Participant_Database!$Z118,"") -> 
A120: =IF($C120<>"",OFFSET(Participant_Database!$A$3,Participant_Database!$Z121,0),"") ->  | B120: =IF($C120<>"",OFFSET(Participant_Database!$B$3,Participant_Database!$Z121,0),"") ->  | C120: =IF(OFFSET(Participant_Database!$C$3,Participant_Database!$Z121,0)<>"",OFFSET(Participant_Database!$C$3,Participant_Database!$Z121,0),"") ->  | D120: =IF($C120<>"",OFFSET(Participant_Database!$D$3,Participant_Database!$Z121,0),"") ->  | E120: =IF($C120<>"",OFFSET(Participant_Database!$E$3,Participant_Database!$Z121,0),"") ->  | F120: =IF($C120<>"",OFFSET(Participant_Database!$F$3,Participant_Database!$Z121,0),"") ->  | G120: =IF($C120<>"",OFFSET(Participant_Database!$G$3,Participant_Database!$Z121,0),"") ->  | H120: =IF($C120<>"",OFFSET(Participant_Database!$H$3,Participant_Database!$Z121,0),"") ->  | I120: =IF($C120<>"",OFFSET(Participant_Database!$I$3,Participant_Database!$Z121,0),"") ->  | J120: =IF($C120<>"",OFFSET(Participant_Database!$J$3,Participant_Database!$Z121,0),"") ->  | K120: =IF($C120<>"",OFFSET(Participant_Database!$K$3,Participant_Database!$Z121,0),"") ->  | L120: =IF($C120<>"",OFFSET(Participant_Database!$L$3,Participant_Database!$Z121,0),"") ->  | M120: =IF($C120<>"",OFFSET(Participant_Database!$M$3,Participant_Database!$Z121,0),"") ->  | N120: =IF($C120<>"",OFFSET(Participant_Database!$N$3,Participant_Database!$Z121,0),"") ->  | O120: =IF($C120<>"",OFFSET(Participant_Database!$O$3,Participant_Database!$Z121,0),"") ->  | P120: =IF($C120<>"",OFFSET(Participant_Database!$P$3,Participant_Database!$Z121,0),"") ->  | Q120: =IF($C120<>"",OFFSET(Participant_Database!$Q$3,Participant_Database!$Z121,0),"") ->  | R120: =IF($C120<>"",OFFSET(Participant_Database!$R$3,Participant_Database!$Z121,0),"") ->  | S120: =IF($C120<>"",OFFSET(Participant_Database!$S$3,Participant_Database!$Z121,0),"") ->  | T120: =IF($C120<>"",OFFSET(Participant_Database!$T$3,Participant_Database!$Z121,0),"") ->  | U120: =IF($C120<>"",OFFSET(Participant_Database!$U$3,Participant_Database!$Z121,0),"") ->  | V120: =IF($C120<>"",OFFSET(Participant_Database!$V$3,Participant_Database!$Z121,0),"") ->  | W120: =IF($C120<>"",OFFSET(Participant_Database!$W$3,Participant_Database!$Z121,0),"") ->  | X120: =IF(C120<>"",Participant_Database!$Z119,"") -> 
A121: =IF($C121<>"",OFFSET(Participant_Database!$A$3,Participant_Database!$Z122,0),"") ->  | B121: =IF($C121<>"",OFFSET(Participant_Database!$B$3,Participant_Database!$Z122,0),"") ->  | C121: =IF(OFFSET(Participant_Database!$C$3,Participant_Database!$Z122,0)<>"",OFFSET(Participant_Database!$C$3,Participant_Database!$Z122,0),"") ->  | D121: =IF($C121<>"",OFFSET(Participant_Database!$D$3,Participant_Database!$Z122,0),"") ->  | E121: =IF($C121<>"",OFFSET(Participant_Database!$E$3,Participant_Database!$Z122,0),"") ->  | F121: =IF($C121<>"",OFFSET(Participant_Database!$F$3,Participant_Database!$Z122,0),"") ->  | G121: =IF($C121<>"",OFFSET(Participant_Database!$G$3,Participant_Database!$Z122,0),"") ->  | H121: =IF($C121<>"",OFFSET(Participant_Database!$H$3,Participant_Database!$Z122,0),"") ->  | I121: =IF($C121<>"",OFFSET(Participant_Database!$I$3,Participant_Database!$Z122,0),"") ->  | J121: =IF($C121<>"",OFFSET(Participant_Database!$J$3,Participant_Database!$Z122,0),"") ->  | K121: =IF($C121<>"",OFFSET(Participant_Database!$K$3,Participant_Database!$Z122,0),"") ->  | L121: =IF($C121<>"",OFFSET(Participant_Database!$L$3,Participant_Database!$Z122,0),"") ->  | M121: =IF($C121<>"",OFFSET(Participant_Database!$M$3,Participant_Database!$Z122,0),"") ->  | N121: =IF($C121<>"",OFFSET(Participant_Database!$N$3,Participant_Database!$Z122,0),"") ->  | O121: =IF($C121<>"",OFFSET(Participant_Database!$O$3,Participant_Database!$Z122,0),"") ->  | P121: =IF($C121<>"",OFFSET(Participant_Database!$P$3,Participant_Database!$Z122,0),"") ->  | Q121: =IF($C121<>"",OFFSET(Participant_Database!$Q$3,Participant_Database!$Z122,0),"") ->  | R121: =IF($C121<>"",OFFSET(Participant_Database!$R$3,Participant_Database!$Z122,0),"") ->  | S121: =IF($C121<>"",OFFSET(Participant_Database!$S$3,Participant_Database!$Z122,0),"") ->  | T121: =IF($C121<>"",OFFSET(Participant_Database!$T$3,Participant_Database!$Z122,0),"") ->  | U121: =IF($C121<>"",OFFSET(Participant_Database!$U$3,Participant_Database!$Z122,0),"") ->  | V121: =IF($C121<>"",OFFSET(Participant_Database!$V$3,Participant_Database!$Z122,0),"") ->  | W121: =IF($C121<>"",OFFSET(Participant_Database!$W$3,Participant_Database!$Z122,0),"") ->  | X121: =IF(C121<>"",Participant_Database!$Z120,"") -> 
A122: =IF($C122<>"",OFFSET(Participant_Database!$A$3,Participant_Database!$Z123,0),"") ->  | B122: =IF($C122<>"",OFFSET(Participant_Database!$B$3,Participant_Database!$Z123,0),"") ->  | C122: =IF(OFFSET(Participant_Database!$C$3,Participant_Database!$Z123,0)<>"",OFFSET(Participant_Database!$C$3,Participant_Database!$Z123,0),"") ->  | D122: =IF($C122<>"",OFFSET(Participant_Database!$D$3,Participant_Database!$Z123,0),"") ->  | E122: =IF($C122<>"",OFFSET(Participant_Database!$E$3,Participant_Database!$Z123,0),"") ->  | F122: =IF($C122<>"",OFFSET(Participant_Database!$F$3,Participant_Database!$Z123,0),"") ->  | G122: =IF($C122<>"",OFFSET(Participant_Database!$G$3,Participant_Database!$Z123,0),"") ->  | H122: =IF($C122<>"",OFFSET(Participant_Database!$H$3,Participant_Database!$Z123,0),"") ->  | I122: =IF($C122<>"",OFFSET(Participant_Database!$I$3,Participant_Database!$Z123,0),"") ->  | J122: =IF($C122<>"",OFFSET(Participant_Database!$J$3,Participant_Database!$Z123,0),"") ->  | K122: =IF($C122<>"",OFFSET(Participant_Database!$K$3,Participant_Database!$Z123,0),"") ->  | L122: =IF($C122<>"",OFFSET(Participant_Database!$L$3,Participant_Database!$Z123,0),"") ->  | M122: =IF($C122<>"",OFFSET(Participant_Database!$M$3,Participant_Database!$Z123,0),"") ->  | N122: =IF($C122<>"",OFFSET(Participant_Database!$N$3,Participant_Database!$Z123,0),"") ->  | O122: =IF($C122<>"",OFFSET(Participant_Database!$O$3,Participant_Database!$Z123,0),"") ->  | P122: =IF($C122<>"",OFFSET(Participant_Database!$P$3,Participant_Database!$Z123,0),"") ->  | Q122: =IF($C122<>"",OFFSET(Participant_Database!$Q$3,Participant_Database!$Z123,0),"") ->  | R122: =IF($C122<>"",OFFSET(Participant_Database!$R$3,Participant_Database!$Z123,0),"") ->  | S122: =IF($C122<>"",OFFSET(Participant_Database!$S$3,Participant_Database!$Z123,0),"") ->  | T122: =IF($C122<>"",OFFSET(Participant_Database!$T$3,Participant_Database!$Z123,0),"") ->  | U122: =IF($C122<>"",OFFSET(Participant_Database!$U$3,Participant_Database!$Z123,0),"") ->  | V122: =IF($C122<>"",OFFSET(Participant_Database!$V$3,Participant_Database!$Z123,0),"") ->  | W122: =IF($C122<>"",OFFSET(Participant_Database!$W$3,Participant_Database!$Z123,0),"") ->  | X122: =IF(C122<>"",Participant_Database!$Z121,"") -> 
A123: =IF($C123<>"",OFFSET(Participant_Database!$A$3,Participant_Database!$Z124,0),"") ->  | B123: =IF($C123<>"",OFFSET(Participant_Database!$B$3,Participant_Database!$Z124,0),"") ->  | C123: =IF(OFFSET(Participant_Database!$C$3,Participant_Database!$Z124,0)<>"",OFFSET(Participant_Database!$C$3,Participant_Database!$Z124,0),"") ->  | D123: =IF($C123<>"",OFFSET(Participant_Database!$D$3,Participant_Database!$Z124,0),"") ->  | E123: =IF($C123<>"",OFFSET(Participant_Database!$E$3,Participant_Database!$Z124,0),"") ->  | F123: =IF($C123<>"",OFFSET(Participant_Database!$F$3,Participant_Database!$Z124,0),"") ->  | G123: =IF($C123<>"",OFFSET(Participant_Database!$G$3,Participant_Database!$Z124,0),"") ->  | H123: =IF($C123<>"",OFFSET(Participant_Database!$H$3,Participant_Database!$Z124,0),"") ->  | I123: =IF($C123<>"",OFFSET(Participant_Database!$I$3,Participant_Database!$Z124,0),"") ->  | J123: =IF($C123<>"",OFFSET(Participant_Database!$J$3,Participant_Database!$Z124,0),"") ->  | K123: =IF($C123<>"",OFFSET(Participant_Database!$K$3,Participant_Database!$Z124,0),"") ->  | L123: =IF($C123<>"",OFFSET(Participant_Database!$L$3,Participant_Database!$Z124,0),"") ->  | M123: =IF($C123<>"",OFFSET(Participant_Database!$M$3,Participant_Database!$Z124,0),"") ->  | N123: =IF($C123<>"",OFFSET(Participant_Database!$N$3,Participant_Database!$Z124,0),"") ->  | O123: =IF($C123<>"",OFFSET(Participant_Database!$O$3,Participant_Database!$Z124,0),"") ->  | P123: =IF($C123<>"",OFFSET(Participant_Database!$P$3,Participant_Database!$Z124,0),"") ->  | Q123: =IF($C123<>"",OFFSET(Participant_Database!$Q$3,Participant_Database!$Z124,0),"") ->  | R123: =IF($C123<>"",OFFSET(Participant_Database!$R$3,Participant_Database!$Z124,0),"") ->  | S123: =IF($C123<>"",OFFSET(Participant_Database!$S$3,Participant_Database!$Z124,0),"") ->  | T123: =IF($C123<>"",OFFSET(Participant_Database!$T$3,Participant_Database!$Z124,0),"") ->  | U123: =IF($C123<>"",OFFSET(Participant_Database!$U$3,Participant_Database!$Z124,0),"") ->  | V123: =IF($C123<>"",OFFSET(Participant_Database!$V$3,Participant_Database!$Z124,0),"") ->  | W123: =IF($C123<>"",OFFSET(Participant_Database!$W$3,Participant_Database!$Z124,0),"") ->  | X123: =IF(C123<>"",Participant_Database!$Z122,"") -> 
A124: =IF($C124<>"",OFFSET(Participant_Database!$A$3,Participant_Database!$Z125,0),"") ->  | B124: =IF($C124<>"",OFFSET(Participant_Database!$B$3,Participant_Database!$Z125,0),"") ->  | C124: =IF(OFFSET(Participant_Database!$C$3,Participant_Database!$Z125,0)<>"",OFFSET(Participant_Database!$C$3,Participant_Database!$Z125,0),"") ->  | D124: =IF($C124<>"",OFFSET(Participant_Database!$D$3,Participant_Database!$Z125,0),"") ->  | E124: =IF($C124<>"",OFFSET(Participant_Database!$E$3,Participant_Database!$Z125,0),"") ->  | F124: =IF($C124<>"",OFFSET(Participant_Database!$F$3,Participant_Database!$Z125,0),"") ->  | G124: =IF($C124<>"",OFFSET(Participant_Database!$G$3,Participant_Database!$Z125,0),"") ->  | H124: =IF($C124<>"",OFFSET(Participant_Database!$H$3,Participant_Database!$Z125,0),"") ->  | I124: =IF($C124<>"",OFFSET(Participant_Database!$I$3,Participant_Database!$Z125,0),"") ->  | J124: =IF($C124<>"",OFFSET(Participant_Database!$J$3,Participant_Database!$Z125,0),"") ->  | K124: =IF($C124<>"",OFFSET(Participant_Database!$K$3,Participant_Database!$Z125,0),"") ->  | L124: =IF($C124<>"",OFFSET(Participant_Database!$L$3,Participant_Database!$Z125,0),"") ->  | M124: =IF($C124<>"",OFFSET(Participant_Database!$M$3,Participant_Database!$Z125,0),"") ->  | N124: =IF($C124<>"",OFFSET(Participant_Database!$N$3,Participant_Database!$Z125,0),"") ->  | O124: =IF($C124<>"",OFFSET(Participant_Database!$O$3,Participant_Database!$Z125,0),"") ->  | P124: =IF($C124<>"",OFFSET(Participant_Database!$P$3,Participant_Database!$Z125,0),"") ->  | Q124: =IF($C124<>"",OFFSET(Participant_Database!$Q$3,Participant_Database!$Z125,0),"") ->  | R124: =IF($C124<>"",OFFSET(Participant_Database!$R$3,Participant_Database!$Z125,0),"") ->  | S124: =IF($C124<>"",OFFSET(Participant_Database!$S$3,Participant_Database!$Z125,0),"") ->  | T124: =IF($C124<>"",OFFSET(Participant_Database!$T$3,Participant_Database!$Z125,0),"") ->  | U124: =IF($C124<>"",OFFSET(Participant_Database!$U$3,Participant_Database!$Z125,0),"") ->  | V124: =IF($C124<>"",OFFSET(Participant_Database!$V$3,Participant_Database!$Z125,0),"") ->  | W124: =IF($C124<>"",OFFSET(Participant_Database!$W$3,Participant_Database!$Z125,0),"") ->  | X124: =IF(C124<>"",Participant_Database!$Z123,"") -> 
A125: =IF($C125<>"",OFFSET(Participant_Database!$A$3,Participant_Database!$Z126,0),"") ->  | B125: =IF($C125<>"",OFFSET(Participant_Database!$B$3,Participant_Database!$Z126,0),"") ->  | C125: =IF(OFFSET(Participant_Database!$C$3,Participant_Database!$Z126,0)<>"",OFFSET(Participant_Database!$C$3,Participant_Database!$Z126,0),"") ->  | D125: =IF($C125<>"",OFFSET(Participant_Database!$D$3,Participant_Database!$Z126,0),"") ->  | E125: =IF($C125<>"",OFFSET(Participant_Database!$E$3,Participant_Database!$Z126,0),"") ->  | F125: =IF($C125<>"",OFFSET(Participant_Database!$F$3,Participant_Database!$Z126,0),"") ->  | G125: =IF($C125<>"",OFFSET(Participant_Database!$G$3,Participant_Database!$Z126,0),"") ->  | H125: =IF($C125<>"",OFFSET(Participant_Database!$H$3,Participant_Database!$Z126,0),"") ->  | I125: =IF($C125<>"",OFFSET(Participant_Database!$I$3,Participant_Database!$Z126,0),"") ->  | J125: =IF($C125<>"",OFFSET(Participant_Database!$J$3,Participant_Database!$Z126,0),"") ->  | K125: =IF($C125<>"",OFFSET(Participant_Database!$K$3,Participant_Database!$Z126,0),"") ->  | L125: =IF($C125<>"",OFFSET(Participant_Database!$L$3,Participant_Database!$Z126,0),"") ->  | M125: =IF($C125<>"",OFFSET(Participant_Database!$M$3,Participant_Database!$Z126,0),"") ->  | N125: =IF($C125<>"",OFFSET(Participant_Database!$N$3,Participant_Database!$Z126,0),"") ->  | O125: =IF($C125<>"",OFFSET(Participant_Database!$O$3,Participant_Database!$Z126,0),"") ->  | P125: =IF($C125<>"",OFFSET(Participant_Database!$P$3,Participant_Database!$Z126,0),"") ->  | Q125: =IF($C125<>"",OFFSET(Participant_Database!$Q$3,Participant_Database!$Z126,0),"") ->  | R125: =IF($C125<>"",OFFSET(Participant_Database!$R$3,Participant_Database!$Z126,0),"") ->  | S125: =IF($C125<>"",OFFSET(Participant_Database!$S$3,Participant_Database!$Z126,0),"") ->  | T125: =IF($C125<>"",OFFSET(Participant_Database!$T$3,Participant_Database!$Z126,0),"") ->  | U125: =IF($C125<>"",OFFSET(Participant_Database!$U$3,Participant_Database!$Z126,0),"") ->  | V125: =IF($C125<>"",OFFSET(Participant_Database!$V$3,Participant_Database!$Z126,0),"") ->  | W125: =IF($C125<>"",OFFSET(Participant_Database!$W$3,Participant_Database!$Z126,0),"") ->  | X125: =IF(C125<>"",Participant_Database!$Z124,"") -> 
A126: =IF($C126<>"",OFFSET(Participant_Database!$A$3,Participant_Database!$Z127,0),"") ->  | B126: =IF($C126<>"",OFFSET(Participant_Database!$B$3,Participant_Database!$Z127,0),"") ->  | C126: =IF(OFFSET(Participant_Database!$C$3,Participant_Database!$Z127,0)<>"",OFFSET(Participant_Database!$C$3,Participant_Database!$Z127,0),"") ->  | D126: =IF($C126<>"",OFFSET(Participant_Database!$D$3,Participant_Database!$Z127,0),"") ->  | E126: =IF($C126<>"",OFFSET(Participant_Database!$E$3,Participant_Database!$Z127,0),"") ->  | F126: =IF($C126<>"",OFFSET(Participant_Database!$F$3,Participant_Database!$Z127,0),"") ->  | G126: =IF($C126<>"",OFFSET(Participant_Database!$G$3,Participant_Database!$Z127,0),"") ->  | H126: =IF($C126<>"",OFFSET(Participant_Database!$H$3,Participant_Database!$Z127,0),"") ->  | I126: =IF($C126<>"",OFFSET(Participant_Database!$I$3,Participant_Database!$Z127,0),"") ->  | J126: =IF($C126<>"",OFFSET(Participant_Database!$J$3,Participant_Database!$Z127,0),"") ->  | K126: =IF($C126<>"",OFFSET(Participant_Database!$K$3,Participant_Database!$Z127,0),"") ->  | L126: =IF($C126<>"",OFFSET(Participant_Database!$L$3,Participant_Database!$Z127,0),"") ->  | M126: =IF($C126<>"",OFFSET(Participant_Database!$M$3,Participant_Database!$Z127,0),"") ->  | N126: =IF($C126<>"",OFFSET(Participant_Database!$N$3,Participant_Database!$Z127,0),"") ->  | O126: =IF($C126<>"",OFFSET(Participant_Database!$O$3,Participant_Database!$Z127,0),"") ->  | P126: =IF($C126<>"",OFFSET(Participant_Database!$P$3,Participant_Database!$Z127,0),"") ->  | Q126: =IF($C126<>"",OFFSET(Participant_Database!$Q$3,Participant_Database!$Z127,0),"") ->  | R126: =IF($C126<>"",OFFSET(Participant_Database!$R$3,Participant_Database!$Z127,0),"") ->  | S126: =IF($C126<>"",OFFSET(Participant_Database!$S$3,Participant_Database!$Z127,0),"") ->  | T126: =IF($C126<>"",OFFSET(Participant_Database!$T$3,Participant_Database!$Z127,0),"") ->  | U126: =IF($C126<>"",OFFSET(Participant_Database!$U$3,Participant_Database!$Z127,0),"") ->  | V126: =IF($C126<>"",OFFSET(Participant_Database!$V$3,Participant_Database!$Z127,0),"") ->  | W126: =IF($C126<>"",OFFSET(Participant_Database!$W$3,Participant_Database!$Z127,0),"") ->  | X126: =IF(C126<>"",Participant_Database!$Z125,"") -> 
A127: =IF($C127<>"",OFFSET(Participant_Database!$A$3,Participant_Database!$Z128,0),"") ->  | B127: =IF($C127<>"",OFFSET(Participant_Database!$B$3,Participant_Database!$Z128,0),"") ->  | C127: =IF(OFFSET(Participant_Database!$C$3,Participant_Database!$Z128,0)<>"",OFFSET(Participant_Database!$C$3,Participant_Database!$Z128,0),"") ->  | D127: =IF($C127<>"",OFFSET(Participant_Database!$D$3,Participant_Database!$Z128,0),"") ->  | E127: =IF($C127<>"",OFFSET(Participant_Database!$E$3,Participant_Database!$Z128,0),"") ->  | F127: =IF($C127<>"",OFFSET(Participant_Database!$F$3,Participant_Database!$Z128,0),"") ->  | G127: =IF($C127<>"",OFFSET(Participant_Database!$G$3,Participant_Database!$Z128,0),"") ->  | H127: =IF($C127<>"",OFFSET(Participant_Database!$H$3,Participant_Database!$Z128,0),"") ->  | I127: =IF($C127<>"",OFFSET(Participant_Database!$I$3,Participant_Database!$Z128,0),"") ->  | J127: =IF($C127<>"",OFFSET(Participant_Database!$J$3,Participant_Database!$Z128,0),"") ->  | K127: =IF($C127<>"",OFFSET(Participant_Database!$K$3,Participant_Database!$Z128,0),"") ->  | L127: =IF($C127<>"",OFFSET(Participant_Database!$L$3,Participant_Database!$Z128,0),"") ->  | M127: =IF($C127<>"",OFFSET(Participant_Database!$M$3,Participant_Database!$Z128,0),"") ->  | N127: =IF($C127<>"",OFFSET(Participant_Database!$N$3,Participant_Database!$Z128,0),"") ->  | O127: =IF($C127<>"",OFFSET(Participant_Database!$O$3,Participant_Database!$Z128,0),"") ->  | P127: =IF($C127<>"",OFFSET(Participant_Database!$P$3,Participant_Database!$Z128,0),"") ->  | Q127: =IF($C127<>"",OFFSET(Participant_Database!$Q$3,Participant_Database!$Z128,0),"") ->  | R127: =IF($C127<>"",OFFSET(Participant_Database!$R$3,Participant_Database!$Z128,0),"") ->  | S127: =IF($C127<>"",OFFSET(Participant_Database!$S$3,Participant_Database!$Z128,0),"") ->  | T127: =IF($C127<>"",OFFSET(Participant_Database!$T$3,Participant_Database!$Z128,0),"") ->  | U127: =IF($C127<>"",OFFSET(Participant_Database!$U$3,Participant_Database!$Z128,0),"") ->  | V127: =IF($C127<>"",OFFSET(Participant_Database!$V$3,Participant_Database!$Z128,0),"") ->  | W127: =IF($C127<>"",OFFSET(Participant_Database!$W$3,Participant_Database!$Z128,0),"") ->  | X127: =IF(C127<>"",Participant_Database!$Z126,"") -> 
A128: =IF($C128<>"",OFFSET(Participant_Database!$A$3,Participant_Database!$Z129,0),"") ->  | B128: =IF($C128<>"",OFFSET(Participant_Database!$B$3,Participant_Database!$Z129,0),"") ->  | C128: =IF(OFFSET(Participant_Database!$C$3,Participant_Database!$Z129,0)<>"",OFFSET(Participant_Database!$C$3,Participant_Database!$Z129,0),"") ->  | D128: =IF($C128<>"",OFFSET(Participant_Database!$D$3,Participant_Database!$Z129,0),"") ->  | E128: =IF($C128<>"",OFFSET(Participant_Database!$E$3,Participant_Database!$Z129,0),"") ->  | F128: =IF($C128<>"",OFFSET(Participant_Database!$F$3,Participant_Database!$Z129,0),"") ->  | G128: =IF($C128<>"",OFFSET(Participant_Database!$G$3,Participant_Database!$Z129,0),"") ->  | H128: =IF($C128<>"",OFFSET(Participant_Database!$H$3,Participant_Database!$Z129,0),"") ->  | I128: =IF($C128<>"",OFFSET(Participant_Database!$I$3,Participant_Database!$Z129,0),"") ->  | J128: =IF($C128<>"",OFFSET(Participant_Database!$J$3,Participant_Database!$Z129,0),"") ->  | K128: =IF($C128<>"",OFFSET(Participant_Database!$K$3,Participant_Database!$Z129,0),"") ->  | L128: =IF($C128<>"",OFFSET(Participant_Database!$L$3,Participant_Database!$Z129,0),"") ->  | M128: =IF($C128<>"",OFFSET(Participant_Database!$M$3,Participant_Database!$Z129,0),"") ->  | N128: =IF($C128<>"",OFFSET(Participant_Database!$N$3,Participant_Database!$Z129,0),"") ->  | O128: =IF($C128<>"",OFFSET(Participant_Database!$O$3,Participant_Database!$Z129,0),"") ->  | P128: =IF($C128<>"",OFFSET(Participant_Database!$P$3,Participant_Database!$Z129,0),"") ->  | Q128: =IF($C128<>"",OFFSET(Participant_Database!$Q$3,Participant_Database!$Z129,0),"") ->  | R128: =IF($C128<>"",OFFSET(Participant_Database!$R$3,Participant_Database!$Z129,0),"") ->  | S128: =IF($C128<>"",OFFSET(Participant_Database!$S$3,Participant_Database!$Z129,0),"") ->  | T128: =IF($C128<>"",OFFSET(Participant_Database!$T$3,Participant_Database!$Z129,0),"") ->  | U128: =IF($C128<>"",OFFSET(Participant_Database!$U$3,Participant_Database!$Z129,0),"") ->  | V128: =IF($C128<>"",OFFSET(Participant_Database!$V$3,Participant_Database!$Z129,0),"") ->  | W128: =IF($C128<>"",OFFSET(Participant_Database!$W$3,Participant_Database!$Z129,0),"") ->  | X128: =IF(C128<>"",Participant_Database!$Z127,"") -> 
A129: =IF($C129<>"",OFFSET(Participant_Database!$A$3,Participant_Database!$Z130,0),"") ->  | B129: =IF($C129<>"",OFFSET(Participant_Database!$B$3,Participant_Database!$Z130,0),"") ->  | C129: =IF(OFFSET(Participant_Database!$C$3,Participant_Database!$Z130,0)<>"",OFFSET(Participant_Database!$C$3,Participant_Database!$Z130,0),"") ->  | D129: =IF($C129<>"",OFFSET(Participant_Database!$D$3,Participant_Database!$Z130,0),"") ->  | E129: =IF($C129<>"",OFFSET(Participant_Database!$E$3,Participant_Database!$Z130,0),"") ->  | F129: =IF($C129<>"",OFFSET(Participant_Database!$F$3,Participant_Database!$Z130,0),"") ->  | G129: =IF($C129<>"",OFFSET(Participant_Database!$G$3,Participant_Database!$Z130,0),"") ->  | H129: =IF($C129<>"",OFFSET(Participant_Database!$H$3,Participant_Database!$Z130,0),"") ->  | I129: =IF($C129<>"",OFFSET(Participant_Database!$I$3,Participant_Database!$Z130,0),"") ->  | J129: =IF($C129<>"",OFFSET(Participant_Database!$J$3,Participant_Database!$Z130,0),"") ->  | K129: =IF($C129<>"",OFFSET(Participant_Database!$K$3,Participant_Database!$Z130,0),"") ->  | L129: =IF($C129<>"",OFFSET(Participant_Database!$L$3,Participant_Database!$Z130,0),"") ->  | M129: =IF($C129<>"",OFFSET(Participant_Database!$M$3,Participant_Database!$Z130,0),"") ->  | N129: =IF($C129<>"",OFFSET(Participant_Database!$N$3,Participant_Database!$Z130,0),"") ->  | O129: =IF($C129<>"",OFFSET(Participant_Database!$O$3,Participant_Database!$Z130,0),"") ->  | P129: =IF($C129<>"",OFFSET(Participant_Database!$P$3,Participant_Database!$Z130,0),"") ->  | Q129: =IF($C129<>"",OFFSET(Participant_Database!$Q$3,Participant_Database!$Z130,0),"") ->  | R129: =IF($C129<>"",OFFSET(Participant_Database!$R$3,Participant_Database!$Z130,0),"") ->  | S129: =IF($C129<>"",OFFSET(Participant_Database!$S$3,Participant_Database!$Z130,0),"") ->  | T129: =IF($C129<>"",OFFSET(Participant_Database!$T$3,Participant_Database!$Z130,0),"") ->  | U129: =IF($C129<>"",OFFSET(Participant_Database!$U$3,Participant_Database!$Z130,0),"") ->  | V129: =IF($C129<>"",OFFSET(Participant_Database!$V$3,Participant_Database!$Z130,0),"") ->  | W129: =IF($C129<>"",OFFSET(Participant_Database!$W$3,Participant_Database!$Z130,0),"") ->  | X129: =IF(C129<>"",Participant_Database!$Z128,"") -> 
A130: =IF($C130<>"",OFFSET(Participant_Database!$A$3,Participant_Database!$Z131,0),"") ->  | B130: =IF($C130<>"",OFFSET(Participant_Database!$B$3,Participant_Database!$Z131,0),"") ->  | C130: =IF(OFFSET(Participant_Database!$C$3,Participant_Database!$Z131,0)<>"",OFFSET(Participant_Database!$C$3,Participant_Database!$Z131,0),"") ->  | D130: =IF($C130<>"",OFFSET(Participant_Database!$D$3,Participant_Database!$Z131,0),"") ->  | E130: =IF($C130<>"",OFFSET(Participant_Database!$E$3,Participant_Database!$Z131,0),"") ->  | F130: =IF($C130<>"",OFFSET(Participant_Database!$F$3,Participant_Database!$Z131,0),"") ->  | G130: =IF($C130<>"",OFFSET(Participant_Database!$G$3,Participant_Database!$Z131,0),"") ->  | H130: =IF($C130<>"",OFFSET(Participant_Database!$H$3,Participant_Database!$Z131,0),"") ->  | I130: =IF($C130<>"",OFFSET(Participant_Database!$I$3,Participant_Database!$Z131,0),"") ->  | J130: =IF($C130<>"",OFFSET(Participant_Database!$J$3,Participant_Database!$Z131,0),"") ->  | K130: =IF($C130<>"",OFFSET(Participant_Database!$K$3,Participant_Database!$Z131,0),"") ->  | L130: =IF($C130<>"",OFFSET(Participant_Database!$L$3,Participant_Database!$Z131,0),"") ->  | M130: =IF($C130<>"",OFFSET(Participant_Database!$M$3,Participant_Database!$Z131,0),"") ->  | N130: =IF($C130<>"",OFFSET(Participant_Database!$N$3,Participant_Database!$Z131,0),"") ->  | O130: =IF($C130<>"",OFFSET(Participant_Database!$O$3,Participant_Database!$Z131,0),"") ->  | P130: =IF($C130<>"",OFFSET(Participant_Database!$P$3,Participant_Database!$Z131,0),"") ->  | Q130: =IF($C130<>"",OFFSET(Participant_Database!$Q$3,Participant_Database!$Z131,0),"") ->  | R130: =IF($C130<>"",OFFSET(Participant_Database!$R$3,Participant_Database!$Z131,0),"") ->  | S130: =IF($C130<>"",OFFSET(Participant_Database!$S$3,Participant_Database!$Z131,0),"") ->  | T130: =IF($C130<>"",OFFSET(Participant_Database!$T$3,Participant_Database!$Z131,0),"") ->  | U130: =IF($C130<>"",OFFSET(Participant_Database!$U$3,Participant_Database!$Z131,0),"") ->  | V130: =IF($C130<>"",OFFSET(Participant_Database!$V$3,Participant_Database!$Z131,0),"") ->  | W130: =IF($C130<>"",OFFSET(Participant_Database!$W$3,Participant_Database!$Z131,0),"") ->  | X130: =IF(C130<>"",Participant_Database!$Z129,"") -> 
A131: =IF($C131<>"",OFFSET(Participant_Database!$A$3,Participant_Database!$Z132,0),"") ->  | B131: =IF($C131<>"",OFFSET(Participant_Database!$B$3,Participant_Database!$Z132,0),"") ->  | C131: =IF(OFFSET(Participant_Database!$C$3,Participant_Database!$Z132,0)<>"",OFFSET(Participant_Database!$C$3,Participant_Database!$Z132,0),"") ->  | D131: =IF($C131<>"",OFFSET(Participant_Database!$D$3,Participant_Database!$Z132,0),"") ->  | E131: =IF($C131<>"",OFFSET(Participant_Database!$E$3,Participant_Database!$Z132,0),"") ->  | F131: =IF($C131<>"",OFFSET(Participant_Database!$F$3,Participant_Database!$Z132,0),"") ->  | G131: =IF($C131<>"",OFFSET(Participant_Database!$G$3,Participant_Database!$Z132,0),"") ->  | H131: =IF($C131<>"",OFFSET(Participant_Database!$H$3,Participant_Database!$Z132,0),"") ->  | I131: =IF($C131<>"",OFFSET(Participant_Database!$I$3,Participant_Database!$Z132,0),"") ->  | J131: =IF($C131<>"",OFFSET(Participant_Database!$J$3,Participant_Database!$Z132,0),"") ->  | K131: =IF($C131<>"",OFFSET(Participant_Database!$K$3,Participant_Database!$Z132,0),"") ->  | L131: =IF($C131<>"",OFFSET(Participant_Database!$L$3,Participant_Database!$Z132,0),"") ->  | M131: =IF($C131<>"",OFFSET(Participant_Database!$M$3,Participant_Database!$Z132,0),"") ->  | N131: =IF($C131<>"",OFFSET(Participant_Database!$N$3,Participant_Database!$Z132,0),"") ->  | O131: =IF($C131<>"",OFFSET(Participant_Database!$O$3,Participant_Database!$Z132,0),"") ->  | P131: =IF($C131<>"",OFFSET(Participant_Database!$P$3,Participant_Database!$Z132,0),"") ->  | Q131: =IF($C131<>"",OFFSET(Participant_Database!$Q$3,Participant_Database!$Z132,0),"") ->  | R131: =IF($C131<>"",OFFSET(Participant_Database!$R$3,Participant_Database!$Z132,0),"") ->  | S131: =IF($C131<>"",OFFSET(Participant_Database!$S$3,Participant_Database!$Z132,0),"") ->  | T131: =IF($C131<>"",OFFSET(Participant_Database!$T$3,Participant_Database!$Z132,0),"") ->  | U131: =IF($C131<>"",OFFSET(Participant_Database!$U$3,Participant_Database!$Z132,0),"") ->  | V131: =IF($C131<>"",OFFSET(Participant_Database!$V$3,Participant_Database!$Z132,0),"") ->  | W131: =IF($C131<>"",OFFSET(Participant_Database!$W$3,Participant_Database!$Z132,0),"") ->  | X131: =IF(C131<>"",Participant_Database!$Z130,"") -> 
A132: =IF($C132<>"",OFFSET(Participant_Database!$A$3,Participant_Database!$Z133,0),"") ->  | B132: =IF($C132<>"",OFFSET(Participant_Database!$B$3,Participant_Database!$Z133,0),"") ->  | C132: =IF(OFFSET(Participant_Database!$C$3,Participant_Database!$Z133,0)<>"",OFFSET(Participant_Database!$C$3,Participant_Database!$Z133,0),"") ->  | D132: =IF($C132<>"",OFFSET(Participant_Database!$D$3,Participant_Database!$Z133,0),"") ->  | E132: =IF($C132<>"",OFFSET(Participant_Database!$E$3,Participant_Database!$Z133,0),"") ->  | F132: =IF($C132<>"",OFFSET(Participant_Database!$F$3,Participant_Database!$Z133,0),"") ->  | G132: =IF($C132<>"",OFFSET(Participant_Database!$G$3,Participant_Database!$Z133,0),"") ->  | H132: =IF($C132<>"",OFFSET(Participant_Database!$H$3,Participant_Database!$Z133,0),"") ->  | I132: =IF($C132<>"",OFFSET(Participant_Database!$I$3,Participant_Database!$Z133,0),"") ->  | J132: =IF($C132<>"",OFFSET(Participant_Database!$J$3,Participant_Database!$Z133,0),"") ->  | K132: =IF($C132<>"",OFFSET(Participant_Database!$K$3,Participant_Database!$Z133,0),"") ->  | L132: =IF($C132<>"",OFFSET(Participant_Database!$L$3,Participant_Database!$Z133,0),"") ->  | M132: =IF($C132<>"",OFFSET(Participant_Database!$M$3,Participant_Database!$Z133,0),"") ->  | N132: =IF($C132<>"",OFFSET(Participant_Database!$N$3,Participant_Database!$Z133,0),"") ->  | O132: =IF($C132<>"",OFFSET(Participant_Database!$O$3,Participant_Database!$Z133,0),"") ->  | P132: =IF($C132<>"",OFFSET(Participant_Database!$P$3,Participant_Database!$Z133,0),"") ->  | Q132: =IF($C132<>"",OFFSET(Participant_Database!$Q$3,Participant_Database!$Z133,0),"") ->  | R132: =IF($C132<>"",OFFSET(Participant_Database!$R$3,Participant_Database!$Z133,0),"") ->  | S132: =IF($C132<>"",OFFSET(Participant_Database!$S$3,Participant_Database!$Z133,0),"") ->  | T132: =IF($C132<>"",OFFSET(Participant_Database!$T$3,Participant_Database!$Z133,0),"") ->  | U132: =IF($C132<>"",OFFSET(Participant_Database!$U$3,Participant_Database!$Z133,0),"") ->  | V132: =IF($C132<>"",OFFSET(Participant_Database!$V$3,Participant_Database!$Z133,0),"") ->  | W132: =IF($C132<>"",OFFSET(Participant_Database!$W$3,Participant_Database!$Z133,0),"") ->  | X132: =IF(C132<>"",Participant_Database!$Z131,"") -> 
